Workbook

Sheet ACTIVOS DE INFORMACIÓN 2020
A1: ÍNDICE DE INFORMACIÓN CLASIFICADA Y RESERVADA
A4: Identificación del Activo de Información ( Ley 594 de 2000 - Ley 1712 de 2014 - Decreto 103 de 2015 - Decreto 1080 de 2015 - Iso 27001:2013 - MIG ) | M4: Valoración del Activo (Iso 27001:2013) | N4: Índice de Información Clasificada y Reservada (Decreto 103 de 2015)
A7: Identificador | B7: =COUNTIF(B8:B525,"LEB") -> 0 | C7: Tipo | D7: Oficina | E7: Nombre | F7: Descripción | G7: Nombre del Responsable de la Producción de la Información (Propietario del Activo) | H7: Fecha de Generación de la Información | I7: Nombre del Responsable de la Información (Custodio del Activo) | J7: Medio de Conservación | K7: Formato | L7: Idioma | M7: Confidencialidad | N7: Objetivo legítimo de la Excepción | O7: Fundamento Constitucional o Legal | P7: Fundamento Jurídico de la Excepción | Q7: Excepción Total o Parcial | R7: Fecha de Calificación DD/MM/AAAA | S7: Tiempo que Cobija la Clasificación
A8: =IF(D8<>"",VLOOKUP('ACTIVOS DE INFORMACIÓN 2020'!D8,DATA!$E$2:$F$95,2)&"-"&B8,"") -> 100-1 | B8: =IF(D8<>"",1,"") -> 1 | C8: INFORMACIÓN | D8: DESPACHO DEL MINISTRO | E8: COMUNICIONES A ENTES DE CONTROL Y VIGILANCIA | F8: Respuestas dirigidas a Fiscalia, Contraloria y Procuraduria que sean competencia del Despacho de la Ministra. | G8: DESPACHO DEL MINISTRO | H8: 2018-11-28 | I8: DESPACHO DEL MINISTRO | J8: Documentos de Archivo - físicos | K8: Papel | L8: Español | M8: INFORMACIÓN PÚBLICA | N8: N/A | O8: N/A | P8: N/A | Q8: N/A | R8: N/A | S8: N/A
A9: =IF(D9<>"",VLOOKUP('ACTIVOS DE INFORMACIÓN 2020'!D9,DATA!$E$2:$F$95,2)&"-"&B9,"") -> 100-2 | B9: =IF(AND(A8="",D9<>""),"LEB",IF(D9<>"",1+B8,"")) -> 2 | C9: INFORMACIÓN | D9: DESPACHO DEL MINISTRO | E9: COMUNICACIONES DIRIGIDAS A ENTIDADES PÚBLICAS DE ORDEN NACIONAL Y/O TERRITORIAL | F9: Respuestas emitidas a entidades de orden público de acuerdo con las competencias del Despacho de la Ministra | G9: DESPACHO DEL MINISTRO | H9: 2018-11-28 | I9: DESPACHO DEL MINISTRO | J9: Documentos de Archivo - físicos | K9: Papel | L9: Español | M9: INFORMACIÓN PÚBLICA | N9: N/A | O9: N/A | P9: N/A | Q9: N/A | R9: N/A | S9: N/A
A10: =IF(D10<>"",VLOOKUP('ACTIVOS DE INFORMACIÓN 2020'!D10,DATA!$E$2:$F$95,2)&"-"&B10,"") -> 100-3 | B10: 3 | C10: INFORMACIÓN | D10: DESPACHO DEL MINISTRO | E10: INFORMES DE DELEGACIÓN | F10: Información oficial sobre el ejercicio de las dependencias y de la entidad misma | G10: DEPENDENCIAS | H10: 2018-11-28 | I10: DESPACHO DEL MINISTRO | J10: Documentos de Archivo - físicos | K10: Papel | L10: Español | M10: INFORMACIÓN PÚBLICA | N10: N/A | O10: N/A | P10: N/A | Q10: N/A | R10: N/A | S10: N/A
A11: =IF(D11<>"",VLOOKUP('ACTIVOS DE INFORMACIÓN 2020'!D11,DATA!$E$2:$F$95,2)&"-"&B11,"") -> 100-4 | B11: 4 | C11: INFORMACIÓN | D11: DESPACHO DEL MINISTRO | E11: COMUNICACIONES PROYECTOS CANALES DE TELEVISIÓN | F11: Documentos dirigidos a canales nacionales | G11: DESPACHO DEL MINISTRO | H11: 2018-11-28 | I11: DESPACHO DEL MINISTRO | J11: Documentos de Archivo - físicos | K11: Papel | L11: Español | M11: INFORMACIÓN PÚBLICA | N11: N/A | O11: N/A | P11: N/A | Q11: N/A | R11: N/A | S11: N/A
A12: =IF(D12<>"",VLOOKUP('ACTIVOS DE INFORMACIÓN 2020'!D12,DATA!$E$2:$F$95,2)&"-"&B12,"") -> 100-5 | B12: 5 | C12: INFORMACIÓN | D12: DESPACHO DEL MINISTRO | E12: ESTATUTOS | F12: Conjunto de normas legales por las que se regula el funcionamiento del Fondo Unico TIC | G12: DESPACHO DEL MINISTRO | H12: 2018-11-28 | I12: DESPACHO DEL MINISTRO | J12: Documentos de Archivo - físicos | K12: Papel | L12: Español | M12: INFORMACIÓN PÚBLICA | N12: N/A | O12: N/A | P12: N/A | Q12: N/A | R12: N/A | S12: N/A
A13: =IF(D13<>"",VLOOKUP('ACTIVOS DE INFORMACIÓN 2020'!D13,DATA!$E$2:$F$95,2)&"-"&B13,"") -> 100-6 | B13: 6 | C13: INFORMACIÓN | D13: DESPACHO DEL MINISTRO | E13: POLITICAS | F13: Conjunto de actos administrativos para promover el uso, apropiación y divulgación de las TIC | G13: DESPACHO DEL MINISTRO | H13: 2018-11-28 | I13: DESPACHO DEL MINISTRO | J13: Documentos de Archivo - físicos | K13: Papel | L13: Español | M13: INFORMACIÓN PÚBLICA | N13: N/A | O13: N/A | P13: N/A | Q13: N/A | R13: N/A | S13: N/A
A14: =IF(D14<>"",VLOOKUP('ACTIVOS DE INFORMACIÓN 2020'!D14,DATA!$E$2:$F$95,2)&"-"&B14,"") -> 100-7 | B14: 7 | C14: INFORMACIÓN | D14: DESPACHO DEL MINISTRO | E14: Plan de implementación de seguridad y privacidad de la información | F14: Documento que definie los lineamientos y actividades a desarrollar en la implementación del Plan Seguridad | G14: DESPACHO DEL MINISTRO | H14: 2020-01-31 | I14: OFICINA ASESORA DE PLANEACIÓN Y ESTUDIOS SECTORIALES | J14: Archivos Institucionales - electrónico | K14: PDF | L14: Español | M14: INFORMACIÓN PÚBLICA | N14: N/A | O14: N/A | P14: N/A | Q14: N/A | R14: N/A | S14: N/A
A15: =IF(D15<>"",VLOOKUP('ACTIVOS DE INFORMACIÓN 2020'!D15,DATA!$E$2:$F$95,2)&"-"&B15,"") -> 100-8 | B15: 8 | C15: INFORMACIÓN | D15: DESPACHO DEL MINISTRO | E15: Plan de tratamiento de riesgos de seguridad de la información | F15: Documento que definie los lineamientos para tratar de manera integral los riesgos de Seguridad y Privacidad de la Información, Seguridad Digital y Continuidad de la Operación de los servicios | G15: DESPACHO DEL MINISTRO | H15: 2020-01-31 | I15: OFICINA ASESORA DE PLANEACIÓN Y ESTUDIOS SECTORIALES | J15: Archivos Institucionales - electrónico | K15: PDF | L15: Español | M15: INFORMACIÓN PÚBLICA | N15: N/A | O15: N/A | P15: N/A | Q15: N/A | R15: N/A | S15: N/A
A16: =IF(D16<>"",VLOOKUP('ACTIVOS DE INFORMACIÓN 2020'!D16,DATA!$E$2:$F$95,2)&"-"&B16,"") -> 100-9 | B16: =IF(AND(A15="",D16<>""),"LEB",IF(D16<>"",1+B15,"")) -> 9 | C16: INFORMACIÓN | D16: DESPACHO DEL MINISTRO | E16: Seguimiento al Plan de Implementación de Seguridad de la información | F16: Documento que contiene los seguimiento de las gestiones del Sistema de Gestión de seguridad de la información del Ministerio: activos, riesgos, continuidad del servicio, Gobierno en línea, cultura incidentes de seguridad de la información y Privacidad de la información. | G16: DESPACHO DEL MINISTRO | H16: 2020-01-31 | I16: OFICINA ASESORA DE PLANEACIÓN Y ESTUDIOS SECTORIALES | J16: Archivos Institucionales - electrónico | K16: PDF | L16: Español | M16: INFORMACIÓN PÚBLICA CLASIFICADA | N16: SI | O16: N/A | P16: Ley 1712 de 2014 artículo 18 | Q16: Sin reserva | R16: 2019-07-30 | S16: N/A
A17: =IF(D17<>"",VLOOKUP('ACTIVOS DE INFORMACIÓN 2020'!D17,DATA!$E$2:$F$95,2)&"-"&B17,"") -> 100-10 | B17: 10 | C17: INSTALACIONES | D17: DESPACHO DEL MINISTRO | E17: DESPACHO DEL MINISTRO | F17: Oficina en donde se encuentra ubicado el Ministro de Tecnologias de la Información y las comunicaciones | G17: N/A | H17: N/A | I17: N/A | J17: N/A | K17: N/A | L17: N/A | M17: INFORMACIÓN PÚBLICA RESERVADA | N17: N/A | O17: N/A | P17: N/A | Q17: N/A | R17: N/A | S17: N/A
A18: =IF(D18<>"",VLOOKUP('ACTIVOS DE INFORMACIÓN 2020'!D18,DATA!$E$2:$F$95,2)&"-"&B18,"") -> 100-11 | B18: 11 | C18: RECURSO HUMANO | D18: DESPACHO DEL MINISTRO | E18: Ministro | F18: Ministro de Tecnologías de la Información y las Comunicaciones quien lidera las iniciativas públicas para impulsar la inversión en el sector TIC y para la transformación digital del Estado | G18: N/A | H18: N/A | I18: N/A | J18: N/A | K18: N/A | L18: N/A | M18: INFORMACIÓN PÚBLICA | N18: N/A | O18: N/A | P18: N/A | Q18: N/A | R18: N/A | S18: N/A
A19: =IF(D19<>"",VLOOKUP('ACTIVOS DE INFORMACIÓN 2020'!D19,DATA!$E$2:$F$95,2)&"-"&B19,"") -> 101-12 | B19: 12 | C19: INFORMACIÓN | D19: GRUPO INTERNO DE TRABAJO PARA EL CONSENSO SOCIAL | E19: SOLICITUDES Y RESPUESTAS A PQRS DE GRUPOS DE INTERES | F19: SOLICITUDES Y RESPUESTAS A PQRS DE GRUPOS SOCIALES Y/O ETNICOS Y DEMAS ENTIDADES DEL GOBIERNO NACIONAL | G19: GRUPO INTERNO DE TRABAJO PARA EL CONSENSO SOCIAL | H19: 2020-09-23 | I19: GRUPO INTERNO DE TRABAJO DE FORTALECIMIENTO DE LAS RELACIONES CON LOS GRUPOS DE INTERES | J19: Documentos de Archivo - físicos | K19: Papel | L19: Español | M19: INFORMACIÓN PÚBLICA | N19: N/A | O19: N/A | P19: N/A | Q19: N/A | R19: N/A | S19: N/A
A20: =IF(D20<>"",VLOOKUP('ACTIVOS DE INFORMACIÓN 2020'!D20,DATA!$E$2:$F$95,2)&"-"&B20,"") -> 101-13 | B20: 13 | C20: INFORMACIÓN | D20: GRUPO INTERNO DE TRABAJO PARA EL CONSENSO SOCIAL | E20: Conceptos técnicos con la Solicitud y respuesta a conceptos | F20: Conceptos internos dados por las distintas áreas del Mintic | G20: GRUPO INTERNO DE TRABAJO PARA EL CONSENSO SOCIAL | H20: 2020-08-30 | I20: GRUPO INTERNO DE TRABAJO PARA EL CONSENSO SOCIAL | J20: Documentos de Archivo - físicos | K20: Papel | L20: Español | M20: INFORMACIÓN PÚBLICA | N20: N/A | O20: N/A | P20: N/A | Q20: N/A | R20: N/A | S20: N/A
A21: =IF(D21<>"",VLOOKUP('ACTIVOS DE INFORMACIÓN 2020'!D21,DATA!$E$2:$F$95,2)&"-"&B21,"") -> 101-14 | B21: 14 | C21: INFORMACIÓN | D21: GRUPO INTERNO DE TRABAJO PARA EL CONSENSO SOCIAL | E21: Evidencia de a atención de espacios y/o reuniones internas atendidas | F21: Evidencia de a atención de espacios y/o reuniones internas atendidas | G21: GRUPO INTERNO DE TRABAJO PARA EL CONSENSO SOCIAL | H21: 2020-09-24 | I21: GRUPO INTERNO DE TRABAJO PARA EL CONSENSO SOCIAL | J21: Documentos de Archivo - físicos | K21: Papel | L21: Español | M21: INFORMACIÓN PÚBLICA | N21: N/A | O21: N/A | P21: N/A | Q21: N/A | R21: N/A | S21: N/A
A22: =IF(D22<>"",VLOOKUP('ACTIVOS DE INFORMACIÓN 2020'!D22,DATA!$E$2:$F$95,2)&"-"&B22,"") -> 101-15 | B22: 15 | C22: INFORMACIÓN | D22: GRUPO INTERNO DE TRABAJO PARA EL CONSENSO SOCIAL | E22: Solicitudes y elaboración de informes o insumos para entes de control internos o externos | F22: Solicitudes y elaboración de informes o insumos para entes de control internos o externos | G22: GRUPO INTERNO DE TRABAJO PARA EL CONSENSO SOCIAL | H22: 2020-06-30 | I22: GRUPO INTERNO DE TRABAJO PARA EL CONSENSO SOCIAL | J22: Documentos de Archivo - electrónicos | K22: XLS -PDF | L22: Español | M22: INFORMACIÓN PÚBLICA | N22: N/A | O22: N/A | P22: N/A | Q22: N/A | R22: N/A | S22: N/A
A23: =IF(D23<>"",VLOOKUP('ACTIVOS DE INFORMACIÓN 2020'!D23,DATA!$E$2:$F$95,2)&"-"&B23,"") -> 101-16 | B23: 16 | C23: INFORMACIÓN | D23: GRUPO INTERNO DE TRABAJO PARA EL CONSENSO SOCIAL | E23: Conformación y reportes de seguimiento a planes institucionales de la entidad | F23: Conformación y reportes de seguimiento a planes institucionales de la entidad como ASPA, Plan de Participación Ciudadana, PES, etc | G23: GRUPO INTERNO DE TRABAJO PARA EL CONSENSO SOCIAL | H23: 2020-09-24 | I23: GRUPO INTERNO DE TRABAJO PARA EL CONSENSO SOCIAL | J23: Archivos Institucionales - electrónico | K23: XLS -PDF | L23: Español | M23: INFORMACIÓN PÚBLICA | N23: N/A | O23: N/A | P23: N/A | Q23: N/A | R23: N/A | S23: N/A
A24: =IF(D24<>"",VLOOKUP('ACTIVOS DE INFORMACIÓN 2020'!D24,DATA!$E$2:$F$95,2)&"-"&B24,"") -> 101-17 | B24: 17 | C24: INFORMACIÓN | D24: GRUPO INTERNO DE TRABAJO PARA EL CONSENSO SOCIAL | E24: Seguimiento y evaluación a Politicas Publicas TIC con grupos étnicos | F24: Seguimiento y evaluación a Politicas Publicas TIC con grupos étnicos | G24: GRUPO INTERNO DE TRABAJO PARA EL CONSENSO SOCIAL | H24: 2020-09-24 | I24: GRUPO INTERNO DE TRABAJO PARA EL CONSENSO SOCIAL | J24: Documentos de Archivo - electrónicos | K24: XLS -PDF | L24: Español | M24: INFORMACIÓN PÚBLICA | N24: N/A | O24: N/A | P24: N/A | Q24: N/A | R24: N/A | S24: N/A
A25: =IF(D25<>"",VLOOKUP('ACTIVOS DE INFORMACIÓN 2020'!D25,DATA!$E$2:$F$95,2)&"-"&B25,"") -> 101-18 | B25: 18 | C25: RECURSO HUMANO | D25: GRUPO INTERNO DE TRABAJO PARA EL CONSENSO SOCIAL | E25: Colaboradores Contratistas | F25: Coordinar las acciones constitucionales para prevenir, mitigar, y hacer seguimiento a escenarios de conflictividad social, entre otras | G25: N/A | H25: N/A | I25: N/A | J25: N/A | K25: N/A | L25: N/A | M25: INFORMACIÓN PÚBLICA | N25: N/A | O25: N/A | P25: N/A | Q25: N/A | R25: N/A | S25: N/A
A26: =IF(D26<>"",VLOOKUP('ACTIVOS DE INFORMACIÓN 2020'!D26,DATA!$E$2:$F$95,2)&"-"&B26,"") -> 101-19 | B26: 19 | C26: RECURSO HUMANO | D26: GRUPO INTERNO DE TRABAJO PARA EL CONSENSO SOCIAL | E26: Colaboradores Planta | F26: Coordinar las acciones constitucionales para prevenir, mitigar, y hacer seguimiento a escenarios de conflictividad social, entre otras | G26: N/A | H26: N/A | I26: N/A | J26: N/A | K26: N/A | L26: N/A | M26: INFORMACIÓN PÚBLICA | N26: N/A | O26: N/A | P26: N/A | Q26: N/A | R26: N/A | S26: N/A
A27: =IF(D27<>"",VLOOKUP('ACTIVOS DE INFORMACIÓN 2020'!D27,DATA!$E$2:$F$95,2)&"-"&B27,"") -> 114-20 | B27: =IF(AND(A26="",D27<>""),"LEB",IF(D27<>"",1+B26,"")) -> 20 | C27: INFORMACIÓN | D27: GRUPO INTERNO DE TRABAJO DE TRANSFORMACIÓN ORGANIZACIONAL | E27: Matrices de recopilación de respuestas | F27: Documento en Excel donde se recopila la información y respuestas solicitadas en FURAG | G27: OFICINA ASESORA DE PLANEACIÓN Y ESTUDIOS SECTORIALES | H27: 2018-11-28 | I27: GRUPO INTERNO DE TRABAJO DE TRANSFORMACIÓN ORGANIZACIONAL | J27: Documentos de Archivo - electrónicos | K27: XLS -PDF | L27: Español | M27: INFORMACIÓN PÚBLICA CLASIFICADA | N27: N/A | O27: N/A | P27: N/A | Q27: N/A | R27: N/A | S27: N/A
A28: =IF(D28<>"",VLOOKUP('ACTIVOS DE INFORMACIÓN 2020'!D28,DATA!$E$2:$F$95,2)&"-"&B28,"") -> 114-21 | B28: 21 | C28: INFORMACIÓN | D28: GRUPO INTERNO DE TRABAJO DE TRANSFORMACIÓN ORGANIZACIONAL | E28: Informe de resultados | F28: Resultados gráficos que permiten ubicar el nivel de desempeño en cada índice, resultados consolidados por entidad y los grupos par. | G28: OFICINA ASESORA DE PLANEACIÓN Y ESTUDIOS SECTORIALES | H28: 2018-11-28 | I28: GRUPO INTERNO DE TRABAJO DE TRANSFORMACIÓN ORGANIZACIONAL | J28: Archivos Institucionales - electrónico | K28: PDF | L28: Español | M28: INFORMACIÓN PÚBLICA CLASIFICADA | N28: N/A | O28: N/A | P28: N/A | Q28: N/A | R28: N/A | S28: N/A
A29: =IF(D29<>"",VLOOKUP('ACTIVOS DE INFORMACIÓN 2020'!D29,DATA!$E$2:$F$95,2)&"-"&B29,"") -> 114-22 | B29: 22 | C29: INFORMACIÓN | D29: GRUPO INTERNO DE TRABAJO DE TRANSFORMACIÓN ORGANIZACIONAL | E29: Certificación de reporte de avance a la gestión - FURAG | F29: Notificación generada por el sistema de la Función pública donde se evidencia el reporte FURAG realizado por la Entidad | G29: OFICINA ASESORA DE PLANEACIÓN Y ESTUDIOS SECTORIALES | H29: 2018-11-28 | I29: GRUPO INTERNO DE TRABAJO DE TRANSFORMACIÓN ORGANIZACIONAL | J29: Documentos de Archivo - electrónicos | K29: PDF | L29: Español | M29: INFORMACIÓN PÚBLICA CLASIFICADA | N29: N/A | O29: N/A | P29: N/A | Q29: N/A | R29: N/A | S29: N/A
A30: =IF(D30<>"",VLOOKUP('ACTIVOS DE INFORMACIÓN 2020'!D30,DATA!$E$2:$F$95,2)&"-"&B30,"") -> 114-23 | B30: 23 | C30: INFORMACIÓN | D30: GRUPO INTERNO DE TRABAJO DE TRANSFORMACIÓN ORGANIZACIONAL | E30: Informe | F30: Corresponde al informe y al mapa de riesgos de corrupción que se publica obedeciendo a la ley 1474 de 2011 en su articulo 73 | G30: OFICINA ASESORA DE PLANEACIÓN Y ESTUDIOS SECTORIALES | H30: 2018-11-28 | I30: GRUPO INTERNO DE TRABAJO DE TRANSFORMACIÓN ORGANIZACIONAL | J30: Documentos de Archivo - electrónicos | K30: PDF | L30: Español | M30: INFORMACIÓN PÚBLICA CLASIFICADA | N30: N/A | O30: N/A | P30: N/A | Q30: N/A | R30: N/A | S30: N/A
A31: =IF(D31<>"",VLOOKUP('ACTIVOS DE INFORMACIÓN 2020'!D31,DATA!$E$2:$F$95,2)&"-"&B31,"") -> 114-24 | B31: 24 | C31: INFORMACIÓN | D31: GRUPO INTERNO DE TRABAJO DE TRANSFORMACIÓN ORGANIZACIONAL | E31: Comunicación | F31: Memorando y cronograma de actualización de perfil | G31: OFICINA ASESORA DE PLANEACIÓN Y ESTUDIOS SECTORIALES | H31: 2018-11-28 | I31: GRUPO INTERNO DE TRABAJO DE TRANSFORMACIÓN ORGANIZACIONAL | J31: Documentos de Archivo - electrónicos | K31: PDF | L31: Español | M31: INFORMACIÓN PÚBLICA CLASIFICADA | N31: N/A | O31: N/A | P31: N/A | Q31: N/A | R31: N/A | S31: N/A
A32: =IF(D32<>"",VLOOKUP('ACTIVOS DE INFORMACIÓN 2020'!D32,DATA!$E$2:$F$95,2)&"-"&B32,"") -> 114-25 | B32: 25 | C32: INFORMACIÓN | D32: GRUPO INTERNO DE TRABAJO DE TRANSFORMACIÓN ORGANIZACIONAL | E32: Cuadro de seguimiento a controles de riesgos | F32: Se presenta el avance al Comité MIG del seguimiento a los controles de los riesgos identificados en los procesos | G32: OFICINA ASESORA DE PLANEACIÓN Y ESTUDIOS SECTORIALES | H32: 2018-11-28 | I32: GRUPO INTERNO DE TRABAJO DE TRANSFORMACIÓN ORGANIZACIONAL | J32: Documentos de Archivo - electrónicos | K32: XLS -PDF | L32: Español | M32: INFORMACIÓN PÚBLICA CLASIFICADA | N32: N/A | O32: N/A | P32: N/A | Q32: N/A | R32: N/A | S32: N/A
A33: =IF(D33<>"",VLOOKUP('ACTIVOS DE INFORMACIÓN 2020'!D33,DATA!$E$2:$F$95,2)&"-"&B33,"") -> 114-26 | B33: 26 | C33: INFORMACIÓN | D33: GRUPO INTERNO DE TRABAJO DE TRANSFORMACIÓN ORGANIZACIONAL | E33: Cuadro de seguimiento a indicadores | F33: Son los indicadores presentados en el mapa de riesgos al cual se le hace seguimiento a través del indicador de GIT de Fortalecimiento Organizacioal y se presenta en el comité MIG | G33: OFICINA ASESORA DE PLANEACIÓN Y ESTUDIOS SECTORIALES | H33: 2018-11-28 | I33: GRUPO INTERNO DE TRABAJO DE TRANSFORMACIÓN ORGANIZACIONAL | J33: Sistemas de Información corporativos | K33: XLS -PDF | L33: Español | M33: INFORMACIÓN PÚBLICA CLASIFICADA | N33: N/A | O33: N/A | P33: N/A | Q33: N/A | R33: N/A | S33: N/A
A34: =IF(D34<>"",VLOOKUP('ACTIVOS DE INFORMACIÓN 2020'!D34,DATA!$E$2:$F$95,2)&"-"&B34,"") -> 114-27 | B34: 27 | C34: INFORMACIÓN | D34: GRUPO INTERNO DE TRABAJO DE TRANSFORMACIÓN ORGANIZACIONAL | E34: Listados de asistencia | F34: Reuniones realizadas con los diferentes procesos con el fin de generar el contexto y el mapa de riesgo. Pueden ser screnshots o lista de asistencai de teams | G34: OFICINA ASESORA DE PLANEACIÓN Y ESTUDIOS SECTORIALES | H34: 2018-11-28 | I34: GRUPO INTERNO DE TRABAJO DE TRANSFORMACIÓN ORGANIZACIONAL | J34: Documentos de Archivo - electrónicos | K34: XLS -PDF | L34: Español | M34: INFORMACIÓN PÚBLICA | N34: N/A | O34: N/A | P34: N/A | Q34: N/A | R34: N/A | S34: N/A
A35: =IF(D35<>"",VLOOKUP('ACTIVOS DE INFORMACIÓN 2020'!D35,DATA!$E$2:$F$95,2)&"-"&B35,"") -> 114-28 | B35: =IF(AND(A34="",D35<>""),"LEB",IF(D35<>"",1+B34,"")) -> 28 | C35: INFORMACIÓN | D35: GRUPO INTERNO DE TRABAJO DE TRANSFORMACIÓN ORGANIZACIONAL | E35: Actas de cierre | F35: Correos enviados a los líderes y gestore de procesos con anexos de los docuemntos de las mesas de trabajo para informar los cambios realizados en la actualización del perfil | G35: OFICINA ASESORA DE PLANEACIÓN Y ESTUDIOS SECTORIALES | H35: 2018-11-28 | I35: GRUPO INTERNO DE TRABAJO DE TRANSFORMACIÓN ORGANIZACIONAL | J35: Archivos Institucionales - electrónico | K35: XLS -PDF | L35: Español | M35: INFORMACIÓN PÚBLICA CLASIFICADA | N35: N/A | O35: N/A | P35: N/A | Q35: N/A | R35: N/A | S35: N/A
A36: =IF(D36<>"",VLOOKUP('ACTIVOS DE INFORMACIÓN 2020'!D36,DATA!$E$2:$F$95,2)&"-"&B36,"") -> 114-29 | B36: 29 | C36: INFORMACIÓN | D36: GRUPO INTERNO DE TRABAJO DE TRANSFORMACIÓN ORGANIZACIONAL | E36: Stakeholders y contexto | F36: Documento que contiene el contexto del perfil del riesgo de los procesos que incluye cambios normativos, de proceso, tecnologicos , de grupos de interés, entre otros | G36: OFICINA ASESORA DE PLANEACIÓN Y ESTUDIOS SECTORIALES | H36: 2018-11-28 | I36: GRUPO INTERNO DE TRABAJO DE TRANSFORMACIÓN ORGANIZACIONAL | J36: Archivos Institucionales - electrónico | K36: PDF | L36: Español | M36: INFORMACIÓN PÚBLICA CLASIFICADA | N36: N/A | O36: N/A | P36: N/A | Q36: N/A | R36: N/A | S36: N/A
A37: =IF(D37<>"",VLOOKUP('ACTIVOS DE INFORMACIÓN 2020'!D37,DATA!$E$2:$F$95,2)&"-"&B37,"") -> 114-30 | B37: 30 | C37: INFORMACIÓN | D37: GRUPO INTERNO DE TRABAJO DE TRANSFORMACIÓN ORGANIZACIONAL | E37: Matrices de riesgos | F37: Mapas de riesgos finales de cada uno de los procesos | G37: GRUPO INTERNO DE TRABAJO DE TRANSFORMACIÓN ORGANIZACIONAL | H37: 2018-11-28 | I37: GRUPO INTERNO DE TRABAJO DE TRANSFORMACIÓN ORGANIZACIONAL | J37: Documentos de Archivo - electrónicos | K37: XLS | L37: Español | M37: INFORMACIÓN PÚBLICA CLASIFICADA | N37: N/A | O37: N/A | P37: N/A | Q37: N/A | R37: N/A | S37: N/A
A38: =IF(D38<>"",VLOOKUP('ACTIVOS DE INFORMACIÓN 2020'!D38,DATA!$E$2:$F$95,2)&"-"&B38,"") -> 114-31 | B38: 31 | C38: INFORMACIÓN | D38: GRUPO INTERNO DE TRABAJO DE TRANSFORMACIÓN ORGANIZACIONAL | E38: Listados de asistencia de asesorias a procesos | F38: Documento que contiene los datos de los asistentes a las asesorías de procesos y políticas realizadas por el GIT de Transformación Organizacional con el fin de generar recomendacones y lineamientos frente a los temas que interviene cada dependencia. Su evidencia son las listas de asistecia, Screenshots de teams o archivo en excel descargado como lista de asistencia de Teams | G38: GRUPO INTERNO DE TRABAJO DE TRANSFORMACIÓN ORGANIZACIONAL | H38: 2018-11-28 | I38: GRUPO INTERNO DE TRABAJO DE TRANSFORMACIÓN ORGANIZACIONAL | J38: Documentos de Archivo - electrónicos | K38: XLS | L38: Español | M38: INFORMACIÓN PÚBLICA CLASIFICADA | N38: NO | O38: N/A | P38: N/A | Q38: N/A | R38: N/A | S38: N/A
A39: =IF(D39<>"",VLOOKUP('ACTIVOS DE INFORMACIÓN 2020'!D39,DATA!$E$2:$F$95,2)&"-"&B39,"") -> 114-32 | B39: 32 | C39: INFORMACIÓN | D39: GRUPO INTERNO DE TRABAJO DE TRANSFORMACIÓN ORGANIZACIONAL | E39: Resultados de auditoria externa de calidad | F39: Informes realizados de las auditorias externas de calidad para cumplimiento de las ISO | G39: GRUPO INTERNO DE TRABAJO DE TRANSFORMACIÓN ORGANIZACIONAL | H39: 2018-11-28 | I39: GRUPO INTERNO DE TRABAJO DE TRANSFORMACIÓN ORGANIZACIONAL | J39: Documentos de Archivo - electrónicos | K39: XLS | L39: Español | M39: INFORMACIÓN PÚBLICA CLASIFICADA | N39: N/A | O39: N/A | P39: N/A | Q39: N/A | R39: N/A | S39: N/A
A40: =IF(D40<>"",VLOOKUP('ACTIVOS DE INFORMACIÓN 2020'!D40,DATA!$E$2:$F$95,2)&"-"&B40,"") -> 114-33 | B40: 33 | C40: INFORMACIÓN | D40: GRUPO INTERNO DE TRABAJO DE TRANSFORMACIÓN ORGANIZACIONAL | E40: Comunicaciones y certificaciones | F40: Correos enviados mensualmente a los gestores de proceso indicado fechas maximas de reporte de indicadores… | G40: GRUPO INTERNO DE TRABAJO DE TRANSFORMACIÓN ORGANIZACIONAL | H40: 2018-11-28 | I40: GRUPO INTERNO DE TRABAJO DE TRANSFORMACIÓN ORGANIZACIONAL | J40: Documentos de Archivo - electrónicos | K40: PDF | L40: Español | M40: INFORMACIÓN PÚBLICA | N40: N/A | O40: N/A | P40: N/A | Q40: N/A | R40: N/A | S40: N/A
A41: =IF(D41<>"",VLOOKUP('ACTIVOS DE INFORMACIÓN 2020'!D41,DATA!$E$2:$F$95,2)&"-"&B41,"") -> 114-34 | B41: =IF(AND(A40="",D41<>""),"LEB",IF(D41<>"",1+B40,"")) -> 34 | C41: INFORMACIÓN | D41: GRUPO INTERNO DE TRABAJO DE TRANSFORMACIÓN ORGANIZACIONAL | E41: Informe de análisis de capacidades y entornos | F41: Análisis interno y autocritico de la Entidad por medio del análisis de capacidades, con el fin de identificar problemáticas y mejoras que permita fortalecer el desempeño y las capacidades para la entrega oportuna de los productos y servicios de la Entidad | G41: GRUPO INTERNO DE TRABAJO DE TRANSFORMACIÓN ORGANIZACIONAL | H41: 2018-11-28 | I41: GRUPO INTERNO DE TRABAJO DE TRANSFORMACIÓN ORGANIZACIONAL | J41: Sistemas de Información corporativos | K41: XLS -PDF | L41: Español | M41: INFORMACIÓN PÚBLICA CLASIFICADA | N41: N/A | O41: N/A | P41: N/A | Q41: N/A | R41: N/A | S41: N/A
A42: =IF(D42<>"",VLOOKUP('ACTIVOS DE INFORMACIÓN 2020'!D42,DATA!$E$2:$F$95,2)&"-"&B42,"") -> 114-35 | B42: 35 | C42: INFORMACIÓN | D42: GRUPO INTERNO DE TRABAJO DE TRANSFORMACIÓN ORGANIZACIONAL | E42: Acta de reunión | F42: Actas de las reuniones de gestores | G42: GRUPO INTERNO DE TRABAJO DE TRANSFORMACIÓN ORGANIZACIONAL | H42: 2018-11-28 | I42: GRUPO INTERNO DE TRABAJO DE TRANSFORMACIÓN ORGANIZACIONAL | J42: Documentos de Archivo - electrónicos | K42: XLS | L42: Español | M42: INFORMACIÓN PÚBLICA CLASIFICADA | N42: N/A | O42: N/A | P42: N/A | Q42: N/A | R42: N/A | S42: N/A
A43: =IF(D43<>"",VLOOKUP('ACTIVOS DE INFORMACIÓN 2020'!D43,DATA!$E$2:$F$95,2)&"-"&B43,"") -> 114-36 | B43: 36 | C43: INFORMACIÓN | D43: GRUPO INTERNO DE TRABAJO DE TRANSFORMACIÓN ORGANIZACIONAL | E43: Seguimiento Política de gestión y desempeño institucional - Fortalecimiento Organizacional y simplificación de procesos | F43: La implementación de la política de Fortalecimiento Organizacional y Simplificación de Procesos es el resultado del ejercicio de Direccionamiento Estratégico y Planeación, así como de los resultados obtenidos por la entidad | G43: GRUPO INTERNO DE TRABAJO DE TRANSFORMACIÓN ORGANIZACIONAL | H43: 2018-11-28 | I43: GRUPO INTERNO DE TRABAJO DE TRANSFORMACIÓN ORGANIZACIONAL | J43: Sistemas de Información corporativos | K43: XLS -PDF | L43: Español | M43: INFORMACIÓN PÚBLICA CLASIFICADA | N43: N/A | O43: N/A | P43: N/A | Q43: N/A | R43: N/A | S43: N/A
A44: =IF(D44<>"",VLOOKUP('ACTIVOS DE INFORMACIÓN 2020'!D44,DATA!$E$2:$F$95,2)&"-"&B44,"") -> 114-37 | B44: 37 | C44: INFORMACIÓN | D44: GRUPO INTERNO DE TRABAJO DE TRANSFORMACIÓN ORGANIZACIONAL | E44: Comunicaciones | F44: Comunicaciones generadas por parte de la oficina de planeación correspodnientes a la aporpiación del MIG | G44: GRUPO INTERNO DE TRABAJO DE TRANSFORMACIÓN ORGANIZACIONAL | H44: 2018-11-28 | I44: GRUPO INTERNO DE TRABAJO DE TRANSFORMACIÓN ORGANIZACIONAL | J44: Documentos de Archivo - electrónicos | K44: PDF | L44: Español | M44: INFORMACIÓN PÚBLICA CLASIFICADA | N44: N/A | O44: N/A | P44: N/A | Q44: N/A | R44: N/A | S44: N/A
A45: =IF(D45<>"",VLOOKUP('ACTIVOS DE INFORMACIÓN 2020'!D45,DATA!$E$2:$F$95,2)&"-"&B45,"") -> 114-38 | B45: 38 | C45: INFORMACIÓN | D45: GRUPO INTERNO DE TRABAJO DE TRANSFORMACIÓN ORGANIZACIONAL | E45: Resultados de ambiente laboral | F45: presentaciones de resultados de ambiente laboral en la entidad | G45: GRUPO INTERNO DE TRABAJO DE TRANSFORMACIÓN ORGANIZACIONAL | H45: 2018-11-28 | I45: GRUPO INTERNO DE TRABAJO DE TRANSFORMACIÓN ORGANIZACIONAL | J45: Archivos Institucionales - electrónico | K45: XLS -PDF | L45: Español | M45: INFORMACIÓN PÚBLICA CLASIFICADA | N45: N/A | O45: N/A | P45: N/A | Q45: N/A | R45: N/A | S45: N/A
A46: =IF(D46<>"",VLOOKUP('ACTIVOS DE INFORMACIÓN 2020'!D46,DATA!$E$2:$F$95,2)&"-"&B46,"") -> 114-39 | B46: 39 | C46: INFORMACIÓN | D46: GRUPO INTERNO DE TRABAJO DE TRANSFORMACIÓN ORGANIZACIONAL | E46: Planes gestión y mejoramiento de ambiente laboral | F46: estrategias diseñas o implementadas para cerrar las brechas de la medición | G46: GRUPO INTERNO DE TRABAJO DE TRANSFORMACIÓN ORGANIZACIONAL | H46: 2018-11-28 | I46: GRUPO INTERNO DE TRABAJO DE TRANSFORMACIÓN ORGANIZACIONAL | J46: Archivos Institucionales - electrónico | K46: XLS | L46: Español | M46: INFORMACIÓN PÚBLICA CLASIFICADA | N46: N/A | O46: N/A | P46: N/A | Q46: N/A | R46: N/A | S46: N/A
A47: =IF(D47<>"",VLOOKUP('ACTIVOS DE INFORMACIÓN 2020'!D47,DATA!$E$2:$F$95,2)&"-"&B47,"") -> 114-40 | B47: 40 | C47: INFORMACIÓN | D47: GRUPO INTERNO DE TRABAJO DE TRANSFORMACIÓN ORGANIZACIONAL | E47: Actividades de apropiación del MIG | F47: Archivos de actividades y estartegias para la apropiación del modelo integrado de gestión | G47: GRUPO INTERNO DE TRABAJO DE TRANSFORMACIÓN ORGANIZACIONAL | H47: 2018-11-28 | I47: GRUPO INTERNO DE TRABAJO DE TRANSFORMACIÓN ORGANIZACIONAL | J47: Archivos Institucionales - electrónico | K47: XLS | L47: Español | M47: INFORMACIÓN PÚBLICA CLASIFICADA | N47: N/A | O47: N/A | P47: N/A | Q47: N/A | R47: N/A | S47: N/A
A48: =IF(D48<>"",VLOOKUP('ACTIVOS DE INFORMACIÓN 2020'!D48,DATA!$E$2:$F$95,2)&"-"&B48,"") -> 114-41 | B48: 41 | C48: INFORMACIÓN | D48: GRUPO INTERNO DE TRABAJO DE TRANSFORMACIÓN ORGANIZACIONAL | E48: Informes | F48: Informes correspondientes a la apropiación del modelo integrado de gestión | G48: GRUPO INTERNO DE TRABAJO DE TRANSFORMACIÓN ORGANIZACIONAL | H48: 2018-11-28 | I48: GRUPO INTERNO DE TRABAJO DE TRANSFORMACIÓN ORGANIZACIONAL | J48: Documentos de Archivo - electrónicos | K48: PDF | L48: Español | M48: INFORMACIÓN PÚBLICA CLASIFICADA | N48: N/A | O48: N/A | P48: N/A | Q48: N/A | R48: N/A | S48: N/A
A49: =IF(D49<>"",VLOOKUP('ACTIVOS DE INFORMACIÓN 2020'!D49,DATA!$E$2:$F$95,2)&"-"&B49,"") -> 114-42 | B49: 42 | C49: INFORMACIÓN | D49: GRUPO INTERNO DE TRABAJO DE TRANSFORMACIÓN ORGANIZACIONAL | E49: Autodiagnóstico | F49: Instrumento diseñado para que todas las entidades públicas, puedan determinar en cualquier momento, su estado de desarrollo frente a temas puntuales de su gestión y con base en ello establecer medidas y acciones de planeación para su mejoramiento continuo | G49: GRUPO INTERNO DE TRABAJO DE TRANSFORMACIÓN ORGANIZACIONAL | H49: 2018-11-28 | I49: GRUPO INTERNO DE TRABAJO DE TRANSFORMACIÓN ORGANIZACIONAL | J49: Documentos de Archivo - electrónicos | K49: PDF | L49: Español | M49: INFORMACIÓN PÚBLICA CLASIFICADA | N49: N/A | O49: N/A | P49: N/A | Q49: N/A | R49: N/A | S49: N/A
A50: =IF(D50<>"",VLOOKUP('ACTIVOS DE INFORMACIÓN 2020'!D50,DATA!$E$2:$F$95,2)&"-"&B50,"") -> 114-43 | B50: 43 | C50: INFORMACIÓN | D50: GRUPO INTERNO DE TRABAJO DE TRANSFORMACIÓN ORGANIZACIONAL | E50: Plan de mejoramiento | F50: Conjunto de acciones planteadas por la entidad con el fin de cerrar las brechas identificadas en los autodiagnosticos | G50: GRUPO INTERNO DE TRABAJO DE TRANSFORMACIÓN ORGANIZACIONAL | H50: 2018-11-28 | I50: GRUPO INTERNO DE TRABAJO DE TRANSFORMACIÓN ORGANIZACIONAL | J50: Documentos de Archivo - electrónicos | K50: XLS -PDF | L50: Español | M50: INFORMACIÓN PÚBLICA CLASIFICADA | N50: N/A | O50: N/A | P50: N/A | Q50: N/A | R50: N/A | S50: N/A
A51: =IF(D51<>"",VLOOKUP('ACTIVOS DE INFORMACIÓN 2020'!D51,DATA!$E$2:$F$95,2)&"-"&B51,"") -> 114-44 | B51: 44 | C51: INFORMACIÓN | D51: GRUPO INTERNO DE TRABAJO DE TRANSFORMACIÓN ORGANIZACIONAL | E51: Listados de asistencia | F51: Son las asesoria a las diferentes dependencias por parte de los asesores de politicas del GIT de Transformación Organizacional con el fin de generar recomendaciones y lineamientos frente a los temas del MIPG | G51: GRUPO INTERNO DE TRABAJO DE TRANSFORMACIÓN ORGANIZACIONAL | H51: 2018-11-28 | I51: GRUPO INTERNO DE TRABAJO DE TRANSFORMACIÓN ORGANIZACIONAL | J51: Sistemas de Información corporativos | K51: PDF | L51: Español | M51: INFORMACIÓN PÚBLICA CLASIFICADA | N51: N/A | O51: N/A | P51: N/A | Q51: N/A | R51: N/A | S51: N/A
A52: =IF(D52<>"",VLOOKUP('ACTIVOS DE INFORMACIÓN 2020'!D52,DATA!$E$2:$F$95,2)&"-"&B52,"") -> 114-45 | B52: 45 | C52: INFORMACIÓN | D52: GRUPO INTERNO DE TRABAJO DE TRANSFORMACIÓN ORGANIZACIONAL | E52: Informes de seguimiento | F52: Plan de acción donde se realiza seguimiento a cada una de las accioens planteadas con el fin de generar alertas de cumplimiento | G52: GRUPO INTERNO DE TRABAJO DE TRANSFORMACIÓN ORGANIZACIONAL | H52: 2018-11-28 | I52: GRUPO INTERNO DE TRABAJO DE TRANSFORMACIÓN ORGANIZACIONAL | J52: Documentos de Archivo - electrónicos | K52: PDF | L52: Español | M52: INFORMACIÓN PÚBLICA CLASIFICADA | N52: N/A | O52: N/A | P52: N/A | Q52: N/A | R52: N/A | S52: N/A
A53: =IF(D53<>"",VLOOKUP('ACTIVOS DE INFORMACIÓN 2020'!D53,DATA!$E$2:$F$95,2)&"-"&B53,"") -> 114-46 | B53: 46 | C53: INFORMACIÓN | D53: GRUPO INTERNO DE TRABAJO DE TRANSFORMACIÓN ORGANIZACIONAL | E53: Informes de analisis de la estrategia de Grupo Comité Primario | F53: Matriz en excel donde se identifica cada uno de los temas tratados en GCP de las diferentes dependencias, también se generan recomendaciones | G53: GRUPO INTERNO DE TRABAJO DE TRANSFORMACIÓN ORGANIZACIONAL | H53: 2018-11-28 | I53: GRUPO INTERNO DE TRABAJO DE TRANSFORMACIÓN ORGANIZACIONAL | J53: Documentos de Archivo - electrónicos | K53: PDF | L53: Español | M53: INFORMACIÓN PÚBLICA CLASIFICADA | N53: N/A | O53: N/A | P53: N/A | Q53: N/A | R53: N/A | S53: N/A
A54: =IF(D54<>"",VLOOKUP('ACTIVOS DE INFORMACIÓN 2020'!D54,DATA!$E$2:$F$95,2)&"-"&B54,"") -> 114-47 | B54: 47 | C54: INFORMACIÓN | D54: GRUPO INTERNO DE TRABAJO DE TRANSFORMACIÓN ORGANIZACIONAL | E54: Listados de asistencia | F54: Es la divulgación realizada a las diferentes dependencias sobre el protocolo GCP | G54: GRUPO INTERNO DE TRABAJO DE TRANSFORMACIÓN ORGANIZACIONAL | H54: 2018-11-28 | I54: GRUPO INTERNO DE TRABAJO DE TRANSFORMACIÓN ORGANIZACIONAL | J54: Documentos de Archivo - físicos | K54: Papel | L54: Español | M54: INFORMACIÓN PÚBLICA CLASIFICADA | N54: N/A | O54: N/A | P54: N/A | Q54: N/A | R54: N/A | S54: N/A
A55: =IF(D55<>"",VLOOKUP('ACTIVOS DE INFORMACIÓN 2020'!D55,DATA!$E$2:$F$95,2)&"-"&B55,"") -> 114-48 | B55: 48 | C55: INFORMACIÓN | D55: GRUPO INTERNO DE TRABAJO DE TRANSFORMACIÓN ORGANIZACIONAL | E55: Comunicaciones | F55: Correos enviados a cada uno de los líderes donde se realizan recomendaciones sobre las actas de GCP cargadas en el SharePointo e seguimiento, control y mejora | G55: GRUPO INTERNO DE TRABAJO DE TRANSFORMACIÓN ORGANIZACIONAL | H55: 2018-11-28 | I55: SUBDIRECCIÓN ADMINISTRATIVA Y DE GESTIÓN HUMANA | J55: Documentos de Archivo - electrónicos | K55: PDF | L55: Español | M55: INFORMACIÓN PÚBLICA CLASIFICADA | N55: N/A | O55: N/A | P55: N/A | Q55: N/A | R55: N/A | S55: N/A
A56: =IF(D56<>"",VLOOKUP('ACTIVOS DE INFORMACIÓN 2020'!D56,DATA!$E$2:$F$95,2)&"-"&B56,"") -> 114-49 | B56: 49 | C56: INFORMACIÓN | D56: GRUPO INTERNO DE TRABAJO DE TRANSFORMACIÓN ORGANIZACIONAL | E56: Seguimiento Política de gestión y desempeño institucional - Seguimiento y desempeño institucional | F56: Lineamientos para la ejecucion de actividades de autoevaluación instirucional a traves del esquema de procesos | G56: GRUPO INTERNO DE TRABAJO DE TRANSFORMACIÓN ORGANIZACIONAL | H56: 2018-11-28 | I56: SUBDIRECCIÓN ADMINISTRATIVA Y DE GESTIÓN HUMANA | J56: Documentos de Archivo - electrónicos | K56: PDF | L56: Español | M56: INFORMACIÓN PÚBLICA CLASIFICADA | N56: N/A | O56: N/A | P56: N/A | Q56: N/A | R56: N/A | S56: N/A
A57: =IF(D57<>"",VLOOKUP('ACTIVOS DE INFORMACIÓN 2020'!D57,DATA!$E$2:$F$95,2)&"-"&B57,"") -> 114-50 | B57: 50 | C57: INFORMACIÓN | D57: GRUPO INTERNO DE TRABAJO DE TRANSFORMACIÓN ORGANIZACIONAL | E57: Objetos virtuales de aprendizaje - modulos virtuales | F57: Contenido académico digital relacionado con tematicas " tecnologia de información", "tecnologias de las comunicaciones", "Modelo integrado de gestión y desarrollo personal", desarrollados en formato scorm para ser implementados dentro del sistema gestor de aprendizaje- LMS- que la entidad disponga | G57: GRUPO INTERNO DE TRABAJO DE TRANSFORMACIÓN ORGANIZACIONAL | H57: 2018-11-28 | I57: GRUPO INTERNO DE TRABAJO DE TRANSFORMACIÓN ORGANIZACIONAL | J57: Portales, Intranet y Extranet | K57: HTML (Página Web) | L57: Español | M57: INFORMACIÓN PÚBLICA | N57: N/A | O57: N/A | P57: N/A | Q57: N/A | R57: N/A | S57: N/A
A58: =IF(D58<>"",VLOOKUP('ACTIVOS DE INFORMACIÓN 2020'!D58,DATA!$E$2:$F$95,2)&"-"&B58,"") -> 114-51 | B58: 51 | C58: INFORMACIÓN | D58: GRUPO INTERNO DE TRABAJO DE TRANSFORMACIÓN ORGANIZACIONAL | E58: Herramientas digitales para apropiar la gestión del conocimiento en la entidad | F58: Herramientas virtuales que apoyan la gestion de conocimiento. (micrositio, aulas virtuales y cartelera virtual), los cuales estan dentro del datacenter del mintic. | G58: GRUPO INTERNO DE TRABAJO DE TRANSFORMACIÓN ORGANIZACIONAL | H58: 2018-11-28 | I58: GRUPO INTERNO DE TRABAJO DE TRANSFORMACIÓN ORGANIZACIONAL | J58: Sistemas de Información corporativos | K58: HTML (Página Web) | L58: Español | M58: INFORMACIÓN PÚBLICA | N58: N/A | O58: N/A | P58: N/A | Q58: N/A | R58: N/A | S58: N/A
A59: =IF(D59<>"",VLOOKUP('ACTIVOS DE INFORMACIÓN 2020'!D59,DATA!$E$2:$F$95,2)&"-"&B59,"") -> 114-52 | B59: 52 | C59: INFORMACIÓN | D59: GRUPO INTERNO DE TRABAJO DE TRANSFORMACIÓN ORGANIZACIONAL | E59: Piezas Audiovisuales | F59: Documentos multimediales (audio o video) producto de la aplicación de las estrategias de conocimiento requerido y existente en la entidad, para promover y apropiar la gestión del conocimiento. | G59: GRUPO INTERNO DE TRABAJO DE TRANSFORMACIÓN ORGANIZACIONAL | H59: 2018-11-28 | I59: GRUPO INTERNO DE TRABAJO DE TRANSFORMACIÓN ORGANIZACIONAL | J59: Documentos de Archivo - electrónicos | K59: ZIP | L59: Español | M59: INFORMACIÓN PÚBLICA | N59: N/A | O59: N/A | P59: N/A | Q59: N/A | R59: N/A | S59: N/A
A60: =IF(D60<>"",VLOOKUP('ACTIVOS DE INFORMACIÓN 2020'!D60,DATA!$E$2:$F$95,2)&"-"&B60,"") -> 114-53 | B60: 53 | C60: INFORMACIÓN | D60: GRUPO INTERNO DE TRABAJO DE TRANSFORMACIÓN ORGANIZACIONAL | E60: Informe | F60: documento sobre el avance de la implementación de la gestión de conocimiento en el mintic-Estrategias de conocimiento implementadas | G60: GRUPO INTERNO DE TRABAJO DE TRANSFORMACIÓN ORGANIZACIONAL | H60: 2018-11-28 | I60: GRUPO INTERNO DE TRABAJO DE TRANSFORMACIÓN ORGANIZACIONAL | J60: Documentos de Archivo - físicos | K60: PDF | L60: Español | M60: INFORMACIÓN PÚBLICA | N60: N/A | O60: N/A | P60: N/A | Q60: N/A | R60: N/A | S60: N/A
A61: =IF(D61<>"",VLOOKUP('ACTIVOS DE INFORMACIÓN 2020'!D61,DATA!$E$2:$F$95,2)&"-"&B61,"") -> 114-54 | B61: 54 | C61: INFORMACIÓN | D61: GRUPO INTERNO DE TRABAJO DE TRANSFORMACIÓN ORGANIZACIONAL | E61: Seguimiento Política de gestión y desempeño institucional - Gestión del conocimiento y la innovación | F61: documentos sobre la implementacion de la dimension del mipg de gestion de conocimento e innovación en la entidad, | G61: GRUPO INTERNO DE TRABAJO DE TRANSFORMACIÓN ORGANIZACIONAL | H61: 2018-11-28 | I61: GRUPO INTERNO DE TRABAJO DE TRANSFORMACIÓN ORGANIZACIONAL | J61: Documentos de Archivo - electrónicos | K61: PDF | L61: Español | M61: INFORMACIÓN PÚBLICA | N61: N/A | O61: N/A | P61: N/A | Q61: N/A | R61: N/A | S61: N/A
A62: =IF(D62<>"",VLOOKUP('ACTIVOS DE INFORMACIÓN 2020'!D62,DATA!$E$2:$F$95,2)&"-"&B62,"") -> 114-55 | B62: 55 | C62: INFORMACIÓN | D62: GRUPO INTERNO DE TRABAJO DE TRANSFORMACIÓN ORGANIZACIONAL | E62: Solicitud | F62: Son las inquietudes o manifestaciones generadas por los diferentes grupos de interés | G62: GRUPO INTERNO DE TRABAJO DE TRANSFORMACIÓN ORGANIZACIONAL | H62: 2018-11-28 | I62: GRUPO INTERNO DE TRABAJO DE TRANSFORMACIÓN ORGANIZACIONAL | J62: Documentos de Archivo - electrónicos | K62: PDF | L62: Español | M62: INFORMACIÓN PÚBLICA | N62: N/A | O62: N/A | P62: N/A | Q62: N/A | R62: N/A | S62: N/A
A63: =IF(D63<>"",VLOOKUP('ACTIVOS DE INFORMACIÓN 2020'!D63,DATA!$E$2:$F$95,2)&"-"&B63,"") -> 114-56 | B63: =IF(AND(A62="",D63<>""),"LEB",IF(D63<>"",1+B62,"")) -> 56 | C63: INFORMACIÓN | D63: GRUPO INTERNO DE TRABAJO DE TRANSFORMACIÓN ORGANIZACIONAL | E63: Respuestas | F63: Son las respuestas a las inquietudes o manifestaciones generadas por los diferentes grupos de interés | G63: GRUPO INTERNO DE TRABAJO DE TRANSFORMACIÓN ORGANIZACIONAL | H63: 2018-11-28 | I63: GRUPO INTERNO DE TRABAJO DE TRANSFORMACIÓN ORGANIZACIONAL | J63: Documentos de Archivo - electrónicos | K63: XLS | L63: Español | M63: INFORMACIÓN PÚBLICA CLASIFICADA | N63: N/A | O63: N/A | P63: N/A | Q63: N/A | R63: N/A | S63: N/A
A64: =IF(D64<>"",VLOOKUP('ACTIVOS DE INFORMACIÓN 2020'!D64,DATA!$E$2:$F$95,2)&"-"&B64,"") -> 114-57 | B64: 57 | C64: INFORMACIÓN | D64: GRUPO INTERNO DE TRABAJO DE TRANSFORMACIÓN ORGANIZACIONAL | E64: Programa | F64: Contratación de medición de ambiente laboral en la entidad | G64: GRUPO INTERNO DE TRABAJO DE TRANSFORMACIÓN ORGANIZACIONAL | H64: 2018-11-28 | I64: GRUPO INTERNO DE TRABAJO DE TRANSFORMACIÓN ORGANIZACIONAL | J64: Documentos de Archivo - electrónicos | K64: PDF | L64: Español | M64: INFORMACIÓN PÚBLICA CLASIFICADA | N64: N/A | O64: N/A | P64: N/A | Q64: N/A | R64: N/A | S64: N/A
A65: =IF(D65<>"",VLOOKUP('ACTIVOS DE INFORMACIÓN 2020'!D65,DATA!$E$2:$F$95,2)&"-"&B65,"") -> 114-58 | B65: 58 | C65: INFORMACIÓN | D65: GRUPO INTERNO DE TRABAJO DE TRANSFORMACIÓN ORGANIZACIONAL | E65: Soporte digital | F65: archivos de segmentación demografica y listados de asistencia | G65: GRUPO INTERNO DE TRABAJO DE TRANSFORMACIÓN ORGANIZACIONAL | H65: 2018-11-28 | I65: GRUPO INTERNO DE TRABAJO DE TRANSFORMACIÓN ORGANIZACIONAL | J65: Documentos de Archivo - electrónicos | K65: XLS | L65: Español | M65: INFORMACIÓN PÚBLICA CLASIFICADA | N65: N/A | O65: N/A | P65: N/A | Q65: N/A | R65: N/A | S65: N/A
A66: =IF(D66<>"",VLOOKUP('ACTIVOS DE INFORMACIÓN 2020'!D66,DATA!$E$2:$F$95,2)&"-"&B66,"") -> 114-59 | B66: 59 | C66: INFORMACIÓN | D66: GRUPO INTERNO DE TRABAJO DE TRANSFORMACIÓN ORGANIZACIONAL | E66: Actividades de sensibilización | F66: Se realiza las actividades correspondientes para cerrar las brechas identificadas en la medición | G66: GRUPO INTERNO DE TRABAJO DE TRANSFORMACIÓN ORGANIZACIONAL | H66: 2018-11-28 | I66: GRUPO INTERNO DE TRABAJO ESPECIALIZADO DE RECURSOS Y ACTUACIONES ADMINISTRATIVAS | J66: Documentos de Archivo - electrónicos | K66: pdf | L66: Español | M66: INFORMACIÓN PÚBLICA CLASIFICADA | N66: N/A | O66: N/A | P66: N/A | Q66: N/A | R66: N/A | S66: N/A
A67: =IF(D67<>"",VLOOKUP('ACTIVOS DE INFORMACIÓN 2020'!D67,DATA!$E$2:$F$95,2)&"-"&B67,"") -> 114-60 | B67: 60 | C67: INFORMACIÓN | D67: GRUPO INTERNO DE TRABAJO DE TRANSFORMACIÓN ORGANIZACIONAL | E67: Informe de resultados | F67: Presentaciones de resultados de ambiente laboral en la entidad | G67: GRUPO INTERNO DE TRABAJO DE TRANSFORMACIÓN ORGANIZACIONAL | H67: 2018-11-28 | I67: GRUPO INTERNO DE TRABAJO DE TRANSFORMACIÓN ORGANIZACIONAL | J67: Portales, Intranet y Extranet | K67: HTML (Página Web) | L67: Español | M67: INFORMACIÓN PÚBLICA CLASIFICADA | N67: N/A | O67: N/A | P67: N/A | Q67: N/A | R67: N/A | S67: N/A
A68: =IF(D68<>"",VLOOKUP('ACTIVOS DE INFORMACIÓN 2020'!D68,DATA!$E$2:$F$95,2)&"-"&B68,"") -> 110-61 | B68: 61 | C68: INFORMACIÓN | D68: OFICINA ASESORA DE PLANEACIÓN Y ESTUDIOS SECTORIALES | E68: Citación | F68: Son las convocatorias generadas para las reuniones ordinarias y extraordinarias de los miembros del Comité MIG | G68: GRUPO INTERNO DE TRABAJO DE TRANSFORMACIÓN ORGANIZACIONAL | H68: 2018-11-28 | I68: GRUPO INTERNO DE TRABAJO DE TRANSFORMACIÓN ORGANIZACIONAL | J68: Sistemas de Información corporativos | K68: HTML (Página Web) | L68: Español | M68: INFORMACIÓN PÚBLICA CLASIFICADA | N68: N/A | O68: N/A | P68: N/A | Q68: N/A | R68: N/A | S68: N/A
A69: =IF(D69<>"",VLOOKUP('ACTIVOS DE INFORMACIÓN 2020'!D69,DATA!$E$2:$F$95,2)&"-"&B69,"") -> 110-62 | B69: 62 | C69: INFORMACIÓN | D69: OFICINA ASESORA DE PLANEACIÓN Y ESTUDIOS SECTORIALES | E69: Correos electronicos de sesiones virtuales | F69: Se envia correo de inicio de sesión, con la presentación, temas propuestos y documentos soporte | G69: GRUPO INTERNO DE TRABAJO DE TRANSFORMACIÓN ORGANIZACIONAL | H69: 2018-11-28 | I69: GRUPO INTERNO DE TRABAJO DE TRANSFORMACIÓN ORGANIZACIONAL | J69: Documentos de Archivo - electrónicos | K69: PDF | L69: Español | M69: INFORMACIÓN PÚBLICA CLASIFICADA | N69: N/A | O69: N/A | P69: N/A | Q69: N/A | R69: N/A | S69: N/A
A70: =IF(D70<>"",VLOOKUP('ACTIVOS DE INFORMACIÓN 2020'!D70,DATA!$E$2:$F$95,2)&"-"&B70,"") -> 110-63 | B70: 63 | C70: INFORMACIÓN | D70: OFICINA ASESORA DE PLANEACIÓN Y ESTUDIOS SECTORIALES | E70: Acta | F70: Documento generado despues de la finalización del comité MIG con el fin de registrar los temas tratados y decisiones tomadas en la sesión | G70: GRUPO INTERNO DE TRABAJO DE TRANSFORMACIÓN ORGANIZACIONAL | H70: 2018-11-28 | I70: GRUPO INTERNO DE TRABAJO DE TRANSFORMACIÓN ORGANIZACIONAL | J70: Documentos de Archivo - físicos | K70: PDF | L70: Español | M70: INFORMACIÓN PÚBLICA CLASIFICADA | N70: N/A | O70: N/A | P70: N/A | Q70: N/A | R70: N/A | S70: N/A
A71: =IF(D71<>"",VLOOKUP('ACTIVOS DE INFORMACIÓN 2020'!D71,DATA!$E$2:$F$95,2)&"-"&B71,"") -> 110-64 | B71: 64 | C71: INFORMACIÓN | D71: OFICINA ASESORA DE PLANEACIÓN Y ESTUDIOS SECTORIALES | E71: Presentaciones | F71: Es el medio usado para exponer las ideas de los temas propuestos | G71: GRUPO INTERNO DE TRABAJO DE TRANSFORMACIÓN ORGANIZACIONAL | H71: 2018-11-28 | I71: GRUPO INTERNO DE TRABAJO DE TRANSFORMACIÓN ORGANIZACIONAL | J71: Documentos de Archivo - electrónicos | K71: PDF | L71: Español | M71: INFORMACIÓN PÚBLICA CLASIFICADA | N71: N/A | O71: N/A | P71: N/A | Q71: N/A | R71: N/A | S71: N/A
A72: =IF(D72<>"",VLOOKUP('ACTIVOS DE INFORMACIÓN 2020'!D72,DATA!$E$2:$F$95,2)&"-"&B72,"") -> 110-65 | B72: 65 | C72: INFORMACIÓN | D72: OFICINA ASESORA DE PLANEACIÓN Y ESTUDIOS SECTORIALES | E72: Listado de asistencia | F72: Evidencia de los asistentes a la sesión del comité MIG | G72: GRUPO INTERNO DE TRABAJO DE TRANSFORMACIÓN ORGANIZACIONAL | H72: 2018-11-28 | I72: GRUPO INTERNO DE TRABAJO DE FORTALECIMIENTO DE LAS RELACIONES CON LOS GRUPOS DE INTERES | J72: Sistemas de Información corporativos | K72: PDF | L72: Español | M72: INFORMACIÓN PÚBLICA CLASIFICADA | N72: N/A | O72: N/A | P72: N/A | Q72: N/A | R72: N/A | S72: N/A
A73: =IF(D73<>"",VLOOKUP('ACTIVOS DE INFORMACIÓN 2020'!D73,DATA!$E$2:$F$95,2)&"-"&B73,"") -> 110-66 | B73: =IF(AND(A72="",D73<>""),"LEB",IF(D73<>"",1+B72,"")) -> 66 | C73: INFORMACIÓN | D73: OFICINA ASESORA DE PLANEACIÓN Y ESTUDIOS SECTORIALES | E73: Documentos soporte de los temas tratados en la sesión | F73: Son los documentos necesarios para poder emitir una aprobación o tener conocimiento de los temas propuestos | G73: GRUPO INTERNO DE TRABAJO DE TRANSFORMACIÓN ORGANIZACIONAL | H73: 2018-11-28 | I73: GRUPO INTERNO DE TRABAJO DE FORTALECIMIENTO DE LAS RELACIONES CON LOS GRUPOS DE INTERES | J73: Sistemas de Información corporativos | K73: PDF | L73: Español | M73: INFORMACIÓN PÚBLICA CLASIFICADA | N73: N/A | O73: N/A | P73: N/A | Q73: N/A | R73: N/A | S73: N/A
A74: =IF(D74<>"",VLOOKUP('ACTIVOS DE INFORMACIÓN 2020'!D74,DATA!$E$2:$F$95,2)&"-"&B74,"") -> 110-67 | B74: 67 | C74: INFORMACIÓN | D74: OFICINA ASESORA DE PLANEACIÓN Y ESTUDIOS SECTORIALES | E74: Documentación de apoyo de los procesos de Fortalecimiento Organizacional, Direccionamiento Estratégico y Gestión de la Información Sectorial | F74: Manuales, Procedimientos, Instructivos y Formatos que contiene las políticas y lineamientos a seguirse en la ejecución de los procesos. | G74: GRUPO INTERNO DE TRABAJO DE TRANSFORMACIÓN ORGANIZACIONAL | H74: 2018-11-28 | I74: SUBDIRECCIÓN ADMINISTRATIVA Y DE GESTIÓN HUMANA | J74: Documentos de Archivo - electrónicos | K74: PDF | L74: Español | M74: INFORMACIÓN PÚBLICA CLASIFICADA | N74: N/A | O74: N/A | P74: N/A | Q74: N/A | R74: N/A | S74: N/A
A75: =IF(D75<>"",VLOOKUP('ACTIVOS DE INFORMACIÓN 2020'!D75,DATA!$E$2:$F$95,2)&"-"&B75,"") -> 110-68 | B75: 68 | C75: INFORMACIÓN | D75: OFICINA ASESORA DE PLANEACIÓN Y ESTUDIOS SECTORIALES | E75: Plan | F75: Formulación de una estrategia de seguimieto para mitigar actos de corrupción | G75: GRUPO INTERNO DE TRABAJO DE TRANSFORMACIÓN ORGANIZACIONAL | H75: 2018-11-28 | I75: SUBDIRECCIÓN ADMINISTRATIVA Y DE GESTIÓN HUMANA | J75: Documentos de Archivo - electrónicos | K75: XLS | L75: Español | M75: INFORMACIÓN PÚBLICA CLASIFICADA | N75: N/A | O75: N/A | P75: N/A | Q75: N/A | R75: N/A | S75: N/A
A76: =IF(D76<>"",VLOOKUP('ACTIVOS DE INFORMACIÓN 2020'!D76,DATA!$E$2:$F$95,2)&"-"&B76,"") -> 110-69 | B76: 69 | C76: INFORMACIÓN | D76: OFICINA ASESORA DE PLANEACIÓN Y ESTUDIOS SECTORIALES | E76: Comunicaciones | F76: Respuesta a requerimientos de entes externos o entesde control | G76: GRUPO INTERNO DE TRABAJO DE TRANSFORMACIÓN ORGANIZACIONAL | H76: 2018-11-28 | I76: SUBDIRECCIÓN ADMINISTRATIVA Y DE GESTIÓN HUMANA | J76: Documentos de Archivo - electrónicos | K76: PDF | L76: Español | M76: INFORMACIÓN PÚBLICA CLASIFICADA | N76: N/A | O76: N/A | P76: N/A | Q76: N/A | R76: N/A | S76: N/A
A77: =IF(D77<>"",VLOOKUP('ACTIVOS DE INFORMACIÓN 2020'!D77,DATA!$E$2:$F$95,2)&"-"&B77,"") -> 110-70 | B77: 70 | C77: INFORMACIÓN | D77: OFICINA ASESORA DE PLANEACIÓN Y ESTUDIOS SECTORIALES | E77: Listado de asistencia | F77: Mesas de trabajo para la formulación, consolidación y seguimiento al plan | G77: GRUPO INTERNO DE TRABAJO DE TRANSFORMACIÓN ORGANIZACIONAL | H77: 2018-11-28 | I77: SUBDIRECCIÓN ADMINISTRATIVA Y DE GESTIÓN HUMANA | J77: Documentos de Archivo - electrónicos | K77: PDF | L77: Español | M77: INFORMACIÓN PÚBLICA CLASIFICADA | N77: N/A | O77: N/A | P77: N/A | Q77: N/A | R77: N/A | S77: N/A
A78: =IF(D78<>"",VLOOKUP('ACTIVOS DE INFORMACIÓN 2020'!D78,DATA!$E$2:$F$95,2)&"-"&B78,"") -> 114-71 | B78: 71 | C78: INFORMACIÓN | D78: GRUPO INTERNO DE TRABAJO DE TRANSFORMACIÓN ORGANIZACIONAL | E78: Plan de mejoramiento de auditoria externa de calidad | F78: Son las acciones a tomar (correctivas, corrección) que se deben adelantar en un período determinado con el fin de subsanar o corregir las no conformidades encontradas en la auditoria externa de calidad. | G78: =IF(D78="","",D78) -> GRUPO INTERNO DE TRABAJO DE TRANSFORMACIÓN ORGANIZACIONAL | H78: 2020-09-07 | I78: GRUPO INTERNO DE TRABAJO DE TRANSFORMACIÓN ORGANIZACIONAL | J78: Sistemas de Información corporativos | K78: XLS | L78: Español | M78: INFORMACIÓN PÚBLICA CLASIFICADA | N78: N/A | O78: N/A | P78: N/A | Q78: N/A | R78: N/A | S78: N/A
A79: =IF(D79<>"",VLOOKUP('ACTIVOS DE INFORMACIÓN 2020'!D79,DATA!$E$2:$F$95,2)&"-"&B79,"") -> 114-72 | B79: 72 | C79: INFORMACIÓN | D79: GRUPO INTERNO DE TRABAJO DE TRANSFORMACIÓN ORGANIZACIONAL | E79: Conocimiento | F79: Estrategias de conocimiento implementadas | G79: =IF(D79="","",D79) -> GRUPO INTERNO DE TRABAJO DE TRANSFORMACIÓN ORGANIZACIONAL | H79: 2020-09-07 | I79: GRUPO INTERNO DE TRABAJO DE TRANSFORMACIÓN ORGANIZACIONAL | J79: Sistemas de Información corporativos | K79: PDF | L79: Español | M79: INFORMACIÓN PÚBLICA | N79: N/A | O79: N/A | P79: N/A | Q79: N/A | R79: N/A | S79: N/A
A80: =IF(D80<>"",VLOOKUP('ACTIVOS DE INFORMACIÓN 2020'!D80,DATA!$E$2:$F$95,2)&"-"&B80,"") -> 114-73 | B80: =IF(AND(A79="",D80<>""),"LEB",IF(D80<>"",1+B79,"")) -> 73 | C80: INFORMACIÓN | D80: GRUPO INTERNO DE TRABAJO DE TRANSFORMACIÓN ORGANIZACIONAL | E80: Documentos historicos | F80: Backup de los documentos del Modelo Integrado de Gestión anteriores al 2017 | G80: =IF(D80="","",D80) -> GRUPO INTERNO DE TRABAJO DE TRANSFORMACIÓN ORGANIZACIONAL | H80: 2020-09-10 | I80: GRUPO INTERNO DE TRABAJO DE TRANSFORMACIÓN ORGANIZACIONAL | J80: Sistemas de Información corporativos | K80: XLS | L80: Español | M80: INFORMACIÓN PÚBLICA CLASIFICADA | N80: N/A | O80: N/A | P80: N/A | Q80: N/A | R80: N/A | S80: N/A
A81: =IF(D81<>"",VLOOKUP('ACTIVOS DE INFORMACIÓN 2020'!D81,DATA!$E$2:$F$95,2)&"-"&B81,"") -> 114-74 | B81: 74 | C81: RECURSO HUMANO | D81: GRUPO INTERNO DE TRABAJO DE TRANSFORMACIÓN ORGANIZACIONAL | E81: Colaboradores Planta | F81: Personas con cargos administrativos (provisional, carrera administrativa o Libre nombramiento y remoción) que ejercen el rol de asesor dentro del GIT de Trasformación Organizacional y que poseen información de interés de la entidad. | G81: N/A | H81: N/A | I81: N/A | J81: N/A | K81: N/A | L81: N/A | M81: INFORMACIÓN PÚBLICA CLASIFICADA | N81: N/A | O81: N/A | P81: N/A | Q81: N/A | R81: N/A | S81: N/A
A82: =IF(D82<>"",VLOOKUP('ACTIVOS DE INFORMACIÓN 2020'!D82,DATA!$E$2:$F$95,2)&"-"&B82,"") -> 114-75 | B82: 75 | C82: RECURSO HUMANO | D82: GRUPO INTERNO DE TRABAJO DE TRANSFORMACIÓN ORGANIZACIONAL | E82: Colaboradores contratistas | F82: Personas con contrato de prestación de servicios que ejercen el rol de asesor dentro del GIT de Trasformación Organizacional y que poseen información de interés de la entidad. | G82: N/A | H82: N/A | I82: N/A | J82: N/A | K82: N/A | L82: N/A | M82: INFORMACIÓN PÚBLICA CLASIFICADA | N82: N/A | O82: N/A | P82: N/A | Q82: N/A | R82: N/A | S82: N/A
A83: =IF(D83<>"",VLOOKUP('ACTIVOS DE INFORMACIÓN 2020'!D83,DATA!$E$2:$F$95,2)&"-"&B83,"") -> 112-76 | B83: 76 | C83: INFORMACIÓN | D83: GRUPO INTERNO DE TRABAJO DE SEGUIMIENTO A LA ESTRATEGIA | E83: Plan de Acción | F83: Plan de Acción Anual es la programación anual de las iniciativas, proyectos, actividades, y recursos que va a desarrollar en la vigencia cada dependencia de la entidad y está articulado con el Plan Estratégico Sectorial e Institucional. | G83: =IF(D83="","",D83) -> GRUPO INTERNO DE TRABAJO DE SEGUIMIENTO A LA ESTRATEGIA | H83: 2010-12-31 | I83: OFICINA DE TECNOLOGIAS DE LA INFORMACIÓN | J83: Archivos Institucionales - electrónico | K83: XLS -PDF | L83: Español | M83: INFORMACIÓN PÚBLICA | N83: NO | O83: N/A | P83: N/A | Q83: N/A | R83: N/A | S83: N/A
A84: =IF(D84<>"",VLOOKUP('ACTIVOS DE INFORMACIÓN 2020'!D84,DATA!$E$2:$F$95,2)&"-"&B84,"") -> 112-77 | B84: 77 | C84: INFORMACIÓN | D84: GRUPO INTERNO DE TRABAJO DE SEGUIMIENTO A LA ESTRATEGIA | E84: Plan Estratégico Sectorial | F84: Plan Estratégico Sectorial: organiza y orienta estratégicamente las acciones de las entidades pertenecientes a un sector administrativo en un plazo de 4 años, para alcanzar objetivos acordes con su misión y con el Plan Nacional de Desarrollo.Plan estratégico, comunicaciones y anexos referentes al plan estratégico | G84: =IF(D84="","",D84) -> GRUPO INTERNO DE TRABAJO DE SEGUIMIENTO A LA ESTRATEGIA | H84: 2015-07-30 | I84: OFICINA DE TECNOLOGIAS DE LA INFORMACIÓN | J84: Archivos Institucionales - electrónico | K84: HTML (Página Web) | L84: Español | M84: INFORMACIÓN PÚBLICA | N84: NO | O84: N/A | P84: N/A | Q84: N/A | R84: N/A | S84: N/A
A85: =IF(D85<>"",VLOOKUP('ACTIVOS DE INFORMACIÓN 2020'!D85,DATA!$E$2:$F$95,2)&"-"&B85,"") -> 112-78 | B85: 78 | C85: INFORMACIÓN | D85: GRUPO INTERNO DE TRABAJO DE SEGUIMIENTO A LA ESTRATEGIA | E85: Informe al congreso | F85: Describe los avances del Ministerio y entidades adscritas y vinculadas, de las metas anualmente en un periodo evaludado del plan estratégico, plan de acción, y ejecución presupuestal. | G85: =IF(D85="","",D85) -> GRUPO INTERNO DE TRABAJO DE SEGUIMIENTO A LA ESTRATEGIA | H85: 2015-07-30 | I85: OFICINA DE TECNOLOGIAS DE LA INFORMACIÓN | J85: Archivos Institucionales - electrónico | K85: XLS -PDF | L85: Español | M85: INFORMACIÓN PÚBLICA | N85: NO | O85: N/A | P85: N/A | Q85: N/A | R85: N/A | S85: N/A
A86: =IF(D86<>"",VLOOKUP('ACTIVOS DE INFORMACIÓN 2020'!D86,DATA!$E$2:$F$95,2)&"-"&B86,"") -> 112-79 | B86: 79 | C86: INFORMACIÓN | D86: GRUPO INTERNO DE TRABAJO DE SEGUIMIENTO A LA ESTRATEGIA | E86: Proyectos de gestión institucional, Proyectos misionales | F86: Listado de proyectos, cada proyecto es un conjunto de actividades limitadas en el tiempo, producto de un proceso de planificación que busca alcanzar los objetivos misionales y de apoyo definidos en el Plan Nacional de Desarrollo, Plan Estratégico Sectorial e Institucional, que se encuentra en el Plan de Acción, el cual está ajustado a un presupuesto y cuenta con criterios de calidad. | G86: =IF(D86="","",D86) -> GRUPO INTERNO DE TRABAJO DE SEGUIMIENTO A LA ESTRATEGIA | H86: 2019-07-30 | I86: OFICINA DE TECNOLOGIAS DE LA INFORMACIÓN | J86: Archivos Institucionales - electrónico | K86: PDF | L86: Español | M86: INFORMACIÓN PÚBLICA | N86: NO | O86: N/A | P86: N/A | Q86: N/A | R86: N/A | S86: N/A
A87: =IF(D87<>"",VLOOKUP('ACTIVOS DE INFORMACIÓN 2020'!D87,DATA!$E$2:$F$95,2)&"-"&B87,"") -> 112-80 | B87: 80 | C87: INFORMACIÓN | D87: GRUPO INTERNO DE TRABAJO DE SEGUIMIENTO A LA ESTRATEGIA | E87: Avances trimestrales del Plan de Acción | F87: Seguimiento y avance en los proyectos, actividades, indicadores, riesgos y presupuesto de las iniciativas del Plan de Acción. | G87: =IF(D87="","",D87) -> GRUPO INTERNO DE TRABAJO DE SEGUIMIENTO A LA ESTRATEGIA | H87: 2014-05-01 | I87: OFICINA DE TECNOLOGIAS DE LA INFORMACIÓN | J87: Archivos Institucionales - electrónico | K87: XLS -PDF | L87: Español | M87: INFORMACIÓN PÚBLICA | N87: NO | O87: N/A | P87: N/A | Q87: N/A | R87: N/A | S87: N/A
A88: =IF(D88<>"",VLOOKUP('ACTIVOS DE INFORMACIÓN 2020'!D88,DATA!$E$2:$F$95,2)&"-"&B88,"") -> 112-81 | B88: 81 | C88: INFORMACIÓN | D88: GRUPO INTERNO DE TRABAJO DE SEGUIMIENTO A LA ESTRATEGIA | E88: Informe de Gestión del Plan de Acción | F88: Resultados de la gestión del Plan de Acción indicando avance final consolidado de la gestión y sus indicadores. | G88: =IF(D88="","",D88) -> GRUPO INTERNO DE TRABAJO DE SEGUIMIENTO A LA ESTRATEGIA | H88: 2017-01-31 | I88: OFICINA DE TECNOLOGIAS DE LA INFORMACIÓN | J88: Archivos Institucionales - electrónico | K88: PDF | L88: Español | M88: INFORMACIÓN PÚBLICA | N88: NO | O88: N/A | P88: N/A | Q88: N/A | R88: N/A | S88: N/A
A89: =IF(D89<>"",VLOOKUP('ACTIVOS DE INFORMACIÓN 2020'!D89,DATA!$E$2:$F$95,2)&"-"&B89,"") -> 110-82 | B89: 82 | C89: INFORMACIÓN | D89: OFICINA ASESORA DE PLANEACIÓN Y ESTUDIOS SECTORIALES | E89: Comité Sectorial de Gestión y Desempeño | F89: Actas y listados de asistencia del comité sectorial de gestión del desempeño | G89: =IF(D89="","",D89) -> OFICINA ASESORA DE PLANEACIÓN Y ESTUDIOS SECTORIALES | H89: 2018-06-06 | I89: GRUPO INTERNO DE TRABAJO DE FORTALECIMIENTO DE LAS RELACIONES CON LOS GRUPOS DE INTERES | J89: Documentos de Archivo - físicos | K89: Papel | L89: Español | M89: INFORMACIÓN PÚBLICA | N89: NO | O89: N/A | P89: N/A | Q89: N/A | R89: N/A | S89: N/A
A90: =IF(D90<>"",VLOOKUP('ACTIVOS DE INFORMACIÓN 2020'!D90,DATA!$E$2:$F$95,2)&"-"&B90,"") -> 110-83 | B90: 83 | C90: INFORMACIÓN | D90: OFICINA ASESORA DE PLANEACIÓN Y ESTUDIOS SECTORIALES | E90: Boletín seguimiento a metas de gobierno | F90: Boletín de periodicidad Trimestral por medio del cual se observa la evolución de los compromisos del Gobierno, a través del seguimiento que realiza la Oficina Asesora de Planeación y Estudios Sectoriales. | G90: =IF(D90="","",D90) -> OFICINA ASESORA DE PLANEACIÓN Y ESTUDIOS SECTORIALES | H90: 2018-06-06 | I90: OFICINA DE TECNOLOGIAS DE LA INFORMACIÓN | J90: Documentos de Archivo - electrónicos | K90: HTML (Página Web) | L90: Español | M90: INFORMACIÓN PÚBLICA | N90: NO | O90: N/A | P90: N/A | Q90: N/A | R90: N/A | S90: N/A
A91: =IF(D91<>"",VLOOKUP('ACTIVOS DE INFORMACIÓN 2020'!D91,DATA!$E$2:$F$95,2)&"-"&B91,"") -> 112-84 | B91: 84 | C91: INFORMACIÓN | D91: GRUPO INTERNO DE TRABAJO DE SEGUIMIENTO A LA ESTRATEGIA | E91: Actas de Comité Primario | F91: Actas de las reuniones de comites primarios realizados por el grupo interno de trabajo de seguimiento a la estrategia | G91: =IF(D91="","",D91) -> GRUPO INTERNO DE TRABAJO DE SEGUIMIENTO A LA ESTRATEGIA | H91: 2019-06-06 | I91: GRUPO INTERNO DE TRABAJO DE SEGUIMIENTO A LA GESTIÓN DE INGRESOS DEL FONDO TIC | J91: Documentos de Archivo - electrónicos | K91: HTML (Página Web) | L91: Español | M91: INFORMACIÓN PÚBLICA | N91: NO | O91: N/A | P91: N/A | Q91: N/A | R91: N/A | S91: N/A
A92: =IF(D92<>"",VLOOKUP('ACTIVOS DE INFORMACIÓN 2020'!D92,DATA!$E$2:$F$95,2)&"-"&B92,"") -> 112-85 | B92: 85 | C92: RECURSO HUMANO | D92: GRUPO INTERNO DE TRABAJO DE SEGUIMIENTO A LA ESTRATEGIA | E92: Colaboradores Planta | F92: Estos perfiles son usado para el desarrollo de todos los procesos de la entidad operaciones internas asesora a las áreas en la planeación estratégica, asesoría y seguimiento del plan de acción, plan estratégico sectorial, informes relacionados al seguimiento de metas de gobierno sinergia ; presta servicios a los usuarios y partes interesadas servicios tanto internos como externos. Realiza la gestión de avance en los proyectos misionales y de soporte institucional para dar a conocer a las partes interesadas. Asegura que la información publicada en planes proyectos programas, cuenta con la calidad, veracidad e intregridad. | G92: N/A | H92: N/A | I92: N/A | J92: N/A | K92: N/A | L92: N/A | M92: INFORMACIÓN PÚBLICA | N92: N/A | O92: N/A | P92: N/A | Q92: N/A | R92: N/A | S92: N/A
A93: =IF(D93<>"",VLOOKUP('ACTIVOS DE INFORMACIÓN 2020'!D93,DATA!$E$2:$F$95,2)&"-"&B93,"") -> 112-86 | B93: 86 | C93: INFORMACIÓN | D93: GRUPO INTERNO DE TRABAJO DE SEGUIMIENTO A LA ESTRATEGIA | E93: Plan estrategico institucional | F93: Plan Estratégico Institucional: entiéndase como Plan Indicativo Cuatrienal como lo establece la Ley 152 de 1994. Instrumento que organiza y orienta estratégicamente las acciones de la entidad en un plazo de 4 años, para alcanzar objetivos acordes con su misión y con el Plan Nacional de Desarrollo. (Gobierno de Colombia, 2018-2022) | G93: =IF(D93="","",D93) -> GRUPO INTERNO DE TRABAJO DE SEGUIMIENTO A LA ESTRATEGIA | H93: 2015-07-30 | I93: OFICINA DE TECNOLOGIAS DE LA INFORMACIÓN | J93: Documentos de Archivo - electrónicos | K93: HTML (Página Web) | L93: Español | M93: INFORMACIÓN PÚBLICA | N93: N/A | O93: N/A | P93: N/A | Q93: N/A | R93: N/A | S93: N/A
A94: =IF(D94<>"",VLOOKUP('ACTIVOS DE INFORMACIÓN 2020'!D94,DATA!$E$2:$F$95,2)&"-"&B94,"") -> 112-87 | B94: 87 | C94: INFORMACIÓN | D94: GRUPO INTERNO DE TRABAJO DE SEGUIMIENTO A LA ESTRATEGIA | E94: Avances trimestrales del Plan estratégico institucional | F94: Seguimiento y avance en las metas del Plan de Estratégico institucional. | G94: =IF(D94="","",D94) -> GRUPO INTERNO DE TRABAJO DE SEGUIMIENTO A LA ESTRATEGIA | H94: 2020-08-14 | I94: OFICINA DE TECNOLOGIAS DE LA INFORMACIÓN | J94: Archivos Institucionales - físicos | K94: HTML (Página Web) | L94: Español | M94: INFORMACIÓN PÚBLICA | N94: N/A | O94: N/A | P94: N/A | Q94: N/A | R94: N/A | S94: N/A
A95: =IF(D95<>"",VLOOKUP('ACTIVOS DE INFORMACIÓN 2020'!D95,DATA!$E$2:$F$95,2)&"-"&B95,"") -> 112-88 | B95: 88 | C95: INFORMACIÓN | D95: GRUPO INTERNO DE TRABAJO DE SEGUIMIENTO A LA ESTRATEGIA | E95: Avances trimestrales del Plan estratégico sectorial | F95: Seguimiento y avance en las metas del Plan de Estratégico institucional. | G95: =IF(D95="","",D95) -> GRUPO INTERNO DE TRABAJO DE SEGUIMIENTO A LA ESTRATEGIA | H95: 2020-08-14 | I95: OFICINA DE TECNOLOGIAS DE LA INFORMACIÓN | J95: Documentos de Archivo - electrónicos | K95: HTML (Página Web) | L95: Español | M95: INFORMACIÓN PÚBLICA | N95: N/A | O95: N/A | P95: N/A | Q95: N/A | R95: N/A | S95: N/A
A96: =IF(D96<>"",VLOOKUP('ACTIVOS DE INFORMACIÓN 2020'!D96,DATA!$E$2:$F$95,2)&"-"&B96,"") -> 111-89 | B96: 89 | C96: INFORMACIÓN | D96: GRUPO INTERNO DE TRABAJO DE PLANEACIÓN Y SEGUIMIENTO PRESUPUESTAL | E96: Documentos formulación de proyectos | F96: Estos documentos son elaborados por los Formualdores de los proyectos de inversión los cuales quedan cargados en la MGA de Departamento Nacional de Planeación. | G96: =IF(D96="","",D96) -> GRUPO INTERNO DE TRABAJO DE PLANEACIÓN Y SEGUIMIENTO PRESUPUESTAL | H96: 2019-01-01 | I96: GRUPO INTERNO DE TRABAJO DE PLANEACIÓN Y SEGUIMIENTO PRESUPUESTAL | J96: Documentos de Archivo - electrónicos | K96: HTML (Página Web) | L96: Español | M96: INFORMACIÓN PÚBLICA | N96: N/A | O96: N/A | P96: N/A | Q96: N/A | R96: N/A | S96: N/A
A97: =IF(D97<>"",VLOOKUP('ACTIVOS DE INFORMACIÓN 2020'!D97,DATA!$E$2:$F$95,2)&"-"&B97,"") -> 111-90 | B97: 90 | C97: INFORMACIÓN | D97: GRUPO INTERNO DE TRABAJO DE PLANEACIÓN Y SEGUIMIENTO PRESUPUESTAL | E97: Circulares de programación | F97: Son documentos expedidos por entidades involucradas al proceso de proyectos de inversión como Departamento Nacional de Planeación y Ministerio Hacienda y Crédito Público o el Ministerio de Comunicaciones en donde se indica las fechas para entregar los proyectos a formular o el presupuesto a solicitar para la siguiente vigencia. | G97: =IF(D97="","",D97) -> GRUPO INTERNO DE TRABAJO DE PLANEACIÓN Y SEGUIMIENTO PRESUPUESTAL | H97: 2018-11-28 | I97: GRUPO INTERNO DE TRABAJO DE PLANEACIÓN Y SEGUIMIENTO PRESUPUESTAL | J97: Documentos de Archivo - electrónicos | K97: Papel | L97: Español | M97: INFORMACIÓN PÚBLICA | N97: N/A | O97: N/A | P97: N/A | Q97: N/A | R97: N/A | S97: N/A
A98: =IF(D98<>"",VLOOKUP('ACTIVOS DE INFORMACIÓN 2020'!D98,DATA!$E$2:$F$95,2)&"-"&B98,"") -> 111-91 | B98: 91 | C98: INFORMACIÓN | D98: GRUPO INTERNO DE TRABAJO DE PLANEACIÓN Y SEGUIMIENTO PRESUPUESTAL | E98: Informes | F98: De seguimiento a los proyectos de inversión a traves del Sistema de Información de los Proyectos de Inversión SPI, con corte mensual de las Metas e Indicadores y presupuesto de los respectivos proyectos | G98: =IF(D98="","",D98) -> GRUPO INTERNO DE TRABAJO DE PLANEACIÓN Y SEGUIMIENTO PRESUPUESTAL | H98: 2019-01-01 | I98: GRUPO INTERNO DE TRABAJO DE PLANEACIÓN Y SEGUIMIENTO PRESUPUESTAL | J98: Documentos de Archivo - electrónicos | K98: HTML (Página Web) | L98: Español | M98: INFORMACIÓN PÚBLICA | N98: N/A | O98: N/A | P98: N/A | Q98: N/A | R98: N/A | S98: N/A
A99: =IF(D99<>"",VLOOKUP('ACTIVOS DE INFORMACIÓN 2020'!D99,DATA!$E$2:$F$95,2)&"-"&B99,"") -> 111-92 | B99: 92 | C99: INFORMACIÓN | D99: GRUPO INTERNO DE TRABAJO DE PLANEACIÓN Y SEGUIMIENTO PRESUPUESTAL | E99: Anteproyecto del Presupuesto de Inversión | F99: Documentos que se consolida para Generar el Marco de Gasto de Mediano Plazo con la información presupuestal del siguiente año de las entidades del sector, y de los proyectos deinversión del Ministerio de Tecnología de la Información y las Comunicaciones. | G99: =IF(D99="","",D99) -> GRUPO INTERNO DE TRABAJO DE PLANEACIÓN Y SEGUIMIENTO PRESUPUESTAL | H99: 2018-11-28 | I99: GRUPO INTERNO DE TRABAJO DE PLANEACIÓN Y SEGUIMIENTO PRESUPUESTAL | J99: Documentos de Archivo - electrónicos | K99: Office OpenXML | L99: Español | M99: INFORMACIÓN PÚBLICA | N99: N/A | O99: N/A | P99: N/A | Q99: N/A | R99: N/A | S99: N/A
A100: =IF(D100<>"",VLOOKUP('ACTIVOS DE INFORMACIÓN 2020'!D100,DATA!$E$2:$F$95,2)&"-"&B100,"") -> 111-93 | B100: 93 | C100: RECURSO HUMANO | D100: GRUPO INTERNO DE TRABAJO DE PLANEACIÓN Y SEGUIMIENTO PRESUPUESTAL | E100: Colaboradores Planta | F100: Definir los lineamientos y criterios básicos para la formulación, evaluación y control de los planes, programas y proyectos del Ministerio y de las entidades vinculadas y adscritas al Sector | G100: N/A | H100: N/A | I100: N/A | J100: N/A | K100: N/A | L100: N/A | M100: INFORMACIÓN PÚBLICA | N100: N/A | O100: N/A | P100: N/A | Q100: N/A | R100: N/A | S100: N/A
A101: =IF(D101<>"",VLOOKUP('ACTIVOS DE INFORMACIÓN 2020'!D101,DATA!$E$2:$F$95,2)&"-"&B101,"") -> 111-94 | B101: 94 | C101: HARDWARE | D101: GRUPO INTERNO DE TRABAJO DE PLANEACIÓN Y SEGUIMIENTO PRESUPUESTAL | E101: Token | F101: Elemento (llave) que sirve para el ingreso al Sistema de Informaciòn Financiera SIIF, del Ministerio de Hacienda y Crèdito Pùblico. | G101: N/A | H101: N/A | I101: N/A | J101: Documentos de Archivo - físicos | K101: N/A | L101: Español | M101: INFORMACIÓN PÚBLICA | N101: N/A | O101: N/A | P101: N/A | Q101: N/A | R101: N/A | S101: N/A
A102: =IF(D102<>"",VLOOKUP('ACTIVOS DE INFORMACIÓN 2020'!D102,DATA!$E$2:$F$95,2)&"-"&B102,"") -> 111-95 | B102: 95 | C102: RECURSO HUMANO | D102: GRUPO INTERNO DE TRABAJO DE PLANEACIÓN Y SEGUIMIENTO PRESUPUESTAL | E102: Colaboradores contratistas | F102: Definir los lineamientos y criterios básicos para la formulación, evaluación y control de los planes, programas y proyectos del Ministerio y de las entidades vinculadas y adscritas al Sector | G102: N/A | H102: N/A | I102: N/A | J102: N/A | K102: N/A | L102: N/A | M102: INFORMACIÓN PÚBLICA | N102: N/A | O102: N/A | P102: N/A | Q102: N/A | R102: N/A | S102: N/A
A103: =IF(D103<>"",VLOOKUP('ACTIVOS DE INFORMACIÓN 2020'!D103,DATA!$E$2:$F$95,2)&"-"&B103,"") -> 112-96 | B103: 96 | C103: RECURSO HUMANO | D103: GRUPO INTERNO DE TRABAJO DE SEGUIMIENTO A LA ESTRATEGIA | E103: Colaboradores Contratistas | F103: Estos perfiles son usado para el desarrollo de todos los procesos de la entidad operaciones internas asesora a las áreas en la planeación estratégica, asesoría y seguimiento del plan de acción, plan estratégico sectorial, informes relacionados al seguimiento de metas de gobierno sinergia ; presta servicios a los usuarios y partes interesadas servicios tanto internos como externos. Realiza la gestión de avance en los proyectos misionales y de soporte institucional para dar a conocer a las partes interesadas. Asegura que la información publicada en planes proyectos programas, cuenta con la calidad, veracidad e intregridad. | G103: N/A | H103: N/A | I103: N/A | J103: N/A | K103: N/A | L103: N/A | M103: INFORMACIÓN PÚBLICA | N103: N/A | O103: N/A | P103: N/A | Q103: N/A | R103: N/A | S103: N/A
A104: =IF(D104<>"",VLOOKUP('ACTIVOS DE INFORMACIÓN 2020'!D104,DATA!$E$2:$F$95,2)&"-"&B104,"") -> 113-97 | B104: 97 | C104: INFORMACIÓN | D104: GRUPO INTERNO DE TRABAJO DE ESTADISTICAS Y ESTUDIOS SECTORIALES | E104: Mesa técnica de estadísticas TIC | F104: La mesa técnica de estadísticas TIC, asesora a la organización en temas especificos de indicadores del sector, razón por la cual en sus actas se encuentra información de carácter oficial y con un altisimo valor para la investigación. Por todo lo anterior el contenido de la agrupación se debe conservar en su totalidad y al terminar los tiempos de retención, este material debe ser transferido al Archivo general de la Nación. | G104: =IF(D104="","",D104) -> GRUPO INTERNO DE TRABAJO DE ESTADISTICAS Y ESTUDIOS SECTORIALES | H104: 2017-10-11 | I104: GRUPO INTERNO DE TRABAJO DE ESTADISTICAS Y ESTUDIOS SECTORIALES | J104: Archivos Institucionales - físicos | K104: PDF | L104: Español | M104: INFORMACIÓN PÚBLICA | N104: N/A | O104: N/A | P104: N/A | Q104: N/A | R104: N/A | S104: N/A
A105: =IF(D105<>"",VLOOKUP('ACTIVOS DE INFORMACIÓN 2020'!D105,DATA!$E$2:$F$95,2)&"-"&B105,"") -> 113-98 | B105: 98 | C105: INFORMACIÓN | D105: GRUPO INTERNO DE TRABAJO DE ESTADISTICAS Y ESTUDIOS SECTORIALES | E105: Certificación de calidad | F105: Es el proceso mediante el cual se certifica el nivel de cumplimiento de los atributos de calidad establecidos internacionalmente para la producción estadística y que se enmarcan en los Principios Fundamentales de las Estadísticas Oficiales de la Organización de las Naciones Unidas (ONU) y del Código Nacional de Buenas Prácticas para las Estadísticas Oficiales, con el fin de satisfacer las necesidades de los usuarios, promoviendo así la credibilidad, la confiabilidad y la transparencia en la producción de información estadística. | G105: =IF(D105="","",D105) -> GRUPO INTERNO DE TRABAJO DE ESTADISTICAS Y ESTUDIOS SECTORIALES | H105: 2018-12-11 | I105: GRUPO INTERNO DE TRABAJO DE ESTADISTICAS Y ESTUDIOS SECTORIALES | J105: Archivos Institucionales - físicos | K105: PDF | L105: Español | M105: INFORMACIÓN PÚBLICA | N105: N/A | O105: N/A | P105: N/A | Q105: N/A | R105: N/A | S105: N/A
A106: =IF(D106<>"",VLOOKUP('ACTIVOS DE INFORMACIÓN 2020'!D106,DATA!$E$2:$F$95,2)&"-"&B106,"") -> 113-99 | B106: 99 | C106: INFORMACIÓN | D106: GRUPO INTERNO DE TRABAJO DE ESTADISTICAS Y ESTUDIOS SECTORIALES | E106: Boletín TIC | F106: Este boletín tiene una periodicidad trimestral y su objetivo es divulgar los datos más relevantes del Sector de las TIC. Para conocer el detalle de la información se sugiere consultar el archivo en Excel denominado Informe Trimestral de las TIC, publicado en el portal oficial de estadísticas del sector TIC – Colombia TIC. | G106: =IF(D106="","",D106) -> GRUPO INTERNO DE TRABAJO DE ESTADISTICAS Y ESTUDIOS SECTORIALES | H106: 2005-02-28 | I106: GRUPO INTERNO DE TRABAJO DE ESTADISTICAS Y ESTUDIOS SECTORIALES | J106: Portales, Intranet y Extranet | K106: PDF | L106: Español | M106: INFORMACIÓN PÚBLICA | N106: N/A | O106: N/A | P106: N/A | Q106: N/A | R106: N/A | S106: N/A
A107: =IF(D107<>"",VLOOKUP('ACTIVOS DE INFORMACIÓN 2020'!D107,DATA!$E$2:$F$95,2)&"-"&B107,"") -> 113-100 | B107: 100 | C107: INFORMACIÓN | D107: GRUPO INTERNO DE TRABAJO DE ESTADISTICAS Y ESTUDIOS SECTORIALES | E107: Boletín Postal | F107: El boletín tiene como objetivo dar a conocer el análisis y comportamiento estadístico de las cifras reportadas por los operadores de servicios postales en cuanto a la prestación de los servicios básicos y expresos definidos en la Ley 1369 de 2009; a través de los cuales se envían, movilizan y entregan cartas, paquetes, publicidad directa, publicaciones periódicas, catálogos y libros, entre otros objetos postales. | G107: =IF(D107="","",D107) -> GRUPO INTERNO DE TRABAJO DE ESTADISTICAS Y ESTUDIOS SECTORIALES | H107: 2017-04-01 | I107: GRUPO INTERNO DE TRABAJO DE ESTADISTICAS Y ESTUDIOS SECTORIALES | J107: Portales, Intranet y Extranet | K107: PDF | L107: Español | M107: INFORMACIÓN PÚBLICA | N107: N/A | O107: N/A | P107: N/A | Q107: N/A | R107: N/A | S107: N/A
A108: =IF(D108<>"",VLOOKUP('ACTIVOS DE INFORMACIÓN 2020'!D108,DATA!$E$2:$F$95,2)&"-"&B108,"") -> 113-101 | B108: 101 | C108: INFORMACIÓN | D108: GRUPO INTERNO DE TRABAJO DE ESTADISTICAS Y ESTUDIOS SECTORIALES | E108: Atlas de Acceso fijo a Internet | F108: Estos documentos tienen como objetivo presentar un análisis del servicio de acceso fijo a Internet en las distintas regiones del país, mediante el estudio y comportamiento de la velocidad efectiva de bajada o descarga ofrecida por cada uno de los proveedores de redes y servicios. Se desagrega a nivel geográfico, por tecnología, segmento y estrato. | G108: =IF(D108="","",D108) -> GRUPO INTERNO DE TRABAJO DE ESTADISTICAS Y ESTUDIOS SECTORIALES | H108: 2019-01-01 | I108: GRUPO INTERNO DE TRABAJO DE ESTADISTICAS Y ESTUDIOS SECTORIALES | J108: Portales, Intranet y Extranet | K108: PDF | L108: Español | M108: INFORMACIÓN PÚBLICA | N108: N/A | O108: N/A | P108: N/A | Q108: N/A | R108: N/A | S108: N/A
A109: =IF(D109<>"",VLOOKUP('ACTIVOS DE INFORMACIÓN 2020'!D109,DATA!$E$2:$F$95,2)&"-"&B109,"") -> 113-102 | B109: 102 | C109: INFORMACIÓN | D109: GRUPO INTERNO DE TRABAJO DE ESTADISTICAS Y ESTUDIOS SECTORIALES | E109: Encuesta TIC | F109: Obtener información que permita analizar y realizar comparaciones de las condiciones de tenencia y uso de las TIC en los hogares colombianos. Esta información posibilitarán el seguimiento a las variables necesarias para el diseño e implementación de políticas públicas y publico-privadas, en los planes y programas de estímulo y masificación social de las TIC para Colombia, con mayor articulación técnica y congruencia conceptual. Igualmente obtener información que permita analizar y realizar comparaciones de las condiciones de tenencia y uso de las TIC en las empresas, las cuales posibiliten el seguimiento y la formulación de políticas enfocadas al desarrollo y aprovechamiento de las TIC para el sector empresarial del país. | G109: =IF(D109="","",D109) -> GRUPO INTERNO DE TRABAJO DE ESTADISTICAS Y ESTUDIOS SECTORIALES | H109: 2017-01-01 | I109: GRUPO INTERNO DE TRABAJO DE ESTADISTICAS Y ESTUDIOS SECTORIALES | J109: Portales, Intranet y Extranet | K109: PDF | L109: Español | M109: INFORMACIÓN PÚBLICA | N109: N/A | O109: N/A | P109: N/A | Q109: N/A | R109: N/A | S109: N/A
A110: =IF(D110<>"",VLOOKUP('ACTIVOS DE INFORMACIÓN 2020'!D110,DATA!$E$2:$F$95,2)&"-"&B110,"") -> 113-103 | B110: 103 | C110: INFORMACIÓN | D110: GRUPO INTERNO DE TRABAJO DE ESTADISTICAS Y ESTUDIOS SECTORIALES | E110: Cuenta Satelite | F110: La Cuenta Satelite del sector TIC, corresponde a un sistema de información económica continua, confiable y comparable de actividades económicas productivas que combinan recursos tales como equipos, mano de obra, técnicas de fabricación e insumos para la producción de bienes y servicios TIC. | G110: =IF(D110="","",D110) -> GRUPO INTERNO DE TRABAJO DE ESTADISTICAS Y ESTUDIOS SECTORIALES | H110: 2018-01-01 | I110: GRUPO INTERNO DE TRABAJO DE ESTADISTICAS Y ESTUDIOS SECTORIALES | J110: Portales, Intranet y Extranet | K110: PDF | L110: Español | M110: INFORMACIÓN PÚBLICA | N110: N/A | O110: N/A | P110: N/A | Q110: N/A | R110: N/A | S110: N/A
A111: =IF(D111<>"",VLOOKUP('ACTIVOS DE INFORMACIÓN 2020'!D111,DATA!$E$2:$F$95,2)&"-"&B111,"") -> 113-104 | B111: 104 | C111: INFORMACIÓN | D111: GRUPO INTERNO DE TRABAJO DE ESTADISTICAS Y ESTUDIOS SECTORIALES | E111: Boletín de Sociedad Digital | F111: Este boletín presenta el comportamiento de diferentes aspectos de la sociedad digital en Colombia con periodicidad semestral, haciendo énfasis en los aspectos centrales de la economía digital, especialmente información relacionada con las firmas del sector, el comercio exterior, el mercado laboral y la innovación. Su interpretación tiene flexibilidad estadística para lograr su publicación oportuna. | G111: =IF(D111="","",D111) -> GRUPO INTERNO DE TRABAJO DE ESTADISTICAS Y ESTUDIOS SECTORIALES | H111: 2019-01-01 | I111: GRUPO INTERNO DE TRABAJO DE ESTADISTICAS Y ESTUDIOS SECTORIALES | J111: Portales, Intranet y Extranet | K111: PDF | L111: Español | M111: INFORMACIÓN PÚBLICA | N111: N/A | O111: N/A | P111: N/A | Q111: N/A | R111: N/A | S111: N/A
A112: =IF(D112<>"",VLOOKUP('ACTIVOS DE INFORMACIÓN 2020'!D112,DATA!$E$2:$F$95,2)&"-"&B112,"") -> 113-105 | B112: 105 | C112: INFORMACIÓN | D112: GRUPO INTERNO DE TRABAJO DE ESTADISTICAS Y ESTUDIOS SECTORIALES | E112: Fichas departamentales | F112: Se presentan Indicadores por Departamento relacionados con el sector TIC, que tienen como origen diversas fuentes de información (encuestas, registros administrativos, oferta MinTIC, entre otros). | G112: =IF(D112="","",D112) -> GRUPO INTERNO DE TRABAJO DE ESTADISTICAS Y ESTUDIOS SECTORIALES | H112: 2019-01-01 | I112: GRUPO INTERNO DE TRABAJO DE ESTADISTICAS Y ESTUDIOS SECTORIALES | J112: Portales, Intranet y Extranet | K112: Base de datos | L112: Español | M112: INFORMACIÓN PÚBLICA | N112: N/A | O112: N/A | P112: N/A | Q112: N/A | R112: N/A | S112: N/A
A113: =IF(D113<>"",VLOOKUP('ACTIVOS DE INFORMACIÓN 2020'!D113,DATA!$E$2:$F$95,2)&"-"&B113,"") -> 113-106 | B113: =IF(AND(A112="",D113<>""),"LEB",IF(D113<>"",1+B112,"")) -> 106 | C113: INFORMACIÓN | D113: GRUPO INTERNO DE TRABAJO DE ESTADISTICAS Y ESTUDIOS SECTORIALES | E113: Matriz de Oferta Institucional | F113: Compilar y visualizar los avances (inversión, beneficiarios y generación de empleo) de los diferentes programas y proyectos (regionalizables), ejecutados por las áreas del Ministerio de Tecnologías de la Información y las Comunicaciones en las Departamentos y municipios del país y dar a conocer los resultados a los diferentes grupos de interés. | G113: =IF(D113="","",D113) -> GRUPO INTERNO DE TRABAJO DE ESTADISTICAS Y ESTUDIOS SECTORIALES | H113: 2020-01-01 | I113: GRUPO INTERNO DE TRABAJO DE ESTADISTICAS Y ESTUDIOS SECTORIALES | J113: Portales, Intranet y Extranet | K113: Base de datos | L113: Español | M113: INFORMACIÓN PÚBLICA CLASIFICADA | N113: N/A | O113: N/A | P113: N/A | Q113: N/A | R113: N/A | S113: N/A
A114: =IF(D114<>"",VLOOKUP('ACTIVOS DE INFORMACIÓN 2020'!D114,DATA!$E$2:$F$95,2)&"-"&B114,"") -> 120-107 | B114: 107 | C114: INFORMACIÓN | D114: OFICINA DE TECNOLOGIAS DE LA INFORMACIÓN | E114: Citación | F114: Citaciones de los comités de control de cambios que realiza la Oficina de TI | G114: =IF(D114="","",D114) -> OFICINA DE TECNOLOGIAS DE LA INFORMACIÓN | H114: 2018-11-28 | I114: OFICINA DE TECNOLOGIAS DE LA INFORMACIÓN | J114: Sistemas de Mensajería Electrónica | K114: EML | L114: Español | M114: INFORMACIÓN PÚBLICA | N114: N/A | O114: N/A | P114: N/A | Q114: N/A | R114: N/A | S114: N/A
A115: =IF(D115<>"",VLOOKUP('ACTIVOS DE INFORMACIÓN 2020'!D115,DATA!$E$2:$F$95,2)&"-"&B115,"") -> 120-108 | B115: =IF(AND(A114="",D115<>""),"LEB",IF(D115<>"",1+B114,"")) -> 108 | C115: INFORMACIÓN | D115: OFICINA DE TECNOLOGIAS DE LA INFORMACIÓN | E115: Acta comité control de cambios | F115: Documento que evidencia lo sucedido en los comités de control de cambios | G115: =IF(D115="","",D115) -> OFICINA DE TECNOLOGIAS DE LA INFORMACIÓN | H115: 2018-11-28 | I115: OFICINA DE TECNOLOGIAS DE LA INFORMACIÓN | J115: Documentos de Archivo - físicos | K115: Papel | L115: Español | M115: INFORMACIÓN PÚBLICA RESERVADA | N115: SI | O115: Ley 1273 de 2009 Art 269 | P115: Resolución 318 de 2019 | Q115: Reserva total | R115: 2018-11-28 | S115: 5 Años
A116: =IF(D116<>"",VLOOKUP('ACTIVOS DE INFORMACIÓN 2020'!D116,DATA!$E$2:$F$95,2)&"-"&B116,"") -> 120-109 | B116: 109 | C116: INFORMACIÓN | D116: OFICINA DE TECNOLOGIAS DE LA INFORMACIÓN | E116: Revisión pos implementación - PIR | F116: Documento que evidencia la solicitud del cambio y la revisión que se realiza después de la implementación de este | G116: =IF(D116="","",D116) -> OFICINA DE TECNOLOGIAS DE LA INFORMACIÓN | H116: 2018-11-28 | I116: OFICINA DE TECNOLOGIAS DE LA INFORMACIÓN | J116: Documentos de Archivo - electrónicos | K116: XLS | L116: Español | M116: INFORMACIÓN PÚBLICA RESERVADA | N116: SI | O116: Ley 1273 de 2009 Art 269 | P116: Resolución 318 de 2019 | Q116: Reserva total | R116: 2018-11-28 | S116: 5 años
A117: =IF(D117<>"",VLOOKUP('ACTIVOS DE INFORMACIÓN 2020'!D117,DATA!$E$2:$F$95,2)&"-"&B117,"") -> 120-110 | B117: 110 | C117: INFORMACIÓN | D117: OFICINA DE TECNOLOGIAS DE LA INFORMACIÓN | E117: Citación | F117: Citaciones del comité del Cooperación del Sistema Colombia TIC | G117: =IF(D117="","",D117) -> OFICINA DE TECNOLOGIAS DE LA INFORMACIÓN | H117: 2018-11-28 | I117: OFICINA DE TECNOLOGIAS DE LA INFORMACIÓN | J117: Sistemas de Mensajería Electrónica | K117: EML | L117: Español | M117: INFORMACIÓN PÚBLICA | N117: N/A | O117: N/A | P117: N/A | Q117: N/A | R117: N/A | S117: N/A
A118: =IF(D118<>"",VLOOKUP('ACTIVOS DE INFORMACIÓN 2020'!D118,DATA!$E$2:$F$95,2)&"-"&B118,"") -> 120-111 | B118: =IF(AND(A117="",D118<>""),"LEB",IF(D118<>"",1+B117,"")) -> 111 | C118: INFORMACIÓN | D118: OFICINA DE TECNOLOGIAS DE LA INFORMACIÓN | E118: Acta comité cooperación del sistema colombia TIC | F118: Actas del comité de Cooperación del Sistema Colombia TIC (actas y anexos) | G118: =IF(D118="","",D118) -> OFICINA DE TECNOLOGIAS DE LA INFORMACIÓN | H118: 2018-11-28 | I118: OFICINA DE TECNOLOGIAS DE LA INFORMACIÓN | J118: Documentos de Archivo - electrónicos | K118: PDF | L118: Español | M118: INFORMACIÓN PÚBLICA RESERVADA | N118: SI | O118: Las actas contienen información jurídica, administrativa y técnica, y en concordancia con el art 31 parrafo 2do del Decreto 103 de 2015 se anonimiza la información | P118: Decreto 103 del 2015 Art 31 | Q118: Reserva parcial | R118: 2016-12-26 | S118: 5 Años
A119: =IF(D119<>"",VLOOKUP('ACTIVOS DE INFORMACIÓN 2020'!D119,DATA!$E$2:$F$95,2)&"-"&B119,"") -> 120-112 | B119: 112 | C119: INFORMACIÓN | D119: OFICINA DE TECNOLOGIAS DE LA INFORMACIÓN | E119: Acuerdo | F119: Acuerdos de servicios estratégicos con entidades del sector (actas y anexos) | G119: =IF(D119="","",D119) -> OFICINA DE TECNOLOGIAS DE LA INFORMACIÓN | H119: 2018-11-28 | I119: OFICINA DE TECNOLOGIAS DE LA INFORMACIÓN | J119: Documentos de Archivo - físicos | K119: Papel | L119: Español | M119: INFORMACIÓN PÚBLICA RESERVADA | N119: SI | O119: Las actas contienen información jurídica, administrativa y técnica, y en concordancia con el art 31 parrafo 2do del Decreto 103 de 2015 se anonimiza la información | P119: Decreto 103 del 2015 Art 31 | Q119: Reserva parcial | R119: 2016-12-26 | S119: 5 Años
A120: =IF(D120<>"",VLOOKUP('ACTIVOS DE INFORMACIÓN 2020'!D120,DATA!$E$2:$F$95,2)&"-"&B120,"") -> 120-113 | B120: 113 | C120: INFORMACIÓN | D120: OFICINA DE TECNOLOGIAS DE LA INFORMACIÓN | E120: Informe de estadíasticas sectoriales | F120: Informe de estadisticas del sector | G120: =IF(D120="","",D120) -> OFICINA DE TECNOLOGIAS DE LA INFORMACIÓN | H120: 2018-11-28 | I120: OFICINA DE TECNOLOGIAS DE LA INFORMACIÓN | J120: Documentos de Archivo - electrónicos | K120: PDF | L120: Español | M120: INFORMACIÓN PÚBLICA RESERVADA | N120: SI | O120: Las actas contienen información jurídica, administrativa y técnica, y en concordancia con el art 31 parrafo 2do del Decreto 103 de 2015 se anonimiza la información | P120: Decreto 103 del 2015 Art 31 | Q120: Reserva parcial | R120: 2016-12-26 | S120: 5 Años
A121: =IF(D121<>"",VLOOKUP('ACTIVOS DE INFORMACIÓN 2020'!D121,DATA!$E$2:$F$95,2)&"-"&B121,"") -> 120-114 | B121: 114 | C121: INFORMACIÓN | D121: OFICINA DE TECNOLOGIAS DE LA INFORMACIÓN | E121: Estadísticas sectoriales | F121: Estadisticas del sector | G121: =IF(D121="","",D121) -> OFICINA DE TECNOLOGIAS DE LA INFORMACIÓN | H121: 2018-11-28 | I121: OFICINA DE TECNOLOGIAS DE LA INFORMACIÓN | J121: Documentos de Archivo - electrónicos | K121: HTML (Página Web) | L121: Español | M121: INFORMACIÓN PÚBLICA | N121: N/A | O121: N/A | P121: N/A | Q121: N/A | R121: N/A | S121: N/A
A122: =IF(D122<>"",VLOOKUP('ACTIVOS DE INFORMACIÓN 2020'!D122,DATA!$E$2:$F$95,2)&"-"&B122,"") -> 120-115 | B122: 115 | C122: INFORMACIÓN | D122: OFICINA DE TECNOLOGIAS DE LA INFORMACIÓN | E122: Indicadores sectoriales | F122: Informe de los Indicadores del sector | G122: =IF(D122="","",D122) -> OFICINA DE TECNOLOGIAS DE LA INFORMACIÓN | H122: 2018-11-28 | I122: OFICINA DE TECNOLOGIAS DE LA INFORMACIÓN | J122: Documentos de Archivo - electrónicos | K122: HTML (Página Web) | L122: Español | M122: INFORMACIÓN PÚBLICA | N122: N/A | O122: N/A | P122: N/A | Q122: N/A | R122: N/A | S122: N/A
A123: =IF(D123<>"",VLOOKUP('ACTIVOS DE INFORMACIÓN 2020'!D123,DATA!$E$2:$F$95,2)&"-"&B123,"") -> 120-116 | B123: =IF(AND(A122="",D123<>""),"LEB",IF(D123<>"",1+B122,"")) -> 116 | C123: INFORMACIÓN | D123: OFICINA DE TECNOLOGIAS DE LA INFORMACIÓN | E123: Solicitud | F123: Solicitud de informes de gestión | G123: =IF(D123="","",D123) -> OFICINA DE TECNOLOGIAS DE LA INFORMACIÓN | H123: 2018-11-28 | I123: OFICINA DE TECNOLOGIAS DE LA INFORMACIÓN | J123: Documentos de Archivo - electrónicos | K123: HTML (Página Web) | L123: Español | M123: INFORMACIÓN PÚBLICA RESERVADA | N123: NO | O123: N/A | P123: N/A | Q123: N/A | R123: N/A | S123: N/A
A124: =IF(D124<>"",VLOOKUP('ACTIVOS DE INFORMACIÓN 2020'!D124,DATA!$E$2:$F$95,2)&"-"&B124,"") -> 120-117 | B124: 117 | C124: INFORMACIÓN | D124: OFICINA DE TECNOLOGIAS DE LA INFORMACIÓN | E124: Informes de Gestión | F124: Informes de Gestión | G124: =IF(D124="","",D124) -> OFICINA DE TECNOLOGIAS DE LA INFORMACIÓN | H124: 2018-11-28 | I124: OFICINA DE TECNOLOGIAS DE LA INFORMACIÓN | J124: Documentos de Archivo - electrónicos | K124: PDF | L124: Español | M124: INFORMACIÓN PÚBLICA RESERVADA | N124: SI | O124: Las actas contienen información jurídica, administrativa y técnica, y en concordancia con el art 31 parrafo 2do del Decreto 103 de 2015 se anonimiza la información | P124: Decreto 103 del 2015 Art 31 | Q124: Reserva parcial | R124: 2016-12-26 | S124: 5 Años
A125: =IF(D125<>"",VLOOKUP('ACTIVOS DE INFORMACIÓN 2020'!D125,DATA!$E$2:$F$95,2)&"-"&B125,"") -> 120-118 | B125: 118 | C125: INFORMACIÓN | D125: OFICINA DE TECNOLOGIAS DE LA INFORMACIÓN | E125: Plan Estratégico de tecnologías de la Información PETI | F125: Contiene el plan estratégico de tecnologías de la Información PETI, del ministerio de Tecnologías de Información de acuerdo con las guias de marco de referencia de la arquitectura empresarial. | G125: =IF(D125="","",D125) -> OFICINA DE TECNOLOGIAS DE LA INFORMACIÓN | H125: 2018-11-28 | I125: OFICINA DE TECNOLOGIAS DE LA INFORMACIÓN | J125: Documentos de Archivo - electrónicos | K125: PDF | L125: Español | M125: INFORMACIÓN PÚBLICA RESERVADA | N125: SI | O125: Artículo 21 y literal c del articulo 18 de la Ley 1712 de 2014 se anonimiza la información y secreto comercial industrial de terceros | P125: Ley 1712 2014 | Q125: Reserva parcial | R125: 2015-06-10 | S125: 5 Años
A126: =IF(D126<>"",VLOOKUP('ACTIVOS DE INFORMACIÓN 2020'!D126,DATA!$E$2:$F$95,2)&"-"&B126,"") -> 120-119 | B126: 119 | C126: INFORMACIÓN | D126: OFICINA DE TECNOLOGIAS DE LA INFORMACIÓN | E126: Mapa de proceso | F126: Informes del Proceso de información sectorial | G126: =IF(D126="","",D126) -> OFICINA DE TECNOLOGIAS DE LA INFORMACIÓN | H126: 2018-11-28 | I126: OFICINA DE TECNOLOGIAS DE LA INFORMACIÓN | J126: Documentos de Archivo - electrónicos | K126: HTML (Página Web) | L126: Español | M126: INFORMACIÓN PÚBLICA | N126: N/A | O126: N/A | P126: N/A | Q126: N/A | R126: N/A | S126: N/A
A127: =IF(D127<>"",VLOOKUP('ACTIVOS DE INFORMACIÓN 2020'!D127,DATA!$E$2:$F$95,2)&"-"&B127,"") -> 120-120 | B127: 120 | C127: INFORMACIÓN | D127: OFICINA DE TECNOLOGIAS DE LA INFORMACIÓN | E127: Proceso de información sectorial (informes) | F127: Proceso de información sectorial (informes) | G127: =IF(D127="","",D127) -> OFICINA DE TECNOLOGIAS DE LA INFORMACIÓN | H127: 2018-11-28 | I127: OFICINA DE TECNOLOGIAS DE LA INFORMACIÓN | J127: Documentos de Archivo - electrónicos | K127: XLS | L127: Español | M127: INFORMACIÓN PÚBLICA | N127: N/A | O127: N/A | P127: N/A | Q127: N/A | R127: N/A | S127: N/A
A128: =IF(D128<>"",VLOOKUP('ACTIVOS DE INFORMACIÓN 2020'!D128,DATA!$E$2:$F$95,2)&"-"&B128,"") -> 120-121 | B128: =IF(AND(A127="",D128<>""),"LEB",IF(D128<>"",1+B127,"")) -> 121 | C128: INFORMACIÓN | D128: OFICINA DE TECNOLOGIAS DE LA INFORMACIÓN | E128: Base de datos Usuarios Plataformas Telefónica y comunicaciones unificadas UC | F128: Registro y actualización de usuarios en las respectivas bases de datos de las plataformas telefónicas y Comunicaciones Unificadas | G128: =IF(D128="","",D128) -> OFICINA DE TECNOLOGIAS DE LA INFORMACIÓN | H128: 2011-02-01 | I128: OFICINA DE TECNOLOGIAS DE LA INFORMACIÓN | J128: Sistemas de Bases de Datos | K128: Base de datos | L128: Español | M128: INFORMACIÓN PÚBLICA CLASIFICADA | N128: SI | O128: Ley 1712 2014 Articulo 18 literal c | P128: Ley 1712 2014 | Q128: Reserva total | R128: 2016-12-26 | S128: 15 Años
A129: =IF(D129<>"",VLOOKUP('ACTIVOS DE INFORMACIÓN 2020'!D129,DATA!$E$2:$F$95,2)&"-"&B129,"") -> 120-122 | B129: 122 | C129: SOFTWARE | D129: OFICINA DE TECNOLOGIAS DE LA INFORMACIÓN | E129: Aplicaciones - Alfanet | F129: Sistema de información de gestión documental | G129: N/A | H129: N/A | I129: N/A | J129: Sistemas de Información corporativos | K129: API | L129: Español | M129: INFORMACIÓN PÚBLICA CLASIFICADA | N129: SI | O129: Ley 1712 Articulo 18 literal c. Los secretos comerciales, industriales y profesionales asi como los estipulados en el paragrafo del articulo 77 de la ley 1474 de 2011 | P129: Ley 1712 2014 | Q129: Reserva parcial | R129: 2017-06-30 | S129: 15 Años
A130: =IF(D130<>"",VLOOKUP('ACTIVOS DE INFORMACIÓN 2020'!D130,DATA!$E$2:$F$95,2)&"-"&B130,"") -> 120-123 | B130: 123 | C130: SOFTWARE | D130: OFICINA DE TECNOLOGIAS DE LA INFORMACIÓN | E130: Base de datos- Alfanet | F130: Base de dattos del Sistema de información de gestión documental | G130: N/A | H130: N/A | I130: N/A | J130: Sistemas de Información corporativos | K130: Base de datos | L130: Español | M130: INFORMACIÓN PÚBLICA CLASIFICADA | N130: SI | O130: Ley 1712 Articulo 18 literal c. Los secretos comerciales, industriales y profesionales asi como los estipulados en el paragrafo del articulo 77 de la ley 1474 de 2012 | P130: Ley 1712 2014 | Q130: Reserva parcial | R130: 2019-07-21 | S130: 15 Años
A131: =IF(D131<>"",VLOOKUP('ACTIVOS DE INFORMACIÓN 2020'!D131,DATA!$E$2:$F$95,2)&"-"&B131,"") -> 120-124 | B131: 124 | C131: SOFTWARE | D131: OFICINA DE TECNOLOGIAS DE LA INFORMACIÓN | E131: Aplicaciones - Zafiro | F131: Sistema de información de gestión documental | G131: N/A | H131: N/A | I131: N/A | J131: Sistemas de Información corporativos | K131: API | L131: Español | M131: INFORMACIÓN PÚBLICA CLASIFICADA | N131: SI | O131: Ley 1712 Articulo 18 literal c. Los secretos comerciales, industriales y profesionales asi como los estipulados en el paragrafo del articulo 77 de la ley 1474 de 2011 | P131: Ley 1712 2014 | Q131: Reserva parcial | R131: 2017-06-30 | S131: 15 Años
A132: =IF(D132<>"",VLOOKUP('ACTIVOS DE INFORMACIÓN 2020'!D132,DATA!$E$2:$F$95,2)&"-"&B132,"") -> 120-125 | B132: 125 | C132: SOFTWARE | D132: OFICINA DE TECNOLOGIAS DE LA INFORMACIÓN | E132: Base de Datos - Zafiro | F132: Base de Datos del sistema de información de gestion documental | G132: N/A | H132: N/A | I132: N/A | J132: Sistemas de Información corporativos | K132: Base de datos | L132: Español | M132: INFORMACIÓN PÚBLICA CLASIFICADA | N132: SI | O132: Ley 1712 Articulo 18 literal c. Los secretos comerciales, industriales y profesionales asi como los estipulados en el paragrafo del articulo 77 de la ley 1474 de 2011 | P132: Ley 1712 2014 | Q132: Reserva parcial | R132: 2017-06-30 | S132: 15 Años
A133: =IF(D133<>"",VLOOKUP('ACTIVOS DE INFORMACIÓN 2020'!D133,DATA!$E$2:$F$95,2)&"-"&B133,"") -> 120-126 | B133: 126 | C133: SOFTWARE | D133: OFICINA DE TECNOLOGIAS DE LA INFORMACIÓN | E133: Aplicaciones - Seven | F133: Sistema de información financiera y Administrativa | G133: N/A | H133: N/A | I133: N/A | J133: Sistemas de Información corporativos | K133: API | L133: Español | M133: INFORMACIÓN PÚBLICA CLASIFICADA | N133: SI | O133: Ley 1712 Articulo 18 literal c. Los secretos comerciales, industriales y profesionales asi como los estipulados en el paragrafo del articulo 77 de la ley 1474 de 2011 | P133: Ley 1712 2014 | Q133: Reserva parcial | R133: 2017-06-30 | S133: 15 Años
A134: =IF(D134<>"",VLOOKUP('ACTIVOS DE INFORMACIÓN 2020'!D134,DATA!$E$2:$F$95,2)&"-"&B134,"") -> 120-127 | B134: 127 | C134: SOFTWARE | D134: OFICINA DE TECNOLOGIAS DE LA INFORMACIÓN | E134: Base de Datos - Seven | F134: Base de Datos del Sistema de información financiera y Administrativa | G134: N/A | H134: N/A | I134: N/A | J134: Sistemas de Información corporativos | K134: Base de datos | L134: Español | M134: INFORMACIÓN PÚBLICA CLASIFICADA | N134: SI | O134: Ley 1712 Articulo 18 literal c. Los secretos comerciales, industriales y profesionales asi como los estipulados en el paragrafo del articulo 77 de la ley 1474 de 2011 | P134: Ley 1712 2014 | Q134: Reserva parcial | R134: 2017-06-30 | S134: 15 Años
A135: =IF(D135<>"",VLOOKUP('ACTIVOS DE INFORMACIÓN 2020'!D135,DATA!$E$2:$F$95,2)&"-"&B135,"") -> 120-128 | B135: 128 | C135: SOFTWARE | D135: OFICINA DE TECNOLOGIAS DE LA INFORMACIÓN | E135: Aplicaciones - Cobro coactivo | F135: Sistema de información financiera y Administrativa | G135: N/A | H135: N/A | I135: N/A | J135: Sistemas de Información corporativos | K135: API | L135: Español | M135: INFORMACIÓN PÚBLICA CLASIFICADA | N135: SI | O135: Ley 1712 Articulo 18 literal c. Los secretos comerciales, industriales y profesionales asi como los estipulados en el paragrafo del articulo 77 de la ley 1474 de 2011 | P135: Ley 1712 2014 | Q135: Reserva parcial | R135: 2017-07-01 | S135: 15 Años
A136: =IF(D136<>"",VLOOKUP('ACTIVOS DE INFORMACIÓN 2020'!D136,DATA!$E$2:$F$95,2)&"-"&B136,"") -> 120-129 | B136: 129 | C136: SOFTWARE | D136: OFICINA DE TECNOLOGIAS DE LA INFORMACIÓN | E136: Base de Datos - Cobro coactivo | F136: Base de Datos del Sistema de información financiera y Administrativa | G136: N/A | H136: N/A | I136: N/A | J136: Sistemas de Información corporativos | K136: Base de datos | L136: Español | M136: INFORMACIÓN PÚBLICA CLASIFICADA | N136: SI | O136: Ley 1712 Articulo 18 literal c. Los secretos comerciales, industriales y profesionales asi como los estipulados en el paragrafo del articulo 77 de la ley 1474 de 2011 | P136: Ley 1712 2014 | Q136: Reserva parcial | R136: 2017-07-02 | S136: 15 Años
A137: =IF(D137<>"",VLOOKUP('ACTIVOS DE INFORMACIÓN 2020'!D137,DATA!$E$2:$F$95,2)&"-"&B137,"") -> 120-130 | B137: =IF(AND(A136="",D137<>""),"LEB",IF(D137<>"",1+B136,"")) -> 130 | C137: SOFTWARE | D137: OFICINA DE TECNOLOGIAS DE LA INFORMACIÓN | E137: Aplicaciones - Kactus | F137: Sistema de información de gestion de recurso humano | G137: N/A | H137: N/A | I137: N/A | J137: Sistemas de Información corporativos | K137: API | L137: Español | M137: INFORMACIÓN PÚBLICA CLASIFICADA | N137: SI | O137: Ley 1712 Articulo 18 literal c. Los secretos comerciales, industriales y profesionales asi como los estipulados en el paragrafo del articulo 77 de la ley 1474 de 2011 | P137: Ley 1712 2014 | Q137: Reserva parcial | R137: 2017-07-03 | S137: 15 Años
A138: =IF(D138<>"",VLOOKUP('ACTIVOS DE INFORMACIÓN 2020'!D138,DATA!$E$2:$F$95,2)&"-"&B138,"") -> 120-131 | B138: 131 | C138: SOFTWARE | D138: OFICINA DE TECNOLOGIAS DE LA INFORMACIÓN | E138: Base de datos - Kactus | F138: Base de Datos Sistema de información de gestion de recurso humano | G138: N/A | H138: N/A | I138: N/A | J138: Sistemas de Información corporativos | K138: Base de datos | L138: Español | M138: INFORMACIÓN PÚBLICA CLASIFICADA | N138: SI | O138: Ley 1712 Articulo 18 literal c. Los secretos comerciales, industriales y profesionales asi como los estipulados en el paragrafo del articulo 77 de la ley 1474 de 2011 | P138: Ley 1712 2014 | Q138: Reserva parcial | R138: 2017-07-04 | S138: 15 Años
A139: =IF(D139<>"",VLOOKUP('ACTIVOS DE INFORMACIÓN 2020'!D139,DATA!$E$2:$F$95,2)&"-"&B139,"") -> 120-132 | B139: 132 | C139: SOFTWARE | D139: OFICINA DE TECNOLOGIAS DE LA INFORMACIÓN | E139: Aplicaciones - Pólizas y garantías | F139: Módulo de gestión de polizas y garantías | G139: N/A | H139: N/A | I139: N/A | J139: Sistemas de Información corporativos | K139: API | L139: Español | M139: INFORMACIÓN PÚBLICA CLASIFICADA | N139: SI | O139: Ley 1712 Articulo 18 literal c. Los secretos comerciales, industriales y profesionales asi como los estipulados en el paragrafo del articulo 77 de la ley 1474 de 2011 | P139: Ley 1712 2014 | Q139: Reserva parcial | R139: 2017-06-30 | S139: 15 Años
A140: =IF(D140<>"",VLOOKUP('ACTIVOS DE INFORMACIÓN 2020'!D140,DATA!$E$2:$F$95,2)&"-"&B140,"") -> 120-133 | B140: 133 | C140: SOFTWARE | D140: OFICINA DE TECNOLOGIAS DE LA INFORMACIÓN | E140: Aplicaciones - BDU | F140: BDU Plus Aplicaion para los proveedores de servicios de TIC del país. Contiene información de todos los operadores que solicitaron servicios antes y después de la ley 1341, ya que se carga información de los nuevos operadores proveniente de SISC. | G140: N/A | H140: N/A | I140: N/A | J140: Sistemas de Información corporativos | K140: API | L140: Español | M140: INFORMACIÓN PÚBLICA CLASIFICADA | N140: SI | O140: Ley 1712 Articulo 18 literal c. Los secretos comerciales, industriales y profesionales asi como los estipulados en el paragrafo del articulo 77 de la ley 1474 de 2011 | P140: Ley 1712 2014 | Q140: Reserva parcial | R140: 2017-06-27 | S140: 15 Años
A141: =IF(D141<>"",VLOOKUP('ACTIVOS DE INFORMACIÓN 2020'!D141,DATA!$E$2:$F$95,2)&"-"&B141,"") -> 120-134 | B141: 134 | C141: SOFTWARE | D141: OFICINA DE TECNOLOGIAS DE LA INFORMACIÓN | E141: Aplicaciones - BDU | F141: BDU Plus Aplicaion para los proveedores de servicios de TIC del país. Contiene información de todos los operadores que solicitaron servicios antes y después de la ley 1341, ya que se carga información de los nuevos operadores proveniente de SISC. | G141: N/A | H141: N/A | I141: N/A | J141: Sistemas de Información corporativos | K141: API | L141: Español | M141: INFORMACIÓN PÚBLICA CLASIFICADA | N141: SI | O141: Ley 1712 Articulo 18 literal c. Los secretos comerciales, industriales y profesionales asi como los estipulados en el paragrafo del articulo 77 de la ley 1474 de 2011 | P141: Ley 1712 2014 | Q141: Reserva parcial | R141: 2017-06-27 | S141: 15 Años
A142: =IF(D142<>"",VLOOKUP('ACTIVOS DE INFORMACIÓN 2020'!D142,DATA!$E$2:$F$95,2)&"-"&B142,"") -> 120-135 | B142: 135 | C142: SOFTWARE | D142: OFICINA DE TECNOLOGIAS DE LA INFORMACIÓN | E142: Aplicaciones - BDU | F142: BDU Plus Aplicaion para los proveedores de servicios de TIC del país. Contiene información de todos los operadores que solicitaron servicios antes y después de la ley 1341, ya que se carga información de los nuevos operadores proveniente de SISC. | G142: N/A | H142: N/A | I142: N/A | J142: Sistemas de Información corporativos | K142: API | L142: Español | M142: INFORMACIÓN PÚBLICA CLASIFICADA | N142: SI | O142: Ley 1712 Articulo 18 literal c. Los secretos comerciales, industriales y profesionales asi como los estipulados en el paragrafo del articulo 77 de la ley 1474 de 2011 | P142: Ley 1712 2014 | Q142: Reserva parcial | R142: 2017-06-27 | S142: 15 Años
A143: =IF(D143<>"",VLOOKUP('ACTIVOS DE INFORMACIÓN 2020'!D143,DATA!$E$2:$F$95,2)&"-"&B143,"") -> 120-136 | B143: 136 | C143: SOFTWARE | D143: OFICINA DE TECNOLOGIAS DE LA INFORMACIÓN | E143: Aplicaciones - BDU | F143: BDU Plus Aplicaion para los proveedores de servicios de TIC del país. Contiene información de todos los operadores que solicitaron servicios antes y después de la ley 1341, ya que se carga información de los nuevos operadores proveniente de SISC. | G143: N/A | H143: N/A | I143: N/A | J143: Sistemas de Información corporativos | K143: API | L143: Español | M143: INFORMACIÓN PÚBLICA CLASIFICADA | N143: SI | O143: Ley 1712 Articulo 18 literal c. Los secretos comerciales, industriales y profesionales asi como los estipulados en el paragrafo del articulo 77 de la ley 1474 de 2011 | P143: Ley 1712 2014 | Q143: Reserva parcial | R143: 2017-06-27 | S143: 15 Años
A144: =IF(D144<>"",VLOOKUP('ACTIVOS DE INFORMACIÓN 2020'!D144,DATA!$E$2:$F$95,2)&"-"&B144,"") -> 120-137 | B144: 137 | C144: SOFTWARE | D144: OFICINA DE TECNOLOGIAS DE LA INFORMACIÓN | E144: Aplicaciones - BDU | F144: BDU Plus Aplicaion para los proveedores de servicios de TIC del país. Contiene información de todos los operadores que solicitaron servicios antes y después de la ley 1341, ya que se carga información de los nuevos operadores proveniente de SISC. | G144: N/A | H144: N/A | I144: N/A | J144: Sistemas de Información corporativos | K144: API | L144: Español | M144: INFORMACIÓN PÚBLICA CLASIFICADA | N144: SI | O144: Ley 1712 Articulo 18 literal c. Los secretos comerciales, industriales y profesionales asi como los estipulados en el paragrafo del articulo 77 de la ley 1474 de 2011 | P144: Ley 1712 2014 | Q144: Reserva parcial | R144: 2017-06-27 | S144: 15 Años
A145: =IF(D145<>"",VLOOKUP('ACTIVOS DE INFORMACIÓN 2020'!D145,DATA!$E$2:$F$95,2)&"-"&B145,"") -> 120-138 | B145: 138 | C145: SOFTWARE | D145: OFICINA DE TECNOLOGIAS DE LA INFORMACIÓN | E145: Aplicaciones - BDU | F145: BDU Plus Aplicaion para los proveedores de servicios de TIC del país. Contiene información de todos los operadores que solicitaron servicios antes y después de la ley 1341, ya que se carga información de los nuevos operadores proveniente de SISC. | G145: N/A | H145: N/A | I145: N/A | J145: Sistemas de Información corporativos | K145: API | L145: Español | M145: INFORMACIÓN PÚBLICA CLASIFICADA | N145: SI | O145: Ley 1712 Articulo 18 literal c. Los secretos comerciales, industriales y profesionales asi como los estipulados en el paragrafo del articulo 77 de la ley 1474 de 2011 | P145: Ley 1712 2014 | Q145: Reserva parcial | R145: 2017-06-21 | S145: 15 Años
A146: =IF(D146<>"",VLOOKUP('ACTIVOS DE INFORMACIÓN 2020'!D146,DATA!$E$2:$F$95,2)&"-"&B146,"") -> 120-139 | B146: 139 | C146: SOFTWARE | D146: OFICINA DE TECNOLOGIAS DE LA INFORMACIÓN | E146: Base de Datos-BDU | F146: Base de datos única de Operadores y prestadores de servicio | G146: N/A | H146: N/A | I146: N/A | J146: Sistemas de Información corporativos | K146: Base de datos | L146: Español | M146: INFORMACIÓN PÚBLICA CLASIFICADA | N146: SI | O146: Ley 1712 Articulo 18 literal c. Los secretos comerciales, industriales y profesionales asi como los estipulados en el paragrafo del articulo 77 de la ley 1474 de 2011 | P146: Ley 1712 2014 | Q146: Reserva parcial | R146: 2017-06-18 | S146: 15 Años
A147: =IF(D147<>"",VLOOKUP('ACTIVOS DE INFORMACIÓN 2020'!D147,DATA!$E$2:$F$95,2)&"-"&B147,"") -> 120-140 | B147: 140 | C147: SOFTWARE | D147: OFICINA DE TECNOLOGIAS DE LA INFORMACIÓN | E147: Base de Datos- Alertas | F147: Base de datos única de Operadores y prestadores de servicio | G147: N/A | H147: N/A | I147: N/A | J147: Sistemas de Información corporativos | K147: Base de datos | L147: Español | M147: INFORMACIÓN PÚBLICA CLASIFICADA | N147: SI | O147: Ley 1712 Articulo 18 literal c. Los secretos comerciales, industriales y profesionales asi como los estipulados en el paragrafo del articulo 77 de la ley 1474 de 2011 | P147: Ley 1712 2014 | Q147: Reserva parcial | R147: 2017-06-30 | S147: 15 Años
A148: =IF(D148<>"",VLOOKUP('ACTIVOS DE INFORMACIÓN 2020'!D148,DATA!$E$2:$F$95,2)&"-"&B148,"") -> 120-141 | B148: 141 | C148: SOFTWARE | D148: OFICINA DE TECNOLOGIAS DE LA INFORMACIÓN | E148: Aplicaciones - Alertas | F148: Sistema que permite generar alertas sobre el cumplimiento | G148: N/A | H148: N/A | I148: N/A | J148: Sistemas de Información corporativos | K148: API | L148: Español | M148: INFORMACIÓN PÚBLICA CLASIFICADA | N148: SI | O148: Ley 1712 Articulo 18 literal c. Los secretos comerciales, industriales y profesionales asi como los estipulados en el paragrafo del articulo 77 de la ley 1474 de 2011 | P148: Ley 1712 2014 | Q148: Reserva parcial | R148: 2017-06-30 | S148: 15 Años
A149: =IF(D149<>"",VLOOKUP('ACTIVOS DE INFORMACIÓN 2020'!D149,DATA!$E$2:$F$95,2)&"-"&B149,"") -> 120-142 | B149: 142 | C149: SOFTWARE | D149: OFICINA DE TECNOLOGIAS DE LA INFORMACIÓN | E149: Aplicaciones - Alertas | F149: Sistema que permite generar alertas sobre el cumplimiento | G149: N/A | H149: N/A | I149: N/A | J149: Sistemas de Información corporativos | K149: API | L149: Español | M149: INFORMACIÓN PÚBLICA CLASIFICADA | N149: SI | O149: Ley 1712 Articulo 18 literal c. Los secretos comerciales, industriales y profesionales asi como los estipulados en el paragrafo del articulo 77 de la ley 1474 de 2011 | P149: Ley 1712 2014 | Q149: Reserva parcial | R149: 2017-06-30 | S149: 15 Años
A150: =IF(D150<>"",VLOOKUP('ACTIVOS DE INFORMACIÓN 2020'!D150,DATA!$E$2:$F$95,2)&"-"&B150,"") -> 120-143 | B150: 143 | C150: SOFTWARE | D150: OFICINA DE TECNOLOGIAS DE LA INFORMACIÓN | E150: Aplicaciones - Alertas | F150: Sistema que permite generar alertas sobre el cumplimiento | G150: N/A | H150: N/A | I150: N/A | J150: Sistemas de Información corporativos | K150: API | L150: Español | M150: INFORMACIÓN PÚBLICA CLASIFICADA | N150: SI | O150: Ley 1712 Articulo 18 literal c. Los secretos comerciales, industriales y profesionales asi como los estipulados en el paragrafo del articulo 77 de la ley 1474 de 2011 | P150: Ley 1712 2014 | Q150: Reserva parcial | R150: 2017-06-30 | S150: 15 Años
A151: =IF(D151<>"",VLOOKUP('ACTIVOS DE INFORMACIÓN 2020'!D151,DATA!$E$2:$F$95,2)&"-"&B151,"") -> 120-144 | B151: 144 | C151: SOFTWARE | D151: OFICINA DE TECNOLOGIAS DE LA INFORMACIÓN | E151: Aplicaciones - Notificaciones | F151: Sistema que permite realizar la gestión de las notificaciones de los actos administrativos y resoluciones de los procesos realizados por las diferentes áreas de MinTIC | G151: N/A | H151: N/A | I151: N/A | J151: Sistemas de Información corporativos | K151: API | L151: Español | M151: INFORMACIÓN PÚBLICA CLASIFICADA | N151: SI | O151: Ley 1712 Articulo 18 literal c. Los secretos comerciales, industriales y profesionales asi como los estipulados en el paragrafo del articulo 77 de la ley 1474 de 2011 | P151: Ley 1712 2014 | Q151: Reserva parcial | R151: 2017-06-30 | S151: 15 Años
A152: =IF(D152<>"",VLOOKUP('ACTIVOS DE INFORMACIÓN 2020'!D152,DATA!$E$2:$F$95,2)&"-"&B152,"") -> 120-145 | B152: 145 | C152: SOFTWARE | D152: OFICINA DE TECNOLOGIAS DE LA INFORMACIÓN | E152: Base de datos - Notificaciones | F152: Base de datos única de Operadores y prestadores de servicio | G152: N/A | H152: N/A | I152: N/A | J152: Sistemas de Información corporativos | K152: Base de datos | L152: Español | M152: INFORMACIÓN PÚBLICA CLASIFICADA | N152: SI | O152: Ley 1712 Articulo 18 literal c. Los secretos comerciales, industriales y profesionales asi como los estipulados en el paragrafo del articulo 77 de la ley 1474 de 2011 | P152: Ley 1712 2014 | Q152: Reserva parcial | R152: 2017-06-30 | S152: 15 Años
A153: =IF(D153<>"",VLOOKUP('ACTIVOS DE INFORMACIÓN 2020'!D153,DATA!$E$2:$F$95,2)&"-"&B153,"") -> 120-146 | B153: 146 | C153: SOFTWARE | D153: OFICINA DE TECNOLOGIAS DE LA INFORMACIÓN | E153: Aplicaciones - Auraportal Registro TIC | F153: Registro y autorización de operadores de comunicaciones | G153: N/A | H153: N/A | I153: N/A | J153: Sistemas de Información corporativos | K153: API | L153: Español | M153: INFORMACIÓN PÚBLICA CLASIFICADA | N153: SI | O153: Ley 1712 Articulo 18 literal c. Los secretos comerciales, industriales y profesionales asi como los estipulados en el paragrafo del articulo 77 de la ley 1474 de 2011 | P153: Ley 1712 2014 | Q153: Reserva parcial | R153: 2017-06-30 | S153: 15 Años
A154: =IF(D154<>"",VLOOKUP('ACTIVOS DE INFORMACIÓN 2020'!D154,DATA!$E$2:$F$95,2)&"-"&B154,"") -> 120-147 | B154: 147 | C154: SOFTWARE | D154: OFICINA DE TECNOLOGIAS DE LA INFORMACIÓN | E154: Aplicaciones- Auraportal - VYC | F154: El aplicativo contiene las etapas de los procesos de investigación y la trazabilidad requerida para consultar las acciones realizadas y los actores que han intervenido en la investigación. | G154: N/A | H154: N/A | I154: N/A | J154: Sistemas de Información corporativos | K154: API | L154: Español | M154: INFORMACIÓN PÚBLICA CLASIFICADA | N154: SI | O154: Ley 1712 Articulo 18 literal c. Los secretos comerciales, industriales y profesionales asi como los estipulados en el paragrafo del articulo 77 de la ley 1474 de 2011 | P154: Ley 1712 2014 | Q154: Reserva parcial | R154: 2017-06-30 | S154: 15 Años
A155: =IF(D155<>"",VLOOKUP('ACTIVOS DE INFORMACIÓN 2020'!D155,DATA!$E$2:$F$95,2)&"-"&B155,"") -> 120-148 | B155: 148 | C155: SOFTWARE | D155: OFICINA DE TECNOLOGIAS DE LA INFORMACIÓN | E155: Aplicaciones- Auraportal - Registro Postal | F155: Sistema que emite el certificado de autorización que indica que un proveedor puede prestar un servicio postal bajo unos parámetros y metas de calidad universal. | G155: N/A | H155: N/A | I155: N/A | J155: Sistemas de Información corporativos | K155: API | L155: Español | M155: INFORMACIÓN PÚBLICA CLASIFICADA | N155: SI | O155: Ley 1712 Articulo 18 literal c. Los secretos comerciales, industriales y profesionales asi como los estipulados en el paragrafo del articulo 77 de la ley 1474 de 2011 | P155: Ley 1712 2014 | Q155: Reserva parcial | R155: 2017-06-30 | S155: 15 Años
A156: =IF(D156<>"",VLOOKUP('ACTIVOS DE INFORMACIÓN 2020'!D156,DATA!$E$2:$F$95,2)&"-"&B156,"") -> 120-149 | B156: 149 | C156: SOFTWARE | D156: OFICINA DE TECNOLOGIAS DE LA INFORMACIÓN | E156: Aplicaciones- Auraportal - Mensajería Expresa | F156: Mensajería Expresa Auraportal | G156: N/A | H156: N/A | I156: N/A | J156: Sistemas de Información corporativos | K156: API | L156: Español | M156: INFORMACIÓN PÚBLICA CLASIFICADA | N156: SI | O156: Ley 1712 Articulo 18 literal c. Los secretos comerciales, industriales y profesionales asi como los estipulados en el paragrafo del articulo 77 de la ley 1474 de 2011 | P156: Ley 1712 2014 | Q156: Reserva parcial | R156: 2017-06-30 | S156: 15 Años
A157: =IF(D157<>"",VLOOKUP('ACTIVOS DE INFORMACIÓN 2020'!D157,DATA!$E$2:$F$95,2)&"-"&B157,"") -> 120-150 | B157: 150 | C157: SOFTWARE | D157: OFICINA DE TECNOLOGIAS DE LA INFORMACIÓN | E157: Aplicaciones - Auraportal - AVETM | F157: Controlar la autorización de venta de terminales móviles desde su registro, modificación y retiro de autorización de operadores. Mediante el Sistema de Información Integral de Autorizaciones SIIA - Puesto de venta celulares están autorizados, el cual está al alcance de los ciudadanos en este sitio web. | G157: N/A | H157: N/A | I157: N/A | J157: Sistemas de Información corporativos | K157: API | L157: Español | M157: INFORMACIÓN PÚBLICA CLASIFICADA | N157: SI | O157: Ley 1712 Articulo 18 literal c. Los secretos comerciales, industriales y profesionales asi como los estipulados en el paragrafo del articulo 77 de la ley 1474 de 2011 | P157: Ley 1712 2014 | Q157: Reserva parcial | R157: 2017-06-30 | S157: 15 Años
A158: =IF(D158<>"",VLOOKUP('ACTIVOS DE INFORMACIÓN 2020'!D158,DATA!$E$2:$F$95,2)&"-"&B158,"") -> 120-151 | B158: 151 | C158: SOFTWARE | D158: OFICINA DE TECNOLOGIAS DE LA INFORMACIÓN | E158: Aplicaciones - Auraportal - Radioaficionados | F158: El servicio radioaficionado y radioaficionado por satélite, podrá prestarse en todo el territorio nacional, incluyendo aguas territoriales y espacio aéreo, así como también en los lugares que por convenciones internacionales le reconozcan a Colombia el principio de extraterritorialidad. | G158: N/A | H158: N/A | I158: N/A | J158: Sistemas de Información corporativos | K158: API | L158: Español | M158: INFORMACIÓN PÚBLICA CLASIFICADA | N158: SI | O158: Ley 1712 Articulo 18 literal c. Los secretos comerciales, industriales y profesionales asi como los estipulados en el paragrafo del articulo 77 de la ley 1474 de 2011 | P158: Ley 1712 2014 | Q158: Reserva parcial | R158: 2017-06-30 | S158: 15 Años
A159: =IF(D159<>"",VLOOKUP('ACTIVOS DE INFORMACIÓN 2020'!D159,DATA!$E$2:$F$95,2)&"-"&B159,"") -> 120-152 | B159: 152 | C159: SOFTWARE | D159: OFICINA DE TECNOLOGIAS DE LA INFORMACIÓN | E159: Aplicaciones - Auraportal - RPCS | F159: Habilitación de la Persona jurídica legalmente constituida en Colombia, autorizada por un operador satelital (Registrado en MitTIC) para comercializar o proveerse a sí mismo o a terceras personas, capacidad satelital en el territorio nacional. | G159: N/A | H159: N/A | I159: N/A | J159: Sistemas de Información corporativos | K159: API | L159: Español | M159: INFORMACIÓN PÚBLICA CLASIFICADA | N159: SI | O159: Ley 1712 Articulo 18 literal c. Los secretos comerciales, industriales y profesionales asi como los estipulados en el paragrafo del articulo 77 de la ley 1474 de 2011 | P159: Ley 1712 2014 | Q159: Reserva parcial | R159: 2017-06-30 | S159: 15 Años
A160: =IF(D160<>"",VLOOKUP('ACTIVOS DE INFORMACIÓN 2020'!D160,DATA!$E$2:$F$95,2)&"-"&B160,"") -> 120-153 | B160: 153 | C160: SOFTWARE | D160: OFICINA DE TECNOLOGIAS DE LA INFORMACIÓN | E160: Aplicaciones - Auraportal - RTIC RDS | F160: El Registro de Radiodifusión Sonora tiene como objetivo la actualización ON LINE de los diferentes operadores de este servicio público de telecomunicaciones, a cargo y bajo la titularidad del Estado, orientado a satisfacer necesidades de telecomunicaciones de los habitantes del territorio nacional y cuyas emisiones se destinan a ser recibidas por el público en general. | G160: N/A | H160: N/A | I160: N/A | J160: Sistemas de Información corporativos | K160: API | L160: Español | M160: INFORMACIÓN PÚBLICA CLASIFICADA | N160: SI | O160: Ley 1712 Articulo 18 literal c. Los secretos comerciales, industriales y profesionales asi como los estipulados en el paragrafo del articulo 77 de la ley 1474 de 2011 | P160: Ley 1712 2014 | Q160: Reserva parcial | R160: 2017-06-30 | S160: 15 Años
A161: =IF(D161<>"",VLOOKUP('ACTIVOS DE INFORMACIÓN 2020'!D161,DATA!$E$2:$F$95,2)&"-"&B161,"") -> 120-154 | B161: 154 | C161: SOFTWARE | D161: OFICINA DE TECNOLOGIAS DE LA INFORMACIÓN | E161: Aplicaciones - Auraportal - Paz y Salvos de derchos de autor | F161: Módulo para la gestión de los paz y salvos de derechos de autor enviados por los PRST | G161: N/A | H161: N/A | I161: N/A | J161: Sistemas de Información corporativos | K161: API | L161: Español | M161: INFORMACIÓN PÚBLICA CLASIFICADA | N161: SI | O161: Ley 1712 Articulo 18 literal c. Los secretos comerciales, industriales y profesionales asi como los estipulados en el paragrafo del articulo 77 de la ley 1474 de 2011 | P161: Ley 1712 2014 | Q161: Reserva parcial | R161: 2017-06-30 | S161: 15 Años
A162: =IF(D162<>"",VLOOKUP('ACTIVOS DE INFORMACIÓN 2020'!D162,DATA!$E$2:$F$95,2)&"-"&B162,"") -> 120-155 | B162: 155 | C162: SOFTWARE | D162: OFICINA DE TECNOLOGIAS DE LA INFORMACIÓN | E162: Aplicaciones - Auraportal - IMEI | F162: Módulo habilitado por el Ministerio de TIC para que los importadores de teléfonos móviles inteligentes y teléfonos móviles celulares, previamente inscritos en el registro policial, transmitan los IMEI de cada uno de los equipos móviles objeto de importación, con anterioridad a la presentación y aceptación de la declaración de importación, de conformidad con lo establecido en el Artículo 4° del Decreto 2025 de Octubre 16 de 2015 | G162: N/A | H162: N/A | I162: N/A | J162: Sistemas de Información corporativos | K162: API | L162: Español | M162: INFORMACIÓN PÚBLICA CLASIFICADA | N162: SI | O162: Ley 1712 Articulo 18 literal c. Los secretos comerciales, industriales y profesionales asi como los estipulados en el paragrafo del articulo 77 de la ley 1474 de 2011 | P162: Ley 1712 2014 | Q162: Reserva parcial | R162: 2017-06-30 | S162: 15 Años
A163: =IF(D163<>"",VLOOKUP('ACTIVOS DE INFORMACIÓN 2020'!D163,DATA!$E$2:$F$95,2)&"-"&B163,"") -> 120-156 | B163: 156 | C163: SOFTWARE | D163: OFICINA DE TECNOLOGIAS DE LA INFORMACIÓN | E163: Aplicaciones - Auraportal - Carga BI | F163: Módulo para la carga de la informcion de los proyectos BI de oferta TIC | G163: N/A | H163: N/A | I163: N/A | J163: Sistemas de Información corporativos | K163: API | L163: Español | M163: INFORMACIÓN PÚBLICA CLASIFICADA | N163: SI | O163: Ley 1712 Articulo 18 literal c. Los secretos comerciales, industriales y profesionales asi como los estipulados en el paragrafo del articulo 77 de la ley 1474 de 2011 | P163: Ley 1712 2014 | Q163: Reserva parcial | R163: 2017-06-30 | S163: 15 Años
A164: =IF(D164<>"",VLOOKUP('ACTIVOS DE INFORMACIÓN 2020'!D164,DATA!$E$2:$F$95,2)&"-"&B164,"") -> 120-157 | B164: 157 | C164: SOFTWARE | D164: OFICINA DE TECNOLOGIAS DE LA INFORMACIÓN | E164: Aplicaciones - Auraporta - Contratación Directa | F164: Módulo para el apoyo al proceso de contratacion de directa de persona natural | G164: N/A | H164: N/A | I164: N/A | J164: Sistemas de Información corporativos | K164: API | L164: Español | M164: INFORMACIÓN PÚBLICA CLASIFICADA | N164: SI | O164: Ley 1712 Articulo 18 literal c. Los secretos comerciales, industriales y profesionales asi como los estipulados en el paragrafo del articulo 77 de la ley 1474 de 2011 | P164: Ley 1712 2014 | Q164: Reserva parcial | R164: 2017-06-30 | S164: 15 Años
A165: =IF(D165<>"",VLOOKUP('ACTIVOS DE INFORMACIÓN 2020'!D165,DATA!$E$2:$F$95,2)&"-"&B165,"") -> 120-158 | B165: 158 | C165: SOFTWARE | D165: OFICINA DE TECNOLOGIAS DE LA INFORMACIÓN | E165: Auraportal - Control Interno Disciplinario | F165: Módulo para el seguimiento a los procesos de investigaion de OCI | G165: N/A | H165: N/A | I165: N/A | J165: Sistemas de Información corporativos | K165: Base de datos | L165: Español | M165: INFORMACIÓN PÚBLICA CLASIFICADA | N165: SI | O165: Ley 1712 Articulo 18 literal c. Los secretos comerciales, industriales y profesionales asi como los estipulados en el paragrafo del articulo 77 de la ley 1474 de 2011 | P165: Ley 1712 2014 | Q165: Reserva parcial | R165: 2017-06-30 | S165: 15 Años
A166: =IF(D166<>"",VLOOKUP('ACTIVOS DE INFORMACIÓN 2020'!D166,DATA!$E$2:$F$95,2)&"-"&B166,"") -> 120-159 | B166: 159 | C166: SOFTWARE | D166: OFICINA DE TECNOLOGIAS DE LA INFORMACIÓN | E166: Aplicaciones - Auraportal - Planes de Mejora | F166: Módulo para la carga de la información de los planes de mejora que compromenten los PRST con la Dirección de Vigilancia y Control | G166: N/A | H166: N/A | I166: N/A | J166: Sistemas de Información corporativos | K166: API | L166: Español | M166: INFORMACIÓN PÚBLICA CLASIFICADA | N166: SI | O166: Ley 1712 Articulo 18 literal c. Los secretos comerciales, industriales y profesionales asi como los estipulados en el paragrafo del articulo 77 de la ley 1474 de 2011 | P166: Ley 1712 2014 | Q166: Reserva parcial | R166: 2017-06-30 | S166: 15 Años
A167: =IF(D167<>"",VLOOKUP('ACTIVOS DE INFORMACIÓN 2020'!D167,DATA!$E$2:$F$95,2)&"-"&B167,"") -> 120-160 | B167: 160 | C167: SOFTWARE | D167: OFICINA DE TECNOLOGIAS DE LA INFORMACIÓN | E167: Auraportal - Base de datos | F167: Sistemas de almacenamiento de datos para las aplicaciones de Auraportal | G167: N/A | H167: N/A | I167: N/A | J167: Sistemas de Información corporativos | K167: Base de datos | L167: Español | M167: INFORMACIÓN PÚBLICA CLASIFICADA | N167: SI | O167: Ley 1712 Articulo 18 literal c. Los secretos comerciales, industriales y profesionales asi como los estipulados en el paragrafo del articulo 77 de la ley 1474 de 2011 | P167: Ley 1712 2014 | Q167: Reserva parcial | R167: 2017-06-30 | S167: 15 Años
A168: =IF(D168<>"",VLOOKUP('ACTIVOS DE INFORMACIÓN 2020'!D168,DATA!$E$2:$F$95,2)&"-"&B168,"") -> 120-161 | B168: 161 | C168: SOFTWARE | D168: OFICINA DE TECNOLOGIAS DE LA INFORMACIÓN | E168: Aplicaciones - SGE | F168: Sistema de Gestión del Espectro | G168: N/A | H168: N/A | I168: N/A | J168: Sistemas de Información corporativos | K168: API | L168: Español | M168: INFORMACIÓN PÚBLICA CLASIFICADA | N168: SI | O168: Ley 1712 Articulo 18 literal c. Los secretos comerciales, industriales y profesionales asi como los estipulados en el paragrafo del articulo 77 de la ley 1474 de 2011 | P168: Ley 1712 2014 | Q168: Reserva parcial | R168: 2017-06-30 | S168: 15 Años
A169: =IF(D169<>"",VLOOKUP('ACTIVOS DE INFORMACIÓN 2020'!D169,DATA!$E$2:$F$95,2)&"-"&B169,"") -> 120-162 | B169: 162 | C169: SOFTWARE | D169: OFICINA DE TECNOLOGIAS DE LA INFORMACIÓN | E169: Base de Datos SGE | F169: Base de Datos del Sistema de Gestión del Espectro | G169: N/A | H169: N/A | I169: N/A | J169: Sistemas de Información corporativos | K169: Base de datos | L169: Español | M169: INFORMACIÓN PÚBLICA CLASIFICADA | N169: SI | O169: Ley 1712 Articulo 18 literal c. Los secretos comerciales, industriales y profesionales asi como los estipulados en el paragrafo del articulo 77 de la ley 1474 de 2011 | P169: Ley 1712 2014 | Q169: Reserva parcial | R169: 2017-06-30 | S169: 15 Años
A170: =IF(D170<>"",VLOOKUP('ACTIVOS DE INFORMACIÓN 2020'!D170,DATA!$E$2:$F$95,2)&"-"&B170,"") -> 120-163 | B170: 163 | C170: SOFTWARE | D170: OFICINA DE TECNOLOGIAS DE LA INFORMACIÓN | E170: Aplicaciones - SER | F170: Sistema electrónico de recaudo | G170: N/A | H170: N/A | I170: N/A | J170: Sistemas de Información corporativos | K170: API | L170: Español | M170: INFORMACIÓN PÚBLICA CLASIFICADA | N170: SI | O170: Ley 1712 Articulo 18 literal c. Los secretos comerciales, industriales y profesionales asi como los estipulados en el paragrafo del articulo 77 de la ley 1474 de 2011 | P170: Ley 1712 2014 | Q170: Reserva parcial | R170: 2017-06-30 | S170: 15 Años
A171: =IF(D171<>"",VLOOKUP('ACTIVOS DE INFORMACIÓN 2020'!D171,DATA!$E$2:$F$95,2)&"-"&B171,"") -> 120-164 | B171: 164 | C171: SOFTWARE | D171: OFICINA DE TECNOLOGIAS DE LA INFORMACIÓN | E171: Base de datos - SER | F171: Base de datos del Sistema electrónico de recaudo | G171: N/A | H171: N/A | I171: N/A | J171: Sistemas de Información corporativos | K171: Base de datos | L171: Español | M171: INFORMACIÓN PÚBLICA CLASIFICADA | N171: SI | O171: Ley 1712 Articulo 18 literal c. Los secretos comerciales, industriales y profesionales asi como los estipulados en el paragrafo del articulo 77 de la ley 1474 de 2011 | P171: Ley 1712 2014 | Q171: Reserva parcial | R171: 2017-06-30 | S171: 15 Años
A172: =IF(D172<>"",VLOOKUP('ACTIVOS DE INFORMACIÓN 2020'!D172,DATA!$E$2:$F$95,2)&"-"&B172,"") -> 120-165 | B172: 165 | C172: SOFTWARE | D172: OFICINA DE TECNOLOGIAS DE LA INFORMACIÓN | E172: Base de Datos - SIUST | F172: Base de Datos del Sistema de información único del sector de las Telecomunicaciones | G172: N/A | H172: N/A | I172: N/A | J172: Sistemas de Información corporativos | K172: Base de datos | L172: Español | M172: INFORMACIÓN PÚBLICA CLASIFICADA | N172: SI | O172: Ley 1712 Articulo 18 literal c. Los secretos comerciales, industriales y profesionales asi como los estipulados en el paragrafo del articulo 77 de la ley 1474 de 2011 | P172: Ley 1712 2014 | Q172: Reserva parcial | R172: 2017-06-30 | S172: 15 Años
A173: =IF(D173<>"",VLOOKUP('ACTIVOS DE INFORMACIÓN 2020'!D173,DATA!$E$2:$F$95,2)&"-"&B173,"") -> 120-166 | B173: 166 | C173: SOFTWARE | D173: OFICINA DE TECNOLOGIAS DE LA INFORMACIÓN | E173: Aplicaciones - SIGEST | F173: Sistema Integral de gestión del sector | G173: N/A | H173: N/A | I173: N/A | J173: Sistemas de Información corporativos | K173: API | L173: Español | M173: INFORMACIÓN PÚBLICA CLASIFICADA | N173: SI | O173: Ley 1712 Articulo 18 literal c. Los secretos comerciales, industriales y profesionales asi como los estipulados en el paragrafo del articulo 77 de la ley 1474 de 2011 | P173: Ley 1712 2014 | Q173: Reserva parcial | R173: 2017-06-30 | S173: 15 Años
A174: =IF(D174<>"",VLOOKUP('ACTIVOS DE INFORMACIÓN 2020'!D174,DATA!$E$2:$F$95,2)&"-"&B174,"") -> 120-167 | B174: 167 | C174: SOFTWARE | D174: OFICINA DE TECNOLOGIAS DE LA INFORMACIÓN | E174: Aplicaciones - SIMONTIC | F174: SimonTIC - Sistema de Monitoreo de las tecnologías de la información y las comunicaciones. | G174: N/A | H174: N/A | I174: N/A | J174: Sistemas de Información corporativos | K174: API | L174: Español | M174: INFORMACIÓN PÚBLICA CLASIFICADA | N174: SI | O174: Ley 1712 Articulo 18 literal c. Los secretos comerciales, industriales y profesionales asi como los estipulados en el paragrafo del articulo 77 de la ley 1474 de 2011 | P174: Ley 1712 2014 | Q174: Reserva parcial | R174: 2017-06-30 | S174: 15 Años
A175: =IF(D175<>"",VLOOKUP('ACTIVOS DE INFORMACIÓN 2020'!D175,DATA!$E$2:$F$95,2)&"-"&B175,"") -> 120-168 | B175: 168 | C175: SOFTWARE | D175: OFICINA DE TECNOLOGIAS DE LA INFORMACIÓN | E175: Base de Datos - SIMONTIC | F175: Base de Datos de SimonTIC - Sistema de Monitoreo de las tecnologías de la información y las comunicaciones. | G175: N/A | H175: N/A | I175: N/A | J175: Sistemas de Información corporativos | K175: Base de datos | L175: Español | M175: INFORMACIÓN PÚBLICA CLASIFICADA | N175: SI | O175: Ley 1712 Articulo 18 literal c. Los secretos comerciales, industriales y profesionales asi como los estipulados en el paragrafo del articulo 77 de la ley 1474 de 2011 | P175: Ley 1712 2014 | Q175: Reserva parcial | R175: 2017-06-30 | S175: 15 Años
A176: =IF(D176<>"",VLOOKUP('ACTIVOS DE INFORMACIÓN 2020'!D176,DATA!$E$2:$F$95,2)&"-"&B176,"") -> 120-169 | B176: 169 | C176: SOFTWARE | D176: OFICINA DE TECNOLOGIAS DE LA INFORMACIÓN | E176: Aplicaciones - ASPA | F176: Aplicativo de seguimiento a plan de acción | G176: N/A | H176: N/A | I176: N/A | J176: Sistemas de Información corporativos | K176: API | L176: Español | M176: INFORMACIÓN PÚBLICA CLASIFICADA | N176: SI | O176: Ley 1712 Articulo 18 literal c. Los secretos comerciales, industriales y profesionales asi como los estipulados en el paragrafo del articulo 77 de la ley 1474 de 2011 | P176: Ley 1712 2014 | Q176: Reserva parcial | R176: 2017-06-30 | S176: 15 Años
A177: =IF(D177<>"",VLOOKUP('ACTIVOS DE INFORMACIÓN 2020'!D177,DATA!$E$2:$F$95,2)&"-"&B177,"") -> 120-170 | B177: 170 | C177: SOFTWARE | D177: OFICINA DE TECNOLOGIAS DE LA INFORMACIÓN | E177: Base de Datos - ASPA | F177: Base de datos de la aplicación ASPA para el seguimiento al plan estrategico del Ministerio TIC | G177: N/A | H177: N/A | I177: N/A | J177: Sistemas de Información corporativos | K177: Base de datos | L177: Español | M177: INFORMACIÓN PÚBLICA CLASIFICADA | N177: SI | O177: Ley 1712 Articulo 18 literal c. Los secretos comerciales, industriales y profesionales asi como los estipulados en el paragrafo del articulo 77 de la ley 1474 de 2011 | P177: Ley 1712 2014 | Q177: Reserva parcial | R177: 2017-06-30 | S177: 15 Años
A178: =IF(D178<>"",VLOOKUP('ACTIVOS DE INFORMACIÓN 2020'!D178,DATA!$E$2:$F$95,2)&"-"&B178,"") -> 120-171 | B178: 171 | C178: SOFTWARE | D178: OFICINA DE TECNOLOGIAS DE LA INFORMACIÓN | E178: Aplicaciones - Comisiones y viaticos | F178: Comisiones en Linea | G178: N/A | H178: N/A | I178: N/A | J178: Sistemas de Información corporativos | K178: API | L178: Español | M178: INFORMACIÓN PÚBLICA CLASIFICADA | N178: SI | O178: Ley 1712 Articulo 18 literal c. Los secretos comerciales, industriales y profesionales asi como los estipulados en el paragrafo del articulo 77 de la ley 1474 de 2011 | P178: Ley 1712 2014 | Q178: Reserva parcial | R178: 2017-06-30 | S178: 15 Años
A179: =IF(D179<>"",VLOOKUP('ACTIVOS DE INFORMACIÓN 2020'!D179,DATA!$E$2:$F$95,2)&"-"&B179,"") -> 120-172 | B179: 172 | C179: SOFTWARE | D179: OFICINA DE TECNOLOGIAS DE LA INFORMACIÓN | E179: Aplicaciones - BI | F179: Aplicativo de gestion de los proyectos de Vive Digital para la gente | G179: N/A | H179: N/A | I179: N/A | J179: Sistemas de Información corporativos | K179: Base de datos | L179: Español | M179: INFORMACIÓN PÚBLICA CLASIFICADA | N179: SI | O179: Ley 1712 Articulo 18 literal c. Los secretos comerciales, industriales y profesionales asi como los estipulados en el paragrafo del articulo 77 de la ley 1474 de 2011 | P179: Ley 1712 2014 | Q179: Reserva parcial | R179: 2017-06-30 | S179: 15 Años
A180: =IF(D180<>"",VLOOKUP('ACTIVOS DE INFORMACIÓN 2020'!D180,DATA!$E$2:$F$95,2)&"-"&B180,"") -> 120-173 | B180: 173 | C180: SOFTWARE | D180: OFICINA DE TECNOLOGIAS DE LA INFORMACIÓN | E180: Aplicaciones - Kronos | F180: Aplicativo que permite la administración y liquidación de las Cuotas Partes Pensionales por cobrar, por pagar y generación de cuentas de cobro. | G180: N/A | H180: N/A | I180: N/A | J180: Sistemas de Información corporativos | K180: API | L180: Español | M180: INFORMACIÓN PÚBLICA CLASIFICADA | N180: SI | O180: Ley 1712 Articulo 18 literal c. Los secretos comerciales, industriales y profesionales asi como los estipulados en el paragrafo del articulo 77 de la ley 1474 de 2011 | P180: Ley 1712 2014 | Q180: Reserva parcial | R180: 2017-06-30 | S180: 15 Años
A181: =IF(D181<>"",VLOOKUP('ACTIVOS DE INFORMACIÓN 2020'!D181,DATA!$E$2:$F$95,2)&"-"&B181,"") -> 120-174 | B181: 174 | C181: SOFTWARE | D181: OFICINA DE TECNOLOGIAS DE LA INFORMACIÓN | E181: Base de datos Kronos | F181: Base de datos del Aplicativo Kronos de administración y liquidación de las Cuotas Partes Pensionales por cobrar, por pagar y generación de cuentas de cobro. | G181: N/A | H181: N/A | I181: N/A | J181: Sistemas de Información corporativos | K181: Base de datos | L181: Español | M181: INFORMACIÓN PÚBLICA CLASIFICADA | N181: SI | O181: Ley 1712 Articulo 18 literal c. Los secretos comerciales, industriales y profesionales asi como los estipulados en el paragrafo del articulo 77 de la ley 1474 de 2011 | P181: Ley 1712 2014 | Q181: Reserva parcial | R181: 2017-06-30 | S181: 15 Años
A182: =IF(D182<>"",VLOOKUP('ACTIVOS DE INFORMACIÓN 2020'!D182,DATA!$E$2:$F$95,2)&"-"&B182,"") -> 120-175 | B182: 175 | C182: SOFTWARE | D182: OFICINA DE TECNOLOGIAS DE LA INFORMACIÓN | E182: Herramienta de gestión de portafolio de proyectos - PPM | F182: Herramienta donde se realiza gestión del portafolio de proyectos del Ministerio | G182: N/A | H182: N/A | I182: N/A | J182: Sistemas de Información corporativos | K182: Base de datos | L182: Español | M182: INFORMACIÓN PÚBLICA CLASIFICADA | N182: SI | O182: Ley 1712 Articulo 18 literal c. Los secretos comerciales, industriales y profesionales asi como los estipulados en el paragrafo del articulo 77 de la ley 1474 de 2011 | P182: Ley 1712 2014 | Q182: Reserva parcial | R182: 2017-06-30 | S182: 15 Años
A183: =IF(D183<>"",VLOOKUP('ACTIVOS DE INFORMACIÓN 2020'!D183,DATA!$E$2:$F$95,2)&"-"&B183,"") -> 120-176 | B183: 176 | C183: SOFTWARE | D183: OFICINA DE TECNOLOGIAS DE LA INFORMACIÓN | E183: Aplicaciones - SIAT RDS | F183: Aplicativo Sistema de informacion de alarmas tempranas radiodifusión sonora | G183: N/A | H183: N/A | I183: N/A | J183: Sistemas de Información corporativos | K183: API | L183: Español | M183: INFORMACIÓN PÚBLICA CLASIFICADA | N183: SI | O183: Ley 1712 Articulo 18 literal c. Los secretos comerciales, industriales y profesionales asi como los estipulados en el paragrafo del articulo 77 de la ley 1474 de 2011 | P183: Ley 1712 2014 | Q183: Reserva parcial | R183: 2017-12-31 | S183: 15 Años
A184: =IF(D184<>"",VLOOKUP('ACTIVOS DE INFORMACIÓN 2020'!D184,DATA!$E$2:$F$95,2)&"-"&B184,"") -> 120-177 | B184: 177 | C184: SOFTWARE | D184: OFICINA DE TECNOLOGIAS DE LA INFORMACIÓN | E184: Base de Datos - SIAT RDS | F184: Base de datos para el Aplicativo que permite la administración alertas tempranas para coordinacion de radio de la subdireccion de vigilancia y control. | G184: N/A | H184: N/A | I184: N/A | J184: Sistemas de Información corporativos | K184: Base de datos | L184: Español | M184: INFORMACIÓN PÚBLICA CLASIFICADA | N184: SI | O184: Ley 1712 Articulo 18 literal c. Los secretos comerciales, industriales y profesionales asi como los estipulados en el paragrafo del articulo 77 de la ley 1474 de 2011 | P184: Ley 1712 2014 | Q184: Reserva parcial | R184: 2019-06-30 | S184: 15 Años
A185: =IF(D185<>"",VLOOKUP('ACTIVOS DE INFORMACIÓN 2020'!D185,DATA!$E$2:$F$95,2)&"-"&B185,"") -> 120-178 | B185: 178 | C185: SOFTWARE | D185: OFICINA DE TECNOLOGIAS DE LA INFORMACIÓN | E185: Aplicaciones - SIAT PLUS | F185: Aplicativo de Sistema de alertas tempranas para el subsector de comunicaciones movil y no movil | G185: N/A | H185: N/A | I185: N/A | J185: Sistemas de Información corporativos | K185: API | L185: Español | M185: INFORMACIÓN PÚBLICA CLASIFICADA | N185: SI | O185: Ley 1712 Articulo 18 literal c. Los secretos comerciales, industriales y profesionales asi como los estipulados en el paragrafo del articulo 77 de la ley 1474 de 2011 | P185: Ley 1712 2014 | Q185: Reserva parcial | R185: 2018-06-30 | S185: 15 Años
A186: =IF(D186<>"",VLOOKUP('ACTIVOS DE INFORMACIÓN 2020'!D186,DATA!$E$2:$F$95,2)&"-"&B186,"") -> 120-179 | B186: 179 | C186: SOFTWARE | D186: OFICINA DE TECNOLOGIAS DE LA INFORMACIÓN | E186: Base de Datos - SIAT PLUS | F186: Base de datos para el Aplicativo que permite la administración alertas tempranas para coordinacion de radio de la subdireccion de vigilancia y control. | G186: N/A | H186: N/A | I186: N/A | J186: Sistemas de Información corporativos | K186: Base de datos | L186: Español | M186: INFORMACIÓN PÚBLICA CLASIFICADA | N186: SI | O186: Ley 1712 Articulo 18 literal c. Los secretos comerciales, industriales y profesionales asi como los estipulados en el paragrafo del articulo 77 de la ley 1474 de 2011 | P186: Ley 1712 2014 | Q186: Reserva parcial | R186: 2019-06-30 | S186: 15 Años
A187: =IF(D187<>"",VLOOKUP('ACTIVOS DE INFORMACIÓN 2020'!D187,DATA!$E$2:$F$95,2)&"-"&B187,"") -> 120-180 | B187: 180 | C187: SOFTWARE | D187: OFICINA DE TECNOLOGIAS DE LA INFORMACIÓN | E187: Aplicaciones - SIAT POSTAL | F187: Aplicativo de Sistema de alertas tempranas para el subsector Postal | G187: N/A | H187: N/A | I187: N/A | J187: Sistemas de Información corporativos | K187: API | L187: Español | M187: INFORMACIÓN PÚBLICA CLASIFICADA | N187: SI | O187: Ley 1712 Articulo 18 literal c. Los secretos comerciales, industriales y profesionales asi como los estipulados en el paragrafo del articulo 77 de la ley 1474 de 2011 | P187: Ley 1712 2014 | Q187: Reserva parcial | R187: 2018-12-31 | S187: 15 Años
A188: =IF(D188<>"",VLOOKUP('ACTIVOS DE INFORMACIÓN 2020'!D188,DATA!$E$2:$F$95,2)&"-"&B188,"") -> 120-181 | B188: 181 | C188: SOFTWARE | D188: OFICINA DE TECNOLOGIAS DE LA INFORMACIÓN | E188: Base de Datos - SIAT POSTAL | F188: Base de datos para el Aplicativo que permite la administración alertas tempranas para coordinacion de radio de la subdireccion de vigilancia y control. | G188: N/A | H188: N/A | I188: N/A | J188: Sistemas de Información corporativos | K188: Base de datos | L188: Español | M188: INFORMACIÓN PÚBLICA CLASIFICADA | N188: SI | O188: Ley 1712 Articulo 18 literal c. Los secretos comerciales, industriales y profesionales asi como los estipulados en el paragrafo del articulo 77 de la ley 1474 de 2011 | P188: Ley 1712 2014 | Q188: Reserva parcial | R188: 2019-06-30 | S188: 15 Años
A189: =IF(D189<>"",VLOOKUP('ACTIVOS DE INFORMACIÓN 2020'!D189,DATA!$E$2:$F$95,2)&"-"&B189,"") -> 120-182 | B189: 182 | C189: SOFTWARE | D189: OFICINA DE TECNOLOGIAS DE LA INFORMACIÓN | E189: Aplicaciones - ISOLUCION | F189: Herramienta de gestión sistemática y transparente que sirve para dirigir, evaluar y mejorar el desempeño institucional. | G189: N/A | H189: N/A | I189: N/A | J189: Sistemas de Información corporativos | K189: API | L189: Español | M189: INFORMACIÓN PÚBLICA CLASIFICADA | N189: SI | O189: Ley 1712 Articulo 18 literal c. Los secretos comerciales, industriales y profesionales asi como los estipulados en el paragrafo del articulo 77 de la ley 1474 de 2011 | P189: Ley 1712 2014 | Q189: Reserva parcial | R189: 2018-06-30 | S189: 15 Años
A190: =IF(D190<>"",VLOOKUP('ACTIVOS DE INFORMACIÓN 2020'!D190,DATA!$E$2:$F$95,2)&"-"&B190,"") -> 120-183 | B190: 183 | C190: SOFTWARE | D190: OFICINA DE TECNOLOGIAS DE LA INFORMACIÓN | E190: Base de datos - ISOLUCION | F190: Base de datos de la herramienta de gestión sistemática y transparente que sirve para dirigir, evaluar y mejorar el desempeño institucional. | G190: N/A | H190: N/A | I190: N/A | J190: Sistemas de Información corporativos | K190: Base de datos | L190: Español | M190: INFORMACIÓN PÚBLICA CLASIFICADA | N190: SI | O190: Ley 1712 Articulo 18 literal c. Los secretos comerciales, industriales y profesionales asi como los estipulados en el paragrafo del articulo 77 de la ley 1474 de 2011 | P190: Ley 1712 2014 | Q190: Reserva parcial | R190: 2018-12-31 | S190: 15 Años
A191: =IF(D191<>"",VLOOKUP('ACTIVOS DE INFORMACIÓN 2020'!D191,DATA!$E$2:$F$95,2)&"-"&B191,"") -> 120-184 | B191: 184 | C191: SOFTWARE | D191: OFICINA DE TECNOLOGIAS DE LA INFORMACIÓN | E191: Aplicaciones- SALTV | F191: Sistema de gestión de autoliquidaciones, concesiones y desagregados para PRSTs no habilitados | G191: N/A | H191: N/A | I191: N/A | J191: Sistemas de Información corporativos | K191: API | L191: Español | M191: INFORMACIÓN PÚBLICA CLASIFICADA | N191: SI | O191: Ley 1712 Articulo 18 literal c. Los secretos comerciales, industriales y profesionales asi como los estipulados en el paragrafo del articulo 77 de la ley 1474 de 2012 | P191: Ley 1712 2014 | Q191: Reserva parcial | R191: 2019-06-30 | S191: 15 Años
A192: =IF(D192<>"",VLOOKUP('ACTIVOS DE INFORMACIÓN 2020'!D192,DATA!$E$2:$F$95,2)&"-"&B192,"") -> 120-185 | B192: 185 | C192: SOFTWARE | D192: OFICINA DE TECNOLOGIAS DE LA INFORMACIÓN | E192: Base de Datos SALTV | F192: Base de datos del sistema de gestión de autoliquidaciones, concesiones y desagregados para PRSTs no habilitados | G192: N/A | H192: N/A | I192: N/A | J192: Sistemas de Información corporativos | K192: Base de datos | L192: Español | M192: INFORMACIÓN PÚBLICA CLASIFICADA | N192: SI | O192: Ley 1712 Articulo 18 literal c. Los secretos comerciales, industriales y profesionales asi como los estipulados en el paragrafo del articulo 77 de la ley 1474 de 2013 | P192: Ley 1712 2014 | Q192: Reserva parcial | R192: 2019-12-31 | S192: 15 Años
A193: =IF(D193<>"",VLOOKUP('ACTIVOS DE INFORMACIÓN 2020'!D193,DATA!$E$2:$F$95,2)&"-"&B193,"") -> 120-186 | B193: 186 | C193: INFORMACIÓN | D193: OFICINA DE TECNOLOGIAS DE LA INFORMACIÓN | E193: Estrategia de inteligencia de negocios BI | F193: Herramienta que publica indicadores de la oferta TIC (Proyectos de inversión del Ministerio) | G193: =IF(D193="","",D193) -> OFICINA DE TECNOLOGIAS DE LA INFORMACIÓN | H193: 2017-06-30 | I193: OFICINA DE TECNOLOGIAS DE LA INFORMACIÓN | J193: Sistemas de Información corporativos | K193: Base de datos | L193: Español | M193: INFORMACIÓN PÚBLICA | N193: N/A | O193: N/A | P193: N/A | Q193: N/A | R193: N/A | S193: N/A
A194: =IF(D194<>"",VLOOKUP('ACTIVOS DE INFORMACIÓN 2020'!D194,DATA!$E$2:$F$95,2)&"-"&B194,"") -> 120-187 | B194: 187 | C194: INFORMACIÓN | D194: OFICINA DE TECNOLOGIAS DE LA INFORMACIÓN | E194: Plan de Comunicaciones | F194: Plan de Comunicaciones de la Oficina de TI | G194: =IF(D194="","",D194) -> OFICINA DE TECNOLOGIAS DE LA INFORMACIÓN | H194: 2017-01-02 | I194: OFICINA DE TECNOLOGIAS DE LA INFORMACIÓN | J194: Documentos de Archivo - electrónicos | K194: XLS -PDF | L194: Español | M194: INFORMACIÓN PÚBLICA | N194: N/A | O194: N/A | P194: N/A | Q194: N/A | R194: N/A | S194: N/A
A195: =IF(D195<>"",VLOOKUP('ACTIVOS DE INFORMACIÓN 2020'!D195,DATA!$E$2:$F$95,2)&"-"&B195,"") -> 120-188 | B195: =IF(AND(A194="",D195<>""),"LEB",IF(D195<>"",1+B194,"")) -> 188 | C195: INFORMACIÓN | D195: OFICINA DE TECNOLOGIAS DE LA INFORMACIÓN | E195: Plan de gestión de la capacidad | F195: Documento con el plan de gestión de la capacidad de los equipos de computo de MINTIC. El documento contiene los siguientes datos: equipos, monitorización del rendimiento y la carga del servidor o conjunto de servidores, análisis del rendimiento y medición de datos, incluyendo análisis del impacto de nuevas instalaciones en la capacidad, ajustes de rendimiento para asegurar el uso más eficiente de la infraestructura, comprensión de las demandas del servicio y planes futuros de aumento o disminución de carga. Influencia en la petición de recursos informáticos | G195: =IF(D195="","",D195) -> OFICINA DE TECNOLOGIAS DE LA INFORMACIÓN | H195: 2019-11-07 | I195: OFICINA DE TECNOLOGIAS DE LA INFORMACIÓN | J195: Documentos de Archivo - electrónicos | K195: PDF | L195: Español | M195: INFORMACIÓN PÚBLICA RESERVADA | N195: SI | O195: Artículo 18 de la ley 1712 del 2014 | P195: Artículo 18 de la ley 1712 del 2014 | Q195: Reserva total | R195: 2017-07-14 | S195: 15 Años
A196: =IF(D196<>"",VLOOKUP('ACTIVOS DE INFORMACIÓN 2020'!D196,DATA!$E$2:$F$95,2)&"-"&B196,"") -> 120-189 | B196: 189 | C196: INFORMACIÓN | D196: OFICINA DE TECNOLOGIAS DE LA INFORMACIÓN | E196: CMDB Administración de versiones y configuraciones | F196: Base de datos con la información de las configuraciónes de los difertes elementos tecnológicos y su interrelación. Contiene información como: Tipo de servidor, recursos de hardware y software, y parametrización | G196: =IF(D196="","",D196) -> OFICINA DE TECNOLOGIAS DE LA INFORMACIÓN | H196: 2017-07-14 | I196: OFICINA DE TECNOLOGIAS DE LA INFORMACIÓN | J196: Documentos de Archivo - electrónicos | K196: XLS | L196: Español | M196: INFORMACIÓN PÚBLICA RESERVADA | N196: SI | O196: Artículo 18 de la ley 1712 del 2014 | P196: Artículo 18 de la ley 1712 del 2014 | Q196: Reserva total | R196: 2017-07-14 | S196: 15 Años
A197: =IF(D197<>"",VLOOKUP('ACTIVOS DE INFORMACIÓN 2020'!D197,DATA!$E$2:$F$95,2)&"-"&B197,"") -> 120-190 | B197: 190 | C197: INFORMACIÓN | D197: OFICINA DE TECNOLOGIAS DE LA INFORMACIÓN | E197: Plan de gestión de contigencia de TI | F197: Documento con el plan de gestión de contigencia de TI de los equipos de cómputo y soluciones de MINTIC. El documento contiene los siguientes datos: equipos o soluciones, componentes, procedimiento de puesta al aire, análisis de impacto, planificación de despliegue. | G197: =IF(D197="","",D197) -> OFICINA DE TECNOLOGIAS DE LA INFORMACIÓN | H197: 2017-01-31 | I197: OFICINA DE TECNOLOGIAS DE LA INFORMACIÓN | J197: Archivos Institucionales - electrónico | K197: PDF | L197: Español | M197: INFORMACIÓN PÚBLICA RESERVADA | N197: SI | O197: Artículo 18 de la ley 1712 del 2014 | P197: Artículo 18 de la ley 1712 del 2014 | Q197: Reserva total | R197: 2017-07-14 | S197: 15 años
A198: =IF(D198<>"",VLOOKUP('ACTIVOS DE INFORMACIÓN 2020'!D198,DATA!$E$2:$F$95,2)&"-"&B198,"") -> 120-191 | B198: 191 | C198: INFORMACIÓN | D198: OFICINA DE TECNOLOGIAS DE LA INFORMACIÓN | E198: Hoja de vida de los equipos | F198: Documento de hoja de vida de los equipos tecnológicos usados o adquiridos por MINTIC. El documento contiene el detalle del hardware (marca, modelo, serie, capacidad de procesamiento, almacenamiento y fecha de cambio, también detalle del proveedor con el que se adquirió el hardware y/o software, así como todos los eventos y acciones que se han realizado sobre el mismo) | G198: =IF(D198="","",D198) -> OFICINA DE TECNOLOGIAS DE LA INFORMACIÓN | H198: 2017-07-14 | I198: OFICINA DE TECNOLOGIAS DE LA INFORMACIÓN | J198: Archivos Institucionales - electrónico | K198: XLS -PDF | L198: Español | M198: INFORMACIÓN PÚBLICA RESERVADA | N198: SI | O198: Artículo 18 de la ley 1712 del 2014 | P198: Artículo 18 de la ley 1712 del 2014 | Q198: Reserva total | R198: 2017-07-14 | S198: 15 años
A199: =IF(D199<>"",VLOOKUP('ACTIVOS DE INFORMACIÓN 2020'!D199,DATA!$E$2:$F$95,2)&"-"&B199,"") -> 120-192 | B199: 192 | C199: INFORMACIÓN | D199: OFICINA DE TECNOLOGIAS DE LA INFORMACIÓN | E199: Plan de mantenimiento | F199: Documento con el plan de mantenimiento de los equipos de computo de MINTIC. El documento contiene los siguientes datos: equipos, contratista, nombre del contacto, teléfonos, objeto del contrato, fecha de mantenimiento programado y ejecutado y responsable visita | G199: =IF(D199="","",D199) -> OFICINA DE TECNOLOGIAS DE LA INFORMACIÓN | H199: 2019-07-31 | I199: OFICINA DE TECNOLOGIAS DE LA INFORMACIÓN | J199: Archivos Institucionales - electrónico | K199: XLS -PDF | L199: Español | M199: INFORMACIÓN PÚBLICA RESERVADA | N199: SI | O199: Artículo 18 de la ley 1712 del 2014 | P199: Artículo 18 de la ley 1712 del 2014 | Q199: Reserva total | R199: 2017-07-14 | S199: 15 años
A200: =IF(D200<>"",VLOOKUP('ACTIVOS DE INFORMACIÓN 2020'!D200,DATA!$E$2:$F$95,2)&"-"&B200,"") -> 120-193 | B200: 193 | C200: INFORMACIÓN | D200: OFICINA DE TECNOLOGIAS DE LA INFORMACIÓN | E200: Registro y control de software operativo | F200: Documento de registro y control del software operativo y licenciamiento de las aplicaciones del entorno computacional de MINTIC. El documento contiene los siguientes datos: identificación y nombre del producto, descripción del software, versión, cantidad, tipo de licencia, fecha compra, no. factura, fecha vencimiento, usuario registro, clave registro y observaciones | G200: =IF(D200="","",D200) -> OFICINA DE TECNOLOGIAS DE LA INFORMACIÓN | H200: 2017-07-14 | I200: OFICINA DE TECNOLOGIAS DE LA INFORMACIÓN | J200: Archivos Institucionales - electrónico | K200: XLS | L200: Español | M200: INFORMACIÓN PÚBLICA RESERVADA | N200: SI | O200: Artículo 18 de la ley 1712 del 2014 | P200: Artículo 18 de la ley 1712 del 2014 | Q200: Reserva total | R200: 2017-07-14 | S200: 15 años
A201: =IF(D201<>"",VLOOKUP('ACTIVOS DE INFORMACIÓN 2020'!D201,DATA!$E$2:$F$95,2)&"-"&B201,"") -> 120-194 | B201: =IF(AND(A200="",D201<>""),"LEB",IF(D201<>"",1+B200,"")) -> 194 | C201: INFORMACIÓN | D201: OFICINA DE TECNOLOGIAS DE LA INFORMACIÓN | E201: Bitacora de plataforma tecnológica | F201: Bitácora de los eventos evidenciados en la plataforma tecnológica. El documento contiene los siguientes datos: fecha del evento, servidor/aplicación, tema, hora del evento, solución, quien reporta, tiempo fuera de servicio y no. de usuarios afectados | G201: =IF(D201="","",D201) -> OFICINA DE TECNOLOGIAS DE LA INFORMACIÓN | H201: 2017-07-14 | I201: OFICINA DE TECNOLOGIAS DE LA INFORMACIÓN | J201: Sistemas de Bases de Datos | K201: Base de datos | L201: Español | M201: INFORMACIÓN PÚBLICA RESERVADA | N201: SI | O201: Artículo 18 de la ley 1712 del 2014 | P201: Artículo 18 de la ley 1712 del 2014 | Q201: Reserva total | R201: 2017-07-14 | S201: 15 años
A202: =IF(D202<>"",VLOOKUP('ACTIVOS DE INFORMACIÓN 2020'!D202,DATA!$E$2:$F$95,2)&"-"&B202,"") -> 120-195 | B202: 195 | C202: INFORMACIÓN | D202: OFICINA DE TECNOLOGIAS DE LA INFORMACIÓN | E202: Plan de respaldo | F202: Documento con el plan de respaldos. El documento contiene los siguientes datos: nombre del servidor, servicio o contenido, rotulo MINTIC, fecha backup, fecha envió, fecha regresa, ID MINTIC, rotulo custodio y descripción contenido en cinta | G202: =IF(D202="","",D202) -> OFICINA DE TECNOLOGIAS DE LA INFORMACIÓN | H202: 2017-07-14 | I202: OFICINA DE TECNOLOGIAS DE LA INFORMACIÓN | J202: Archivos Institucionales - físicos | K202: Papel | L202: Español | M202: INFORMACIÓN PÚBLICA | N202: N/A | O202: N/A | P202: N/A | Q202: N/A | R202: N/A | S202: N/A
A203: =IF(D203<>"",VLOOKUP('ACTIVOS DE INFORMACIÓN 2020'!D203,DATA!$E$2:$F$95,2)&"-"&B203,"") -> 120-196 | B203: =IF(AND(A202="",D203<>""),"LEB",IF(D203<>"",1+B202,"")) -> 196 | C203: INFORMACIÓN | D203: OFICINA DE TECNOLOGIAS DE LA INFORMACIÓN | E203: Registro de inventario de medios | F203: Documento de registro de inventario de medios. El documento contiene los siguientes campos: numero de cinta, ubicación , rotulo MINTIC, rotulo custodio, fecha de inicio de registro, de backup, contenido del medio, ubicación proviene y fecha de traslado | G203: =IF(D203="","",D203) -> OFICINA DE TECNOLOGIAS DE LA INFORMACIÓN | H203: 2017-07-14 | I203: OFICINA DE TECNOLOGIAS DE LA INFORMACIÓN | J203: Sistemas de Bases de Datos | K203: Base de datos | L203: Español | M203: INFORMACIÓN PÚBLICA RESERVADA | N203: SI | O203: Artículo 18 de la ley 1712 del 2014 | P203: Artículo 18 de la ley 1712 del 2014 | Q203: Reserva total | R203: 2017-07-14 | S203: 15 años
A204: =IF(D204<>"",VLOOKUP('ACTIVOS DE INFORMACIÓN 2020'!D204,DATA!$E$2:$F$95,2)&"-"&B204,"") -> 120-197 | B204: 197 | C204: INFORMACIÓN | D204: OFICINA DE TECNOLOGIAS DE LA INFORMACIÓN | E204: Gestión de cuentas de usuario y claves de acceso | F204: Documento de gestión de las cuentas de usuario, perfiles y claves de acceso de los sistemas de información de la entidad | G204: =IF(D204="","",D204) -> OFICINA DE TECNOLOGIAS DE LA INFORMACIÓN | H204: 2017-07-14 | I204: OFICINA DE TECNOLOGIAS DE LA INFORMACIÓN | J204: Documentos de Archivo - físicos | K204: Papel | L204: Español | M204: INFORMACIÓN PÚBLICA RESERVADA | N204: SI | O204: Artículo 18 de la ley 1712 del 2014 | P204: Artículo 18 de la ley 1712 del 2014 | Q204: Reserva total | R204: 2017-07-14 | S204: 15 años
... 744 more rows

Sheet DATA (hidden)
D1: Unido Unidades / Grupos de Trabajo | E1: Unidades / Grupos de Trabajo | F1: Código del área | G1: Series | I1: Código de la Serie | J1: Unido Series | K1: Subseries | L1: Código de la Subserie | N1: Tipo_Activo | O1: Tipo_MacroProceso | P1: ESTRATEGICO | Q1: APOYO | R1: EVALUACION | S1: MISIONAL
D2: =SUBSTITUTE(E2," ","") -> DESPACHODELMINISTRO | E2: DESPACHO DEL MINISTRO | F2: 100 | G2: ESTATUTOS INTERNOS DEL FONDO DE TECNOLOGIAS DE LA INFORMACIÓN Y LAS COMUNICACIONES | H2: =SUBSTITUTE(G2," ","_") -> ESTATUTOS_INTERNOS_DEL_FONDO_DE_TECNOLOGIAS_DE_LA_INFORMACIÓN_Y_LAS_COMUNICACIONES | I2: 10037 | J2: =_xlfn.CONCAT(H2,I2) -> ESTATUTOS_INTERNOS_DEL_FONDO_DE_TECNOLOGIAS_DE_LA_INFORMACIÓN_Y_LAS_COMUNICACIONES10037 | K2: N/A | L2: N/A | N2: EQUIPAMIENTO AUXILIAR | O2: ESTRATEGICO | P2: ARQUITECTURA_INSTITUCIONAL | Q2: GESTION_RECURSOS | R2: ANALISIS_MEJORA_GESTION | S2: ACCESO_USO_APROPIACION_TIC
D3: =SUBSTITUTE(E3," ","") -> DESPACHODELVICEMINISTRODECONECTIVIDADYDIGITALIZACIÓN | E3: DESPACHO DEL VICEMINISTRO DE CONECTIVIDAD Y DIGITALIZACIÓN | F3: 200 | G3: INFORMES | H3: =SUBSTITUTE(G3," ","_") -> INFORMES | I3: 10047 | J3: =_xlfn.CONCAT(H3,I3) -> INFORMES10047 | K3: INFORMES A ENTES DE CONTROL Y VIGILANCIA | L3: 100.47.01 | N3: HARDWARE | O3: APOYO | P3: COMUNICACION_ESTRATEGICA | Q3: GESTION_JURIDICA | S3: GESTION_CONOCIMIENTO_SECTOR_TIC
D4: =SUBSTITUTE(E4," ","") -> DESPACHODELVICEMINISTRODEECONOMIADIGITAL | E4: DESPACHO DEL VICEMINISTRO DE ECONOMIA DIGITAL | F4: 300 | G4: POLITICAS | H4: POLITICAS | I4: 10069 | J4: POLITICAS10069 | K4: INFORMES A OTROS ORGANISMOS | L4: 100.47.02 | N4: INFORMACIÓN | O4: EVALUACION | P4: COOPERACION_INTERNACIONAL | S4: PLANEACION_FORMULACION_POLITICAS_TIC
D5: =SUBSTITUTE(E5," ","") -> DIRECCIÓNDEAPROPIACIÓNDETECNOLOGÍASDELAINFORMACIÓNYLASCOMUNICACIONES | E5: DIRECCIÓN DE APROPIACIÓN DE TECNOLOGÍAS DE LA INFORMACIÓN Y LAS COMUNICACIONES | F5: 310 | G5: PROYECTOS | H5: PROYECTOS | I5: 10079 | J5: PROYECTOS10079 | K5: INFORMES DE GESTIÓN | L5: 100.47.16 | N5: INSTALACIONES | O5: MISIONAL | P5: GESTION_ATENCION_GRUPOS_INTERES | S5: SEGUIMIENTO_CONTROL_POLITICAS_TIC
D6: DIRECCIÓNDEDESARROLLODELAINDUSTRIADETECNOLOGIASDELAINFORMACIÓN | E6: DIRECCIÓN DE DESARROLLO DE LA INDUSTRIA DE TECNOLOGIAS DE LA INFORMACIÓN | F6: 340 | G6: CONCEPTOS | H6: CONCEPTOS | I6: 10121 | J6: CONCEPTOS10121 | K6: POLITICAS DE DIVULGACIÓN Y PROMOCIÓN DE TECNOLOGIA DE LA INFORMACIÓN Y LAS COMUNCIACIONES | L6: 100.69.02 | N6: RECURSO HUMANO | P6: MARCO_ESTRATEGICO
D7: DIRECCIÓNDEGOBIERNODIGITAL | E7: DIRECCIÓN DE GOBIERNO DIGITAL | F7: 320 | G7: EVIDENCIAS DE LA REUNIÓN DE LAS ACCIONES INSTITUCIONALES EN EL MARCO DEL CONSENSO SOCIAL | H7: EVIDENCIAS_DE_LA_REUNIÓN_DE_LAS_ACCIONES_INSTITUCIONALES_EN_EL_MARCO_DEL_CONSENSO_SOCIAL | I7: 10141 | J7: EVIDENCIAS_DE_LA_REUNIÓN_DE_LAS_ACCIONES_INSTITUCIONALES_EN_EL_MARCO_DEL_CONSENSO_SOCIAL10141 | K7: PROYECTOS DE CANALES DE TELEVISIÓN | L7: 100.79.01 | N7: SERVICIOS
D8: DIRECCIÓNDEINDUSTRIADECOMUNICACIONES | E8: DIRECCIÓN DE INDUSTRIA DE COMUNICACIONES | F8: 210 | G8: INFORMES | H8: INFORMES | I8: 10147 | J8: INFORMES10147 | K8: PROYECTOS DE LEY | L8: 100.79.06 | N8: SOFTWARE
D9: DIRECCIÓNDEINFRAESTUCTURA | E9: DIRECCIÓN DE INFRAESTUCTURA | F9: 230 | G9: PETICIONES QUEJAS RECLAMOS SUGERENCIAS Y DENUNCIAS PQRSD | H9: PETICIONES_QUEJAS_RECLAMOS_SUGERENCIAS_Y_DENUNCIAS_PQRSD | I9: 10165 | J9: PETICIONES_QUEJAS_RECLAMOS_SUGERENCIAS_Y_DENUNCIAS_PQRSD10165 | K9: CONCEPTOS TÉCNICOS | L9: 101.21.05
D10: =SUBSTITUTE(E10," ","") -> DIRECCIÓNDEPROMOCIÓNDETECNOLOGÍASDELAINFORMACIÓNYLASCOMUNICACIONES | E10: DIRECCIÓN DE PROMOCIÓN DE TECNOLOGÍAS DE LA INFORMACIÓN Y LAS COMUNICACIONES | F10: 240 | G10: PLANES | H10: =SUBSTITUTE(G10," ","_") -> PLANES | I10: 10166 | J10: =_xlfn.CONCAT(H10,I10) -> PLANES10166 | K10: N/A | L10: N/A
D11: DIRECCIÓNDETRANSFORMACIÓNDIGITAL | E11: DIRECCIÓN DE TRANSFORMACIÓN DIGITAL | F11: 330 | G11: POLITICAS | H11: POLITICAS | I11: 10169 | J11: POLITICAS10169 | K11: INFORMES DE GESTIÓN | L11: 101.47.16
D12: DIRECCIÓNDEVIGILANCIAYCONTROL | E12: DIRECCIÓN DE VIGILANCIA Y CONTROL | F12: 220 | G12: ACTAS | H12: ACTAS | I12: 11001 | J12: ACTAS11001 | K12: N/A | L12: N/A
D13: GRUPOINTERNODETRABAJOACTUACIONESADMINISTRATIVASYASESORIACONTRACTUAL | E13: GRUPO INTERNO DE TRABAJO ACTUACIONES ADMINISTRATIVAS Y ASESORIA CONTRACTUAL | F13: 132 | G13: CONCEPTOS | H13: CONCEPTOS | I13: 11021 | J13: CONCEPTOS11021 | K13: PLANES DE SALVAGUARDA ETNICOS | L13: 101.66.15
D14: GRUPOINTERNODETRABAJODEADMINISTRACIÓNDEBIENES | E14: GRUPO INTERNO DE TRABAJO DE ADMINISTRACIÓN DE BIENES | F14: 431 | G14: INFORMES | H14: INFORMES | I14: 11047 | J14: INFORMES11047 | K14: N/A | L14: N/A
D15: GRUPOINTERNODETRABAJODEAPOYOALAGESTIÓNDECOBROCOACTIVOYGARANTIAS | E15: GRUPO INTERNO DE TRABAJO DE APOYO A LA GESTIÓN DE COBRO COACTIVO Y GARANTIAS | F15: 211.2 | G15: MANUALES | H15: MANUALES | I15: 11060 | J15: MANUALES11060 | K15: ACTAS DEL COMITÉ MODELO INTEGRADO DE GESTIÓN | L15: 110.01.17
D16: GRUPOINTERNODETRABAJODECARTERA | E16: GRUPO INTERNO DE TRABAJO DE CARTERA | F16: 424 | G16: PETICIONES QUEJAS RECLAMOS SUGERENCIAS Y DENUNCIAS PQRSD | H16: PETICIONES_QUEJAS_RECLAMOS_SUGERENCIAS_Y_DENUNCIAS_PQRSD | I16: 11065 | J16: PETICIONES_QUEJAS_RECLAMOS_SUGERENCIAS_Y_DENUNCIAS_PQRSD11065 | K16: ACTAS DEL COMITÉ SECTORIAL DE DESARROLLO ADMINISTRATIVO | L16: 110.01.19
D17: GRUPOINTERNODETRABAJODECIUDADESINTELIGENTES | E17: GRUPO INTERNO DE TRABAJO DE CIUDADES INTELIGENTES | F17: 320.2 | G17: PLANES | H17: PLANES | I17: 11066 | J17: PLANES11066 | K17: ACTAS GRUPOS COMITÉS PRIMARIOS | L17: 110.01.26
D18: GRUPOINTERNODETRABAJODECOBROCOACTIVO | E18: GRUPO INTERNO DE TRABAJO DE COBRO COACTIVO | F18: 134 | G18: ANTEPROYECTO DEL PRESUPUESTO DE INVERSIÓN | H18: ANTEPROYECTO_DEL_PRESUPUESTO_DE_INVERSIÓN | I18: 11108 | J18: ANTEPROYECTO_DEL_PRESUPUESTO_DE_INVERSIÓN11108 | K18: CONCEPTOS DE VIABILIDAD A LOS PROYECTOS DE INVERSIÓN | L18: 110.21.02
D19: GRUPOINTERNODETRABAJODECOMUNICACIÓNEXTERNA | E19: GRUPO INTERNO DE TRABAJO DE COMUNICACIÓN EXTERNA | F19: 151 | G19: INFORMES | H19: INFORMES | I19: 11147 | J19: INFORMES11147 | K19: INFORMES A ENTES DE CONTROL Y VIGILANCIA | L19: 110.47.01
D20: GRUPOINTERNODETRABAJODECONCEPTOS | E20: GRUPO INTERNO DE TRABAJO DE CONCEPTOS | F20: 131 | G20: PROYECTOS | H20: PROYECTOS | I20: 11179 | J20: PROYECTOS11179 | K20: INFORMES A OTROS ORGANISMOS | L20: 110.47.02
D21: GRUPOINTERNODETRABAJODECONTABILIDAD | E21: GRUPO INTERNO DE TRABAJO DE CONTABILIDAD | F21: 422 | G21: INFORMES | H21: INFORMES | I21: 11247 | J21: INFORMES11247 | K21: INFORMES DE GESTIÓN | L21: 110.47.16
D22: GRUPOINTERNODETRABAJODECONTRATACIÓN | E22: GRUPO INTERNO DE TRABAJO DE CONTRATACIÓN | F22: 401 | G22: PLANES | H22: PLANES | I22: 11266 | J22: PLANES11266 | K22: MANUALES DE PROCESOS Y PROCEDIMIENTOS | L22: 110.60.03
D23: GRUPOINTERNODETRABAJODECONTROLINTERNODISCIPLINARIO | E23: GRUPO INTERNO DE TRABAJO DE CONTROL INTERNO DISCIPLINARIO | F23: 402 | G23: PROYECTOS | H23: PROYECTOS | I23: 11279 | J23: PROYECTOS11279 | K23: N/A | L23: N/A
D24: =SUBSTITUTE(E24," ","") -> GRUPOINTERNODETRABAJODEEMPRENDIMIENTOAPPS.CO | E24: GRUPO INTERNO DE TRABAJO DE EMPRENDIMIENTO APPS.CO | F24: 343 | G24: ACTAS | H24: ACTAS | I24: 11301 | J24: ACTAS11301 | K24: PLANES ANTICORRUPCIÓN Y DE ATENCIÓN AL CIUDADANO | L24: 110.66.01
D25: GRUPOINTERNODETRABAJODEESTADISTICASYESTUDIOSSECTORIALES | E25: GRUPO INTERNO DE TRABAJO DE ESTADISTICAS Y ESTUDIOS SECTORIALES | F25: 113 | G25: CERTIFICACIONES | H25: CERTIFICACIONES_ | I25: 11314 | J25: CERTIFICACIONES_11314 | K25: PLANES DE ATENCIÓN A VICTIMAS Y POBLACIONES VULNERABLES | L25: 110.66.06
D26: GRUPOINTERNODETRABAJODEESTRATEGIATALENTODETECNOLOGIASDELAINFORMACIÓN | E26: GRUPO INTERNO DE TRABAJO DE ESTRATEGIA TALENTO DE TECNOLOGIAS DE LA INFORMACIÓN | F26: 342 | G26: ESTUDIOS | H26: ESTUDIOS_ | I26: 11339 | J26: ESTUDIOS_11339 | K26: PLANES DE EQUIDAD DE GENERO | L26: 110.66.08
D27: GRUPOINTERNODETRABAJODEESTRUCTURACIÓNEINVESTIGACIÓN | E27: GRUPO INTERNO DE TRABAJO DE ESTRUCTURACIÓN E INVESTIGACIÓN | F27: 231 | G27: FORMULARIOS UNICOS DE REPORTE DE AVANCES DE LA GESTIÓN FURAG | H27: FORMULARIOS_UNICOS_DE_REPORTE_DE_AVANCES_DE_LA_GESTIÓN_FURAG | I27: 11443 | J27: FORMULARIOS_UNICOS_DE_REPORTE_DE_AVANCES_DE_LA_GESTIÓN_FURAG11443 | K27: N/A | L27: N/A
D28: GRUPOINTERNODETRABAJODEFOMENTOREGIONAL | E28: GRUPO INTERNO DE TRABAJO DE FOMENTO REGIONAL | F28: 243 | G28: INFORMES | H28: INFORMES | I28: 11447 | J28: INFORMES11447 | K28: INFORMES DE SEGUIMIENTO A EJECUCIÓN PRESUPUESTAL | L28: 111.47.25
D29: GRUPOINTERNODETRABAJODEFORTALECIMIENTODELASRELACIONESCONLOSGRUPOSDEINTERES | E29: GRUPO INTERNO DE TRABAJO DE FORTALECIMIENTO DE LAS RELACIONES CON LOS GRUPOS DE INTERES | F29: 434 | G29: PETICIONES QUEJAS RECLAMOS SUGERENCIAS Y DENUNCIAS PQRSD | H29: PETICIONES_QUEJAS_RECLAMOS_SUGERENCIAS_Y_DENUNCIAS_PQRSD | I29: 11465 | J29: PETICIONES_QUEJAS_RECLAMOS_SUGERENCIAS_Y_DENUNCIAS_PQRSD11465 | K29: PROYECTOS DE INVERSIÓN PRESUPUESTAL | L29: 111.79.04
D30: GRUPOINTERNODETRABAJODEGESTIÓNDEESPECTRORADIOÉLECTRICO | E30: GRUPO INTERNO DE TRABAJO DE GESTIÓN DE ESPECTRO RADIOÉLECTRICO | F30: 211.1 | G30: PROGRAMAS | H30: PROGRAMAS | I30: 11478 | J30: PROGRAMAS11478 | K30: INFORMES DE GESTIÓN | L30: 112.47
D31: GRUPOINTERNODETRABAJODEGESTIÓNDELAINFORMACIÓN | E31: GRUPO INTERNO DE TRABAJO DE GESTIÓN DE LA INFORMACIÓN | F31: 433 | G31: ACTAS | H31: ACTAS | I31: 12001 | J31: ACTAS12001 | K31: PLANES DE ACCIÓN | L31: 112.66.04
D32: GRUPOINTERNODETRABAJODEGESTIÓNDESERVICIOSADMINISTRATIVOS | E32: GRUPO INTERNO DE TRABAJO DE GESTIÓN DE SERVICIOS ADMINISTRATIVOS | F32: 435 | G32: ACUERDOS | H32: ACUERDOS | I32: 12004 | J32: ACUERDOS12004 | K32: PLANES DE ACCIÓN INSTITUCIONALES | L32: 112.66.05
D33: GRUPOINTERNODETRABAJODEGESTIÓNDETALENTOHUMANO | E33: GRUPO INTERNO DE TRABAJO DE GESTIÓN DE TALENTO HUMANO | F33: 436 | G33: INFORMES | H33: INFORMES | I33: 12047 | J33: INFORMES12047 | K33: PLANES ESTRATÉGICOS SECTORIALES | L33: 112.66.19
D34: GRUPOINTERNODETRABAJODEGESTIONPENSIONAL | E34: GRUPO INTERNO DE TRABAJO DE GESTION PENSIONAL | F34: 437 | G34: INVENTARIOS | H34: INVENTARIOS | I34: 12054 | J34: INVENTARIOS12054 | K34: PROYECTOS DE GESTIÓN INTERNOS | L34: 112.79.02
D35: GRUPOINTERNODETRABAJODEINDUSTRIACREATIVADIGITAL | E35: GRUPO INTERNO DE TRABAJO DE INDUSTRIA CREATIVA DIGITAL | F35: 344 | G35: PLANES | H35: PLANES | I35: 12066 | J35: PLANES12066 | K35: ACTAS DE LA MESA TÉCNICA DE ESTADISTICAS TIC | L35: 113.01.03
D36: GRUPOINTERNODETRABAJODEINDUSTRIADETECNOLOGIASDELAINFORMACIÓN | E36: GRUPO INTERNO DE TRABAJO DE INDUSTRIA DE TECNOLOGIAS DE LA INFORMACIÓN | F36: 341 | G36: PROCESOS DE INFORMACIÓN SECTORIAL | H36: PROCESOS_DE_INFORMACIÓN_SECTORIAL | I36: 12072 | J36: PROCESOS_DE_INFORMACIÓN_SECTORIAL12072 | K36: CERTIFICACIONES DE CALIDAD ESTADISTICA | L36: 113.14.01
D37: GRUPOINTERNODETRABAJODEINVESTIGACIÓNDESARROLLOEINNOVACIÓN | E37: GRUPO INTERNO DE TRABAJO DE INVESTIGACIÓN DESARROLLO E INNOVACIÓN | F37: 330.1 | G37: INFORMES | H37: INFORMES | I37: 13047 | J37: INFORMES13047 | K37: ESTUDIOS SECTORIALES | L37: 113.39.05
D38: GRUPOINTERNODETRABAJODENOTIFICACIONES | E38: GRUPO INTERNO DE TRABAJO DE NOTIFICACIONES | F38: 432 | G38: PETICIONES QUEJAS RECLAMOS SUGERENCIAS Y DENUNCIAS PQRSD | H38: PETICIONES_QUEJAS_RECLAMOS_SUGERENCIAS_Y_DENUNCIAS_PQRSD | I38: 13066 | J38: PETICIONES_QUEJAS_RECLAMOS_SUGERENCIAS_Y_DENUNCIAS_PQRSD13066 | K38: N/A | L38: N/A
D39: GRUPOINTERNODETRABAJODEOFERTAREGIONAL | E39: GRUPO INTERNO DE TRABAJO DE OFERTA REGIONAL | F39: 241 | G39: PROYECTOS | H39: PROYECTOS | I39: 13079 | J39: PROYECTOS13079 | K39: INFORMES DE ADMINISTRACIÓN DE RIESGOS | L39: 114.47.03
D40: GRUPOINTERNODETRABAJODEOPERACIONES | E40: GRUPO INTERNO DE TRABAJO DE OPERACIONES | F40: 232 | G40: CONCEPTOS | H40: CONCEPTOS | I40: 13121 | J40: CONCEPTOS13121 | K40: INFORMES DE ARQUITECTURA INSTITUCIONAL - COMPONENTE PROCESOS | L40: 114.47.04
D41: GRUPOINTERNODETRABAJODEPLANEACIÓNYSEGUIMIENTOPRESUPUESTAL | E41: GRUPO INTERNO DE TRABAJO DE PLANEACIÓN Y SEGUIMIENTO PRESUPUESTAL | F41: 111 | G41: INFORMES | H41: INFORMES | I41: 13147 | J41: INFORMES13147 | K41: INFORMES DE CULTURA ORGANIZACIONAL Y APROPIACIÓN DEL MODELO INTEGRADO DE GESTIÓN | L41: 114.47.13
D42: GRUPOINTERNODETRABAJODEPOLITICA | E42: GRUPO INTERNO DE TRABAJO DE POLITICA | F42: 320.3 | G42: INFORMES | H42: INFORMES | I42: 13247 | J42: INFORMES13247 | K42: INFORMES DE SEGUIMIENTO A LAS POLÍTICAS DE GESTIÓN Y DESEMPEÑO | L42: 114.47.27
D43: GRUPOINTERNODETRABAJODEPRESUPUESTO | E43: GRUPO INTERNO DE TRABAJO DE PRESUPUESTO | F43: 423 | G43: PETICIONES QUEJAS RECLAMOS SUGERENCIAS Y DENUNCIAS PQRSD | H43: PETICIONES_QUEJAS_RECLAMOS_SUGERENCIAS_Y_DENUNCIAS_PQRSD | I43: 13266 | J43: PETICIONES_QUEJAS_RECLAMOS_SUGERENCIAS_Y_DENUNCIAS_PQRSD13266 | K43: INFORMES DE SEGUIMIENTO, CONTROL Y MEJORA | L43: 114.47.29
D44: GRUPOINTERNODETRABAJODEPROCESOSJUDICIALESYEXTRAJUDICIALES | E44: GRUPO INTERNO DE TRABAJO DE PROCESOS JUDICIALES Y EXTRAJUDICIALES | F44: 133 | G44: PROCESOS | H44: PROCESOS | I44: 13270 | J44: PROCESOS13270 | K44: INFORMES DEL EJE ARTICULADOR - LIDERAZGO, GESTIÓN DEL CONOCIMIENTO E INNOVACIÓN | L44: 114.47.30
D45: =SUBSTITUTE(E45," ","") -> GRUPOINTERNODETRABAJODEPROYECTOSREGIONALES | E45: GRUPO INTERNO DE TRABAJO DE PROYECTOS REGIONALES | F45: 242 | G45: ACTAS | H45: =SUBSTITUTE(G45," ","_") -> ACTAS | I45: 13301 | J45: =_xlfn.CONCAT(H45,I45) -> ACTAS13301 | K45: N/A | L45: N/A
D46: =SUBSTITUTE(E46," ","") -> GRUPOINTERNODETRABAJODERELACIONESINSTITUCIONALES | E46: GRUPO INTERNO DE TRABAJO DE RELACIONES INSTITUCIONALES | F46: 233 | G46: ACCIONES CONSTITUCIONALES | H46: ACCIONES_CONSTITUCIONALES | I46: 13302 | J46: ACCIONES_CONSTITUCIONALES13302 | K46: PROGRAMAS DE AMBIENTE Y CULTURA ORGANIZACIONAL | L46: 114.78.02
D47: GRUPOINTERNODETRABAJODESEGUIMIENTOALAEJECUCIÓNCONTRACTUAL | E47: GRUPO INTERNO DE TRABAJO DE SEGUIMIENTO A LA EJECUCIÓN CONTRACTUAL | F47: 411 | G47: CONCILIACIONES | H47: CONCILIACIONES | I47: 13322 | J47: CONCILIACIONES13322 | K47: ACTAS DEL COMITÉ DE CONTROL DE CAMBIOS | L47: 120.01.09
D48: GRUPOINTERNODETRABAJODESEGUIMIENTOALAESTRATEGIA | E48: GRUPO INTERNO DE TRABAJO DE SEGUIMIENTO A LA ESTRATEGIA | F48: 112 | G48: INFORMES | H48: INFORMES | I48: 13347 | J48: INFORMES13347 | K48: ACTAS DEL COMITÉ DE COOPERACIÓN DEL SISTEMA COLOMBIA TIC | L48: 120.01.11
D49: GRUPOINTERNODETRABAJODESEGUIMIENTOALAGESTIÓNDEINGRESOSDELFONDOTIC | E49: GRUPO INTERNO DE TRABAJO DE SEGUIMIENTO A LA GESTIÓN DE INGRESOS DEL FONDO TIC | F49: 412 | G49: PROCESOS | H49: PROCESOS | I49: 13370 | J49: PROCESOS13370 | K49: ACUERDOS DE SERVICIOS ESTRATÉGICOS CON ENTIDADES DEL SECTOR | L49: 120.04.07
D50: GRUPOINTERNODETRABAJODESEGURIDADYPRIVACIDADDELAINFORMACIÓN | E50: GRUPO INTERNO DE TRABAJO DE SEGURIDAD Y PRIVACIDAD DE LA INFORMACIÓN | F50: 320.1 | G50: ACUERDOS | H50: =SUBSTITUTE(G50," ","_") -> ACUERDOS_ | I50: 13404 | J50: =_xlfn.CONCAT(H50,I50) -> ACUERDOS_13404 | K50: INFORMES DE ESTADISTICAS SECTORIALES | L50: 120.47.15
D51: GRUPOINTERNODETRABAJODETESORERIA | E51: GRUPO INTERNO DE TRABAJO DE TESORERIA | F51: 421 | G51: CUOTAS PARTES PENSIONALES | H51: CUOTAS_PARTES_PENSIONALES | I51: 13430 | J51: CUOTAS_PARTES_PENSIONALES13430 | K51: INFORMES DE GESTIÓN | L51: 120.47.16
D52: GRUPOINTERNODETRABAJODETRANSFORMACIÓNORGANIZACIONAL | E52: GRUPO INTERNO DE TRABAJO DE TRANSFORMACIÓN ORGANIZACIONAL | F52: 114 | G52: INFORMES | H52: INFORMES | I52: 13447 | J52: INFORMES13447 | K52: INVENTARIOS DE ACTIVOS DE INFORMACIÓN | L52: 120.54.01
D53: GRUPOINTERNODETRABAJOESPECIALIZADODERECURSOSYACTUACIONESADMINISTRATIVAS | E53: GRUPO INTERNO DE TRABAJO ESPECIALIZADO DE RECURSOS Y ACTUACIONES ADMINISTRATIVAS | F53: 201 | G53: PROCESOS | H53: PROCESOS | I53: 13470 | J53: PROCESOS13470 | K53: PLANES INSTITUCIONALES | L53: 120.66.20
D54: GRUPOINTERNODETRABAJOPARAELCONSENSOSOCIAL | E54: GRUPO INTERNO DE TRABAJO PARA EL CONSENSO SOCIAL | F54: 101 | G54: ACUERDOS INTERNACIONALES | H54: ACUERDOS_INTERNACIONALES_ | I54: 14005 | J54: ACUERDOS_INTERNACIONALES_14005 | K54: N/A | L54: N/A
D55: GRUPOINTERNODETRABAJOTÉCNICODEINNOVACIÓNSOCIALYAPROPIACIÓNENCOMUNIDADES | E55: GRUPO INTERNO DE TRABAJO TÉCNICO DE INNOVACIÓN SOCIAL Y APROPIACIÓN EN COMUNIDADES | F55: 310.1 | G55: INFORMES | H55: INFORMES | I55: 14047 | J55: INFORMES14047 | K55: INFORMES DE GESTIÓN | L55: 130.47.16
D56: OFICINAASESORADEPLANEACIÓNYESTUDIOSSECTORIALES | E56: OFICINA ASESORA DE PLANEACIÓN Y ESTUDIOS SECTORIALES | F56: 110 | G56: BOLETINES INFORMATIVOS | H56: BOLETINES_INFORMATIVOS | I56: 15012 | J56: BOLETINES_INFORMATIVOS15012 | K56: INFORME DE PARTICIPACIÓN EN EL COMITÉ DE ESTABILIDAD JURÍDICA | L56: 130.47.19
D57: OFICINAASESORADEPRENSA | E57: OFICINA ASESORA DE PRENSA | F57: 150 | G57: COMUNICADOS DE PRENSA | H57: COMUNICADOS_DE_PRENSA | I57: 15020 | J57: COMUNICADOS_DE_PRENSA15020 | K57: INFORMES DE PATRIMONIOS AUTONOMOS DE REMANENTES PAR TELECOM | L57: 130.47.21
D58: OFICINAASESORAJURIDICA | E58: OFICINA ASESORA JURIDICA | F58: 130 | G58: INFORMES | H58: INFORMES | I58: 15047 | J58: INFORMES15047 | K58: N/A | L58: N/A
D59: OFICINADECONTROLINTERNO | E59: OFICINA DE CONTROL INTERNO | F59: 160 | G59: PETICIONES QUEJAS RECLAMOS SUGERENCIAS Y DENUNCIAS PQRSD | H59: PETICIONES_QUEJAS_RECLAMOS_SUGERENCIAS_Y_DENUNCIAS_PQRSD | I59: 15065 | J59: PETICIONES_QUEJAS_RECLAMOS_SUGERENCIAS_Y_DENUNCIAS_PQRSD15065 | K59: PROYECTOS NORMATIVOS | L59: 130.79.10
D60: OFICINADETECNOLOGIASDELAINFORMACIÓN | E60: OFICINA DE TECNOLOGIAS DE LA INFORMACIÓN | F60: 120 | G60: INFORMES | H60: INFORMES | I60: 15147 | J60: INFORMES15147 | K60: CONCEPTOS JUIRDICOS | L60: 131.21.04
D61: OFICINAINTERNACIONAL | E61: OFICINA INTERNACIONAL | F61: 140 | G61: PETICIONES QUEJAS RECLAMOS SUGERENCIAS Y DENUNCIAS PQRSD | H61: PETICIONES_QUEJAS_RECLAMOS_SUGERENCIAS_Y_DENUNCIAS_PQRSD | I61: 15165 | J61: PETICIONES_QUEJAS_RECLAMOS_SUGERENCIAS_Y_DENUNCIAS_PQRSD15165 | K61: INFORMES DE GESTIÓN | L61: 131.47.16
D62: OFICINAPARALAGESTIÓNDEINGRESOSDELFONDO | E62: OFICINA PARA LA GESTIÓN DE INGRESOS DEL FONDO | F62: 410 | G62: PLANES | H62: PLANES | I62: 15166 | J62: PLANES15166 | K62: INFORMES DE GESTIÓN | L62: 132.47.16
D63: SECRETARÍAGENERAL | E63: SECRETARÍA GENERAL | F63: 400 | G63: ACTAS | H63: ACTAS | I63: 16001 | J63: ACTAS16001 | K63: N/A | L63: N/A
D64: SUBDIRECCIÓNADMINISTRATIVAYDEGESTIÓNHUMANA | E64: SUBDIRECCIÓN ADMINISTRATIVA Y DE GESTIÓN HUMANA | F64: 430 | G64: INFORMES | H64: INFORMES | I64: 16047 | J64: INFORMES16047 | K64: PROCESOS SANCIONATORIOS EN LAS ACTUACIONES ADMINISTRATIVAS | L64: 132.70.18
D65: SUBDIRECCIÓNDEASUNTOSPOSTALES | E65: SUBDIRECCIÓN DE ASUNTOS POSTALES | F65: 213 | G65: PETICIONES QUEJAS RECLAMOS SUGERENCIAS Y DENUNCIAS PQRSD | H65: PETICIONES_QUEJAS_RECLAMOS_SUGERENCIAS_Y_DENUNCIAS_PQRSD | I65: 16065 | J65: PETICIONES_QUEJAS_RECLAMOS_SUGERENCIAS_Y_DENUNCIAS_PQRSD16065 | K65: ACTAS DEL COMITÉ DE CONCILIACIÓN Y DEFENSA JUDICIAL | L65: 133.01.07
D66: SUBDIRECCIÓNDECOMERCIOELECTRÓNICO | E66: SUBDIRECCIÓN DE COMERCIO ELECTRÓNICO | F66: 331 | G66: PLANES | H66: PLANES | I66: 16066 | J66: PLANES16066 | K66: ACTAS DEL SUCOMITÉ SECTORIAL DE DEFENSA JURIDICA | L66: 133.01.25
D67: SUBDIRECCIÓNDECULTURADIGITAL | E67: SUBDIRECCIÓN DE CULTURA DIGITAL | F67: 312 | G67: PROGRAMAS | H67: PROGRAMAS | I67: 16078 | J67: PROGRAMAS16078 | K67: ACCIONES DE CUMPLIMIENTO | L67: 133.02.01
D68: SUBDIRECCIÓNDEDIGITALIZACIÓNSECTORIAL | E68: SUBDIRECCIÓN DE DIGITALIZACIÓN SECTORIAL | F68: 332 | G68: INFORMES | H68: INFORMES | I68: 20047 | J68: INFORMES20047 | K68: ACCIONES DE GRUPO | L68: 133.02.02
D69: =SUBSTITUTE(E69," ","") -> SUBDIRECCIÓNDEESTANDARESYARQUITECTURADETECNOLOGÍADELAINFORMACIÓN | E69: SUBDIRECCIÓN DE ESTANDARES Y ARQUITECTURA DE TECNOLOGÍA DE LA INFORMACIÓN | F69: 322 | G69: PETICIONES QUEJAS RECLAMOS SUGERENCIAS Y DENUNCIAS PQRSD | H69: PETICIONES_QUEJAS_RECLAMOS_SUGERENCIAS_Y_DENUNCIAS_PQRSD | I69: 20065 | J69: PETICIONES_QUEJAS_RECLAMOS_SUGERENCIAS_Y_DENUNCIAS_PQRSD20065 | K69: ACCIONES DE INCONSTITUCIONALIDAD | L69: 133.02.03
D70: SUBDIRECCIÓNDEGOBIERNOENLINEA | E70: SUBDIRECCIÓN DE GOBIERNO EN LINEA | F70: 321 | G70: INFORMES | H70: INFORMES | I70: 20147 | J70: INFORMES20147 | K70: ACCIONES DE TUTELA | L70: 133.02.04
D71: SUBDIRECCIÓNDEPROCESOSDEAPROPIACIÓNDETECNOLOGÍASDELAINFORMACIÓNYLASCOMUNICACIONES | E71: SUBDIRECCIÓN DE PROCESOS DE APROPIACIÓN DE TECNOLOGÍAS DE LA INFORMACIÓN Y LAS COMUNICACIONES | F71: 311 | G71: INSTRUMENTOS DE CONTROL PARA LAS ACTUACIONES ADMINISTRATIVAS | H71: INSTRUMENTOS_DE_CONTROL_PARA_LAS_ACTUACIONES_ADMINISTRATIVAS | I71: 20152 | J71: INSTRUMENTOS_DE_CONTROL_PARA_LAS_ACTUACIONES_ADMINISTRATIVAS20152 | K71: ACCIONES POPULARES | L71: 133.02.05
D72: SUBDIRECCIÓNDERADIODIFUSIÓNSONORA | E72: SUBDIRECCIÓN DE RADIO DIFUSIÓN SONORA | F72: 212 | G72: PETICIONES QUEJAS RECLAMOS SUGERENCIAS Y DENUNCIAS PQRSD | H72: PETICIONES_QUEJAS_RECLAMOS_SUGERENCIAS_Y_DENUNCIAS_PQRSD | I72: 20165 | J72: PETICIONES_QUEJAS_RECLAMOS_SUGERENCIAS_Y_DENUNCIAS_PQRSD20165 | K72: CONCILIACIONES EXTRAJUDICIALES | L72: 133.22.06
D73: SUBDIRECCIÓNDEVIGILANCIAYCONTROLDECOMUNICACIONES | E73: SUBDIRECCIÓN DE VIGILANCIA Y CONTROL DE COMUNICACIONES | F73: 221 | G73: CONCEPTOS | H73: CONCEPTOS | I73: 21021 | J73: CONCEPTOS21021 | K73: INFORMES A ENTES DE CONTROL Y VIGILANCIA | L73: 133.47.01
D74: SUBDIRECCIÓNDEVIGILANCIAYCONTROLDERADIODIFUSIÓNSONORA | E74: SUBDIRECCIÓN DE VIGILANCIA Y CONTROL DE RADIODIFUSIÓN SONORA | F74: 222 | G74: INFORMES | H74: INFORMES | I74: 21047 | J74: INFORMES21047 | K74: INFORMES DE GESTIÓN | L74: 133.47.16
D75: SUBDIRECCIÓNDEVIGILANCIAYCONTROLDESERVICIOSPOSTALES | E75: SUBDIRECCIÓN DE VIGILANCIA Y CONTROL DE SERVICIOS POSTALES | F75: 223 | G75: PETICIONES QUEJAS RECLAMOS SUGERENCIAS Y DENUNCIAS PQRSD | H75: PETICIONES_QUEJAS_RECLAMOS_SUGERENCIAS_Y_DENUNCIAS_PQRSD | I75: 21065 | J75: PETICIONES_QUEJAS_RECLAMOS_SUGERENCIAS_Y_DENUNCIAS_PQRSD21065 | K75: PROCESOS JUDICIALES DE AMPARO POLICIVO | L75: 133.70.05
D76: SUBDIRECCIÓNFINANCIERA | E76: SUBDIRECCIÓN FINANCIERA | F76: 420 | G76: PROCESOS DE SELECCIÓN OBJETIVA DEL ESPECTRO | H76: PROCESOS_DE_SELECCIÓN_OBJETIVA_DEL_ESPECTRO | I76: 21074 | J76: PROCESOS_DE_SELECCIÓN_OBJETIVA_DEL_ESPECTRO21074 | K76: PROCESOS JUDICIALES DE CONFLICTOS DE COMPETENCIAS | L76: 133.70.06
D77: SUBDIRECCIÓNPARALAINDUSTRIADECOMUNICACIONES | E77: SUBDIRECCIÓN PARA LA INDUSTRIA DE COMUNICACIONES | F77: 211 | G77: PROYECTOS | H77: PROYECTOS | I77: 21079 | J77: PROYECTOS21079 | K77: PROCESOS JUDICIALES DE CONTROVERSIAS CONTRACTUAL | L77: 133.70.07
G78: INFORMES | H78: INFORMES_ | I78: 211147 | J78: INFORMES_211147 | K78: PROCESOS JUDICIALES DE LAUDO ARBITRAL | L78: 133.70.08
G79: PETICIONES QUEJAS RECLAMOS SUGERENCIAS Y DENUNCIAS PQRSD | H79: PETICIONES_QUEJAS_RECLAMOS_SUGERENCIAS_Y_DENUNCIAS_PQRSD | I79: 211165 | J79: PETICIONES_QUEJAS_RECLAMOS_SUGERENCIAS_Y_DENUNCIAS_PQRSD211165 | K79: PROCESOS JUDICIALES DE LIQUIDACIÓN VOLUNTARIA | L79: 133.70.09
G80: PROCESO DE ASIGNACIÓN DIRECTA DEL ESPECTRO RADIOELECTRICO | H80: PROCESO_DE_ASIGNACIÓN_DIRECTA_DEL_ESPECTRO_RADIOELECTRICO_ | I80: 211171 | J80: PROCESO_DE_ASIGNACIÓN_DIRECTA_DEL_ESPECTRO_RADIOELECTRICO_211171 | K80: PROCESOS JUDICIALES DE NULIDAD | L80: 133.70.10
G81: PROCESOS DE SELECCIÓN OBJETIVA PARA ASIGNACIÓN DEL ESPECTRO RADIOELÉCTRICO | H81: PROCESOS_DE_SELECCIÓN_OBJETIVA_PARA_ASIGNACIÓN_DEL_ESPECTRO_RADIOELÉCTRICO | I81: 211175 | J81: PROCESOS_DE_SELECCIÓN_OBJETIVA_PARA_ASIGNACIÓN_DEL_ESPECTRO_RADIOELÉCTRICO211175 | K81: PROCESOS JUDICIALES DE NULIDAD POR INSCONSTITUCIONALIDAD | L81: 133.70.11
G82: REGISTRO DE RADIOAFICIONADOS Y RADIOS ITINERANTES | H82: REGISTRO_DE_RADIOAFICIONADOS_Y_RADIOS_ITINERANTES | I82: 211181 | J82: REGISTRO_DE_RADIOAFICIONADOS_Y_RADIOS_ITINERANTES211181 | K82: PROCESOS JUDICIALES DE NULIDAD Y RESTABLECIMIENTO DEL DERECHO | L82: 133.70.12
G83: REGISTROS DE ASOCIACIONES DE RADIOAFICIONADOS Y DE BANDA CIUDADANA | H83: REGISTROS_DE_ASOCIACIONES_DE_RADIOAFICIONADOS_Y_DE_BANDA_CIUDADANA | I83: 211182 | J83: REGISTROS_DE_ASOCIACIONES_DE_RADIOAFICIONADOS_Y_DE_BANDA_CIUDADANA211182 | K83: PROCESOS JUDICIALES DE REPARACIÓN DIRECTA | L83: 133.70.13
G84: REGISTROS DE PROVEEDOR DE CAPACIDAD SATELITAL | H84: REGISTROS_DE_PROVEEDOR_DE_CAPACIDAD_SATELITAL | I84: 211187 | J84: REGISTROS_DE_PROVEEDOR_DE_CAPACIDAD_SATELITAL211187 | K84: PROCESOS JUDICIALES DE RESTITUCIÓN DE TIERRAS | L84: 133.70.14
G85: INFORMES | H85: INFORMES | I85: 211247 | J85: INFORMES211247 | K85: PROCESOS JUDICIALES EJECUTIVOS | L85: 133.70.15
G86: PETICIONES QUEJAS RECLAMOS SUGERENCIAS Y DENUNCIAS PQRSD | H86: PETICIONES_QUEJAS_RECLAMOS_SUGERENCIAS_Y_DENUNCIAS_PQRSD | I86: 211265 | J86: PETICIONES_QUEJAS_RECLAMOS_SUGERENCIAS_Y_DENUNCIAS_PQRSD211265 | K86: PROCESOS JUDICIALES ORDINARIO LABORAL | L86: 133.70.16
G87: PROYECTOS | H87: PROYECTOS | I87: 211279 | J87: PROYECTOS211279 | K87: PROCESOS PENALES | L87: 133.70.17
G88: REGISTROS DE GESTIÓN DE GARANTÍAS Y COBRO COACTIVO | H88: =SUBSTITUTE(G88," ","_") -> REGISTROS_DE_GESTIÓN_DE_GARANTÍAS_Y_COBRO_COACTIVO | I88: 211283 | J88: =_xlfn.CONCAT(H88,I88) -> REGISTROS_DE_GESTIÓN_DE_GARANTÍAS_Y_COBRO_COACTIVO211283 | K88: PROCESOS Y ACTUACIONES ADMINISTRATIVAS | L88: 133.70.20
G89: ACTAS | H89: =SUBSTITUTE(G89," ","_") -> ACTAS | I89: 21101 | J89: =_xlfn.CONCAT(H89,I89) -> ACTAS21101 | K89: PROCESOS VERBALES | L89: 133.70.19
G90: PETICIONES QUEJAS RECLAMOS SUGERENCIAS Y DENUNCIAS PQRSD | H90: PETICIONES_QUEJAS_RECLAMOS_SUGERENCIAS_Y_DENUNCIAS_PQRSD | I90: 21165 | J90: PETICIONES_QUEJAS_RECLAMOS_SUGERENCIAS_Y_DENUNCIAS_PQRSD21165 | K90: ACUERDOS DE LIQUIDACIÓN OBLIGATORIA | L90: 134.04.01
G91: PROYECTOS | H91: PROYECTOS | I91: 21179 | J91: PROYECTOS21179 | K91: ACUERDOS DE LIQUIDACIÓN VOLUNTARIA | L91: 134.04.02
G92: REGISTROS DE GESTIÓN DE PLANES DE ACCIÓN SEGUIMIENTO Y MEJORA | H92: REGISTROS_DE_GESTIÓN_DE_PLANES_DE_ACCIÓN_SEGUIMIENTO_Y_MEJORA | I92: 21184 | J92: REGISTROS_DE_GESTIÓN_DE_PLANES_DE_ACCIÓN_SEGUIMIENTO_Y_MEJORA21184 | K92: ACUERDOS DE REESTRUCTURACIÓN DE PASIVOS | L92: 134.04.04
G93: REGISTROS DE LA GESTIÓN DE TRÁMITES REGISTROS AUTORIZACIONES LICENCIAS Y PERMISOS | H93: REGISTROS_DE_LA_GESTIÓN__DE_TRÁMITES_REGISTROS_AUTORIZACIONES_LICENCIAS_Y_PERMISOS | I93: 21185 | J93: REGISTROS_DE_LA_GESTIÓN__DE_TRÁMITES_REGISTROS_AUTORIZACIONES_LICENCIAS_Y_PERMISOS21185 | K93: ACUERDOS DE REESTRUCTURACIÓN EMPRESARIAL | L93: 134.04.05
G94: REGISTROS DE PARTICIPACIÓN EN COMISIONES TÉCNICAS O NORMATIVAS | H94: REGISTROS_DE_PARTICIPACIÓN_EN_COMISIONES_TÉCNICAS_O_NORMATIVAS | I94: 21186 | J94: REGISTROS_DE_PARTICIPACIÓN_EN_COMISIONES_TÉCNICAS_O_NORMATIVAS21186 | K94: ACUERDOS DE REORGANIZACIÓN EMPRESARIAL | L94: 134.04.06
G95: REQUERIMENTOS DE AJUSTES DE BASES DE DATOS | H95: REQUERIMENTOS_DE_AJUSTES_DE_BASES_DE_DATOS | I95: 21190 | J95: REQUERIMENTOS_DE_AJUSTES_DE_BASES_DE_DATOS21190 | K95: ACUERDO EXTRAJUDICIAL DE VALIDACIÓN | L95: 134.04.08
G96: SOLICITUDES DENEGADAS RECHAZADAS O INADMITIDAS SIN EXPEDIENTE EXISTENTE | H96: SOLICITUDES_DENEGADAS_RECHAZADAS_O_INADMITIDAS_SIN_EXPEDIENTE_EXISTENTE | I96: 21195 | J96: SOLICITUDES_DENEGADAS_RECHAZADAS_O_INADMITIDAS_SIN_EXPEDIENTE_EXISTENTE21195 | K96: COBRO COACTIVO | L96: 134.30.01
G97: ACTAS | H97: ACTAS | I97: 21201 | J97: ACTAS21201 | K97: INFORMES A ENTES DE CONTROL Y VIGILANCIA | L97: 134.47.01
G98: ESTUDIOS | H98: ESTUDIOS | I98: 21239 | J98: ESTUDIOS21239 | K98: INFORMES A OTROS ORGANISMOS | L98: 134.47.02
G99: LICENCIAS DE CONCESIÓN DE SERVICIOS DE RADIODIFUSIÓN SONORA | H99: LICENCIAS_DE_CONCESIÓN_DE_SERVICIOS_DE_RADIODIFUSIÓN_SONORA | I99: 21258 | J99: =_xlfn.CONCAT(H99,I99) -> LICENCIAS_DE_CONCESIÓN_DE_SERVICIOS_DE_RADIODIFUSIÓN_SONORA21258 | K99: INFORMES DE GESTIÓN | L99: 134.47.16
G100: PETICIONES QUEJAS RECLAMOS SUGERENCIAS Y DENUNCIAS PQRSD | H100: PETICIONES_QUEJAS_RECLAMOS_SUGERENCIAS_Y_DENUNCIAS_PQRSD | I100: 21265 | J100: PETICIONES_QUEJAS_RECLAMOS_SUGERENCIAS_Y_DENUNCIAS_PQRSD21265 | K100: PROCESOS EJECUTIVOS ABIERTOS DE COBRO COACTIVO | L100: 134.70.04
G101: PLANES | H101: PLANES | I101: 21266 | J101: PLANES21266 | K101: ACUERDOS INTERNACIONALES DE COOPERACIÓN | L101: 140.05.01
G102: POLITICA NACIONAL DE RADIODIFUSIÓN SONORA | H102: POLITICA_NACIONAL_DE_RADIODIFUSIÓN_SONORA | I102: 21267 | J102: POLITICA_NACIONAL_DE_RADIODIFUSIÓN_SONORA21267 | K102: INFORMES A OTROS ORGANISMOS | L102: 140.47.02
G103: PROCESOS DE SELECCIÓN OBJETIVA ASIGNACIÓN DE LICENCIAS DE RADIODIFUSIÓN SONORA | H103: PROCESOS_DE_SELECCIÓN_OBJETIVA_ASIGNACIÓN_DE_LICENCIAS_DE_RADIODIFUSIÓN_SONORA | I103: 21273 | J103: PROCESOS_DE_SELECCIÓN_OBJETIVA_ASIGNACIÓN_DE_LICENCIAS_DE_RADIODIFUSIÓN_SONORA21273 | K103: INFORMES DE COMISIONES INTERNACIONALES | L103: 140.47.10
G104: PROYECTOS | H104: PROYECTOS | I104: 21279 | J104: PROYECTOS21279 | K104: INFORMES DE GESTIÓN | L104: 140.47.16
G105: CONCEPTOS | H105: CONCEPTOS | I105: 21321 | J105: =_xlfn.CONCAT(H105,I105) -> CONCEPTOS21321 | L105: 150.12.03
G106: CONVENIOS DEL CODIGO POSTAL DE LA REPÚBLICA DE COLOMBIA | H106: CONVENIOS__DEL_CODIGO_POSTAL_DE_LA_REPÚBLICA_DE_COLOMBIA | I106: 21325 | J106: =_xlfn.CONCAT(H106,I106) -> CONVENIOS__DEL_CODIGO_POSTAL_DE_LA_REPÚBLICA_DE_COLOMBIA21325 | K106: N/A | L106: N/A
G107: INFORMES | H107: INFORMES | I107: 21347 | J107: =_xlfn.CONCAT(H107,I107) -> INFORMES21347 | K107: INFORMES DE GESTIÓN | L107: 150.47.16
G108: INSCRIPCIÓN DE OPERADORES EN EL REGISTRO POSTAL | H108: INSCRIPCIÓN_DE_OPERADORES_EN_EL_REGISTRO_POSTAL | I108: 21348 | J108: =_xlfn.CONCAT(H108,I108) -> INSCRIPCIÓN_DE_OPERADORES_EN_EL_REGISTRO_POSTAL21348 | K108: INFORMES DE GESTIÓN AUDIOVISUALES | L108: 150.47.17
G109: INVENTARIOS DEL MUSEO DE TECNOLOGIAS DE LA INFORMACIÓN Y LAS COMUNICACIONES | H109: =SUBSTITUTE(G109," ","_") -> INVENTARIOS_DEL_MUSEO_DE_TECNOLOGIAS_DE_LA_INFORMACIÓN_Y_LAS_COMUNICACIONES | I109: 21353 | J109: =_xlfn.CONCAT(H109,I109) -> INVENTARIOS_DEL_MUSEO_DE_TECNOLOGIAS_DE_LA_INFORMACIÓN_Y_LAS_COMUNICACIONES21353 | K109: N/A | L109: N/A
G110: POLITICA DE SERVICIOS POSTALES | H110: POLITICA_DE_SERVICIOS_POSTALES | I110: 21367 | J110: POLITICA_DE_SERVICIOS_POSTALES21367 | K110: INFORMES DE GESTIÓN | L110: 151.47.16
G111: RESOLUCIONES DE HABILITACIÓN DE SERVICIOS POSTALES | H111: RESOLUCIONES_DE_HABILITACIÓN_DE_SERVICIOS_POSTALES | I111: 21393 | J111: RESOLUCIONES_DE_HABILITACIÓN_DE_SERVICIOS_POSTALES21393 | K111: N/A | L111: N/A
G112: SOLICITUDES DE EMISIONES FILATELICAS | H112: SOLICITUDES_DE_EMISIONES_FILATELICAS | I112: 21394 | J112: SOLICITUDES_DE_EMISIONES_FILATELICAS21394 | K112: PLANES DE DIVULGACIÓN | L112: 151.66.07
G113: INFORMES | H113: INFORMES | I113: 22047 | J113: INFORMES22047 | K113: ACTAS DEL COMITÉ DE COORDINACIÓN DEL SISTEMA DE CONTROL INTERNO | L113: 160.01.02
G114: PETICIONES QUEJAS RECLAMOS SUGERENCIAS Y DENUNCIAS PQRSD | H114: PETICIONES_QUEJAS_RECLAMOS_SUGERENCIAS_Y_DENUNCIAS_PQRSD | I114: 22065 | J114: PETICIONES_QUEJAS_RECLAMOS_SUGERENCIAS_Y_DENUNCIAS_PQRSD22065 | K114: INFORMES A ENTIDADES DE CONTROL Y VIGILANCIA | L114: 160.47.01
G115: PROCESOS | H115: PROCESOS_ | I115: 22070 | J115: PROCESOS_22070 | K115: INFORMES DE AUDITORIAS DE CALIDAD | L115: 160.47.05
G116: PROGRAMAS | H116: PROGRAMAS | I116: 22078 | J116: PROGRAMAS22078 | K116: INFORMES DE AUDITORIAS DE GESTIÓN | L116: 160.47.06
G117: ACTUACIONES DE VIGILANCIA Y CONTROL | H117: =SUBSTITUTE(G117," ","_") -> ACTUACIONES_DE_VIGILANCIA_Y_CONTROL_ | I117: 22103 | J117: =_xlfn.CONCAT(H117,I117) -> ACTUACIONES_DE_VIGILANCIA_Y_CONTROL_22103 | K117: INFORMES DE GESTIÓN | L117: 160.47.16
G118: INFORMES | H118: INFORMES | I118: 22147 | J118: INFORMES22147 | K118: N/A | L118: N/A
G119: PETICIONES QUEJAS RECLAMOS SUGERENCIAS Y DENUNCIAS PQRSD | H119: PETICIONES_QUEJAS_RECLAMOS_SUGERENCIAS_Y_DENUNCIAS_PQRSD | I119: 22165 | J119: PETICIONES_QUEJAS_RECLAMOS_SUGERENCIAS_Y_DENUNCIAS_PQRSD22165 | K119: PLANES DE MEJORAMIENTO DE CALIDAD Y GESTIÓN | L119: 160.66.11
G120: PROCESOS | H120: PROCESOS | I120: 22170 | J120: PROCESOS22170 | K120: PLANES DE MEJORAMIENTO PARA CONTRALORIA | L120: 160.66.13
G121: PROGRAMAS | H121: PROGRAMAS | I121: 22178 | J121: PROGRAMAS22178 | K121: PROGRAMAS ANUALES DE AUDITORIAS | L121: 160.78.01
G122: CONCEPTOS | H122: CONCEPTOS | I122: 22221 | J122: CONCEPTOS22221 | K122: INFORMES DE GESTIÓN | L122: 200.47.16
G123: INFORMES | H123: INFORMES | I123: 22247 | J123: INFORMES22247 | K123: N/A | L123: N/A
G124: PETICIONES QUEJAS RECLAMOS SUGERENCIAS Y DENUNCIAS PQRSD | H124: PETICIONES_QUEJAS_RECLAMOS_SUGERENCIAS_Y_DENUNCIAS_PQRSD | I124: 22265 | J124: PETICIONES_QUEJAS_RECLAMOS_SUGERENCIAS_Y_DENUNCIAS_PQRSD22265 | K124: INFORMES DE GESTIÓN | L124: 201.47.16
G125: PROCESOS | H125: PROCESOS | I125: 22270 | J125: PROCESOS22270 | K125: N/A | L125: N/A
G126: PROGRAMAS | H126: PROGRAMAS | I126: 22278 | J126: PROGRAMAS22278 | K126: N/A | L126: N/A
G127: CONCEPTOS | H127: CONCEPTOS | I127: 22321 | J127: CONCEPTOS22321 | K127: CONCEPTOS TÉCNICOS SOBRE SERVICIOS DE TELECOMUNICACIONES | L127: 210.21.06
G128: INFORMES | H128: INFORMES | I128: 22347 | J128: INFORMES22347 | K128: INFORMES DE GESTIÓN | L128: 210.47.16
G129: PETICIONES QUEJAS RECLAMOS SUGERENCIAS Y DENUNCIAS QRSD | H129: PETICIONES_QUEJAS_RECLAMOS_SUGERENCIAS_Y_DENUNCIAS_QRSD | I129: 22365 | J129: PETICIONES_QUEJAS_RECLAMOS_SUGERENCIAS_Y_DENUNCIAS_QRSD22365 | K129: N/A | L129: N/A
G130: PROCESOS | H130: PROCESOS | I130: 22370 | J130: PROCESOS22370 | K130: N/A | L130: N/A
G131: PROGRAMAS | H131: PROGRAMAS | I131: 22378 | J131: PROGRAMAS22378 | K131: PROYECTOS DE INVERSIÓN | L131: 210.79.03
G132: INFORMES | H132: INFORMES | I132: 23047 | J132: INFORMES23047 | K132: PROYECTOS POR OBLIGACIONES DE HACER | L132: 210.79.12
G133: PLANES | H133: PLANES | I133: 23066 | J133: PLANES23066 | K133: ACTAS DEL COMITÉ DE OBLIGACIONES DE HACER | L133: 211.01.13
G134: INFORMES | H134: INFORMES | I134: 23147 | J134: INFORMES23147 | K134: N/A | L134: N/A
G135: INFORMES | H135: INFORMES | I135: 23247 | J135: INFORMES23247 | K135: PROYECTOS TÉCNICOS Y NORMATIVOS | L135: 211.79.13
G136: EVIDENCIAS EN EL MARCO DE LA ARTICULACIÓN TERRITORIAL | H136: EVIDENCIAS_EN_EL_MARCO_DE_LA_ARTICULACIÓN_TERRITORIAL | I136: 23342 | J136: EVIDENCIAS_EN_EL_MARCO_DE_LA_ARTICULACIÓN_TERRITORIAL23342 | K136: N/A | L136: N/A
G137: INFORMES | H137: INFORMES | I137: 23347 | J137: INFORMES23347 | K137: N/A | L137: N/A
G138: PETICIONES QUEJAS RECLAMOS SUGERENCIAS Y DENUNCIAS PQRSD | H138: PETICIONES_QUEJAS_RECLAMOS_SUGERENCIAS_Y_DENUNCIAS_PQRSD | I138: 23365 | J138: PETICIONES_QUEJAS_RECLAMOS_SUGERENCIAS_Y_DENUNCIAS_PQRSD23365 | K138: N/A | L138: N/A
G139: INFORMES | H139: INFORMES | I139: 24047 | J139: INFORMES24047 | K139: N/A | L139: N/A
G140: INFORMES | H140: INFORMES | I140: 24147 | J140: INFORMES24147 | K140: N/A | L140: N/A
G141: MATRICES DE OFERTA INSTITUCIONAL | H141: MATRICES_DE_OFERTA_INSTITUCIONAL | I141: 24161 | J141: MATRICES_DE_OFERTA_INSTITUCIONAL24161 | K141: INFORMES DE PARTICIPACIÓN EN COMISIONES TÉCNICAS O NORMATIVAS | L141: 211.1.47.18
G142: PETICIONES QUEJAS RECLAMOS SUGERENCIAS Y DENUNCIAS PQRSD | H142: PETICIONES_QUEJAS_RECLAMOS_SUGERENCIAS_Y_DENUNCIAS_PQRSD | I142: 24165 | J142: PETICIONES_QUEJAS_RECLAMOS_SUGERENCIAS_Y_DENUNCIAS_PQRSD24165 | K142: N/A | L142: N/A
G143: INFORMES | H143: INFORMES | I143: 24247 | J143: INFORMES24247 | K143: N/A | L143: N/A
G144: PETICIONES QUEJAS RECLAMOS SUGERENCIAS Y DENUNCIAS PQRSD | H144: PETICIONES_QUEJAS_RECLAMOS_SUGERENCIAS_Y_DENUNCIAS_PQRSD | I144: 24265 | J144: PETICIONES_QUEJAS_RECLAMOS_SUGERENCIAS_Y_DENUNCIAS_PQRSD24265 | K144: N/A | L144: N/A
G145: INFORMES | H145: INFORMES | I145: 24347 | J145: INFORMES24347 | K145: N/A | L145: N/A
G146: PETICIONES QUEJAS RECLAMOS SUGERENCIAS Y DENUNCIAS PQRSD | H146: PETICIONES_QUEJAS_RECLAMOS_SUGERENCIAS_Y_DENUNCIAS_PQRSD | I146: 24365 | J146: PETICIONES_QUEJAS_RECLAMOS_SUGERENCIAS_Y_DENUNCIAS_PQRSD24365 | K146: N/A | L146: N/A
G147: INFORMES | H147: INFORMES | I147: 30047 | J147: INFORMES30047 | K147: N/A | L147: N/A
G148: PETICIONES QUEJAS RECLAMOS SUGERENCIAS Y DENUNCIAS PQRSD | H148: PETICIONES_QUEJAS_RECLAMOS_SUGERENCIAS_Y_DENUNCIAS_PQRSD | I148: 30065 | J148: PETICIONES_QUEJAS_RECLAMOS_SUGERENCIAS_Y_DENUNCIAS_PQRSD30065 | K148: INFORMES DE GESTIÓN | L148: 211.2.47.16
G149: PROGRAMAS | H149: PROGRAMAS | I149: 30078 | J149: PROGRAMAS30078 | K149: N/A | L149: N/A
G150: PROYECTOS | H150: PROYECTOS | I150: 30079 | J150: PROYECTOS30079 | K150: PROYECTOS NORMATIVOS Y DE REGLAMENTOS EN MATERIA DE GARANTÍAS | L150: 211.2.79.11
G151: DIAGNÓSTICOS DE POLITICA PÚBLICA DE TI EN POBLACIONES VULNERABLES | H151: DIAGNÓSTICOS_DE_POLITICA_PÚBLICA_DE_TI_EN_POBLACIONES_VULNERABLES | I151: 310133 | J151: DIAGNÓSTICOS_DE_POLITICA_PÚBLICA_DE_TI_EN_POBLACIONES_VULNERABLES310133 | K151: N/A | L151: N/A
G152: INFORMES | H152: INFORMES | I152: 310147 | J152: INFORMES310147 | K152: ACTAS DEL COMITÉ CONSULTIVO DE RADIO COMUNITARIA | L152: 212.01.05
G153: PETICIONES QUEJAS RECLAMOS SUGERENCIAS Y DENUNCIAS PQRSD | H153: PETICIONES_QUEJAS_RECLAMOS_SUGERENCIAS_Y_DENUNCIAS_PQRSD | I153: 310165 | J153: PETICIONES_QUEJAS_RECLAMOS_SUGERENCIAS_Y_DENUNCIAS_PQRSD310165 | K153: ESTUDIOS DE RADIODIFUSIÓN SONORA | L153: 212.39.01
G154: INFORMES | H154: INFORMES | I154: 31047 | J154: INFORMES31047 | K154: SOLICITUDES LICENCIAS DE CADENAS RADIALES | L154: 212.58.01
G155: PETICIONES QUEJAS RECLAMOS SUGERENCIAS Y DENUNCIAS PQRSD | H155: PETICIONES_QUEJAS_RECLAMOS_SUGERENCIAS_Y_DENUNCIAS_PQRSD | I155: 31065 | J155: PETICIONES_QUEJAS_RECLAMOS_SUGERENCIAS_Y_DENUNCIAS_PQRSD31065 | K155: SOLICITUDES LICENCIAS DE EMISORAS COMERCIALES | L155: 212.58.02
G156: INFORMES | H156: =SUBSTITUTE(G156," ","_") -> INFORMES | I156: 31147 | J156: =_xlfn.CONCAT(H156,I156) -> INFORMES31147 | K156: SOLICITUDES LICENCIAS DE EMISORAS COMUNITARIAS | L156: 212.58.03
G157: PETICIONES QUEJAS RECLAMOS SUGERENCIAS Y DENUNCIAS PQRSD | H157: PETICIONES_QUEJAS_RECLAMOS_SUGERENCIAS_Y_DENUNCIAS_PQRSD | I157: 31165 | J157: PETICIONES_QUEJAS_RECLAMOS_SUGERENCIAS_Y_DENUNCIAS_PQRSD31165 | K157: SOLICITUDES LICENCIAS DE EMISORAS DE INTERÉS PÚBLICO | L157: 212.58.04
G158: PROYECTOS | H158: PROYECTOS | I158: 31179 | J158: PROYECTOS31179 | K158: SOLICITUDES DE LICENCIAS DE TRANSMOVILES | L158: 212.58.05
G159: INFORMES | H159: =SUBSTITUTE(G159," ","_") -> INFORMES | I159: 31247 | J159: =_xlfn.CONCAT(H159,I159) -> INFORMES31247 | K159: N/A | L159: N/A
G160: PETICIONES QUEJAS RECLAMOS SUGERENCIAS Y DENUNCIAS PQRSD | H160: PETICIONES_QUEJAS_RECLAMOS_SUGERENCIAS_Y_DENUNCIAS_PQRSD | I160: 31265 | J160: PETICIONES_QUEJAS_RECLAMOS_SUGERENCIAS_Y_DENUNCIAS_PQRSD31265 | K160: PLANES TÉCNICOS NACIONALES DE RADIODIFUSIÓN SONORA | L160: 212.66.22
G161: ESTRATEGIAS DE SEGURIDAD Y PRIVACIDAD DE LA INFORMACIÓN | H161: ESTRATEGIAS_DE_SEGURIDAD_Y_PRIVACIDAD_DE_LA_INFORMACIÓN | I161: 320138 | J161: ESTRATEGIAS_DE_SEGURIDAD_Y_PRIVACIDAD_DE_LA_INFORMACIÓN320138 | K161: N/A | L161: N/A
G162: POLITICAS | H162: POLITICAS | I162: 320169 | J162: POLITICAS320169 | K162: N/A | L162: N/A
G163: INFORMES | H163: INFORMES | I163: 320247 | J163: INFORMES320247 | K163: PROYECTOS DE INVERSIÓN RADIO PÚBLICA | L163: 212.79.05
G164: PETICIONES QUEJAS RECLAMOS SUGERENCIAS Y DENUNCIAS PQRSD | H164: PETICIONES_QUEJAS_RECLAMOS_SUGERENCIAS_Y_DENUNCIAS_PQRSD | I164: 320265 | J164: PETICIONES_QUEJAS_RECLAMOS_SUGERENCIAS_Y_DENUNCIAS_PQRSD320265 | K164: CONCEPTOS EMITIDOS | L164: 213.21.03
G165: PLANES | H165: PLANES | I165: 320266 | J165: PLANES320266 | K165: N/A | L165: N/A
G166: PROGRAMAS | H166: PROGRAMAS | I166: 320278 | J166: PROGRAMAS320278 | K166: INFORMES DE GESTIÓN | L166: 213.47.16
G167: ESTUDIOS | H167: ESTUDIOS | I167: 320339 | J167: ESTUDIOS320339 | K167: N/A | L167: N/A
G168: INFORMES | H168: INFORMES | I168: 320347 | J168: INFORMES320347 | K168: N/A | L168: N/A
G169: PETICIONES QUEJAS RECLAMOS SUGERENCIAS Y DENUNCIAS PQRSD | H169: PETICIONES_QUEJAS_RECLAMOS_SUGERENCIAS_Y_DENUNCIAS_PQRSD | I169: 320365 | J169: PETICIONES_QUEJAS_RECLAMOS_SUGERENCIAS_Y_DENUNCIAS_PQRSD320365 | K169: N/A | L169: N/A
G170: POLITICAS | H170: =SUBSTITUTE(G170," ","_") -> POLITICAS_ | I170: 320369 | J170: =_xlfn.CONCAT(H170,I170) -> POLITICAS_320369 | K170: INCOPORACIÓN EN EL REGISTRO POSTAL | L170: 213.93.01
G171: INFORMES | H171: INFORMES | I171: 32047 | J171: INFORMES32047 | K171: RESOLUCIONES DE HABILITACIÓN DE SERVICIOS POSTALES DE PAGO | L171: 213.93.02
G172: PETICIONES QUEJAS RECLAMOS SUGERENCIAS Y DENUNCIAS PQRSD | H172: PETICIONES_QUEJAS_RECLAMOS_SUGERENCIAS_Y_DENUNCIAS_PQRSD | I172: 32065 | J172: PETICIONES_QUEJAS_RECLAMOS_SUGERENCIAS_Y_DENUNCIAS_PQRSD32065 | K172: RESOLUCIONES DE HABILITACIÓN DE SERVICIOS POSTALES PARA MENSAJERIA EXPRESA | L172: 213.93.03
G173: PLANES | H173: PLANES | I173: 32066 | J173: PLANES32066 | K173: N/A | L173: N/A
G174: PROGRAMAS | H174: PROGRAMAS | I174: 32078 | J174: PROGRAMAS32078 | K174: INFORMES DE GESTIÓN | L174: 220.47.16
G175: INFORMES | H175: INFORMES | I175: 32147 | J175: INFORMES32147 | K175: INFORMES DE PRESUNTO INCUMPLIMIENTO | L175: 220.47.23
G176: PETICIONES QUEJAS RECLAMOS SUGERENCIAS Y DENUNCIAS PQRSD | H176: PETICIONES_QUEJAS_RECLAMOS_SUGERENCIAS_Y_DENUNCIAS_PQRSD | I176: 32165 | J176: PETICIONES_QUEJAS_RECLAMOS_SUGERENCIAS_Y_DENUNCIAS_PQRSD32165 | K176: N/A | L176: N/A
G177: PLANES | H177: PLANES | I177: 32166 | J177: PLANES32166 | K177: PROCESOS ADMINISTRATIVOS CONTRA LOS PROVEEDORES | L177: 220.70.01
G178: POLITICAS | H178: POLITICAS | I178: 32169 | J178: POLITICAS32169 | K178: PROGRAMAS DE VIGILANCIA Y CONTROL PREVENTIVOS | L178: 220.78.11
G179: PROCESOS | H179: PROCESOS | I179: 32170 | J179: PROCESOS32170 | K179: N/A | L179: N/A
G180: PROYECTOS | H180: PROYECTOS | I180: 32179 | J180: PROYECTOS32179 | K180: INFORMES DE GESTIÓN | L180: 221.47.16
G181: ALIANZAS PUBLICO PRIVADAS NACIONALES E INTERNACIONALES | H181: ALIANZAS_PUBLICO_PRIVADAS_NACIONALES_E_INTERNACIONALES | I181: 32206 | J181: ALIANZAS_PUBLICO_PRIVADAS_NACIONALES_E_INTERNACIONALES32206 | K181: N/A | L181: N/A
G182: INFORMES | H182: INFORMES | I182: 32247 | J182: INFORMES32247 | K182: PROCESOS ADMINISTRATIVOS SANCIONATORIOS | L182: 221.70.02
G183: INVESTIGACIONES EN MATERIA DE TECNOLÓGIAS DE LA INFORMACIÓN | H183: INVESTIGACIONES_EN_MATERIA_DE_TECNOLÓGIAS_DE_LA_INFORMACIÓN | I183: 32255 | J183: INVESTIGACIONES_EN_MATERIA_DE_TECNOLÓGIAS_DE_LA_INFORMACIÓN32255 | K183: PROGRAMAS PREVENTIVOS DE SERVICIOS DE TELECOMUNICACIONES | L183: 221.78.15
G184: PETICIONES QUEJAS RECLAMOS SUGERENCIAS Y DENUNCIAS PQRSD | H184: PETICIONES_QUEJAS_RECLAMOS_SUGERENCIAS_Y_DENUNCIAS_PQRSD | I184: 32265 | J184: PETICIONES_QUEJAS_RECLAMOS_SUGERENCIAS_Y_DENUNCIAS_PQRSD32265 | K184: CONCEPTOS DE NO PROCEDIBILIDAD | L184: 222.21.01
G185: POLITICAS | H185: POLITICAS | I185: 32269 | J185: POLITICAS32269 | K185: INFORMES DE GESTIÓN | L185: 222.47.16
G186: INFORMES | H186: INFORMES | I186: 330147 | J186: INFORMES330147 | K186: N/A | L186: N/A
G187: PETICIONES QUEJAS RECLAMOS SUGERENCIAS Y DENUNCIAS PQRSD | H187: PETICIONES_QUEJAS_RECLAMOS_SUGERENCIAS_Y_DENUNCIAS_PQRSD | I187: 330165 | J187: PETICIONES_QUEJAS_RECLAMOS_SUGERENCIAS_Y_DENUNCIAS_PQRSD330165 | K187: PROCESOS ADMNISTRATIVOS SANCIONATORIOS | L187: 222.70.02
G188: ACTAS | H188: ACTAS | I188: 33001 | J188: ACTAS33001 | K188: PROGRAMAS PREVENTIVOS DE SERVICIOS DE RADIODIFUSIÓN SONORA | L188: 222.78.14
G189: INFORMES | H189: INFORMES | I189: 33047 | J189: INFORMES33047 | K189: CONCEPTOS DE NO PROCEDIBILIDAD | L189: 223.21.01
G190: PETICIONES QUEJAS RECLAMOS SUGERENCIAS Y DENUNCIAS PQRSD | H190: PETICIONES_QUEJAS_RECLAMOS_SUGERENCIAS_Y_DENUNCIAS_PQRSD | I190: 33065 | J190: PETICIONES_QUEJAS_RECLAMOS_SUGERENCIAS_Y_DENUNCIAS_PQRSD33065 | K190: INFORMES DE GESTIÓN | L190: 223.47.16
G191: INFORMES | H191: INFORMES_ | I191: 33147 | J191: INFORMES_33147 | K191: N/A | L191: N/A
G192: PETICIONES QUEJAS RECLAMOS SUGERENCIAS Y DENUNCIAS PQRSD | H192: PETICIONES_QUEJAS_RECLAMOS_SUGERENCIAS_Y_DENUNCIAS_PQRSD | I192: 33165 | J192: PETICIONES_QUEJAS_RECLAMOS_SUGERENCIAS_Y_DENUNCIAS_PQRSD33165 | K192: PROCESOS ADMINISTRATIVOS SANCIONATORIOS | L192: 223.70.02
G193: INFORMES | H193: INFORMES | I193: 33247 | J193: INFORMES33247 | K193: PROGRAMAS PREVENTIVOS DE SERVICIOS POSTALES | L193: 223.78.16
G194: PETICIONES QUEJAS RECLAMOS SUGERENCIAS Y DENUNCIAS PQRSD | H194: PETICIONES_QUEJAS_RECLAMOS_SUGERENCIAS_Y_DENUNCIAS_PQRSD | I194: 33265 | J194: PETICIONES_QUEJAS_RECLAMOS_SUGERENCIAS_Y_DENUNCIAS_PQRSD33265 | K194: INFORMES A ENTES DE CONTROL Y VIGILANCIA | L194: 230.47.01
G195: ESTUDIOS | H195: ESTUDIOS | I195: 33939 | J195: ESTUDIOS33939 | K195: INFORMES A OTROS ORGANISMOS | L195: 230.47.02
G196: ESTUDIOS | H196: ESTUDIOS | I196: 34039 | J196: ESTUDIOS34039 | K196: INFORMES DE GESTIÓN | L196: 230.47.16
G197: INFORMES | H197: INFORMES | I197: 34047 | J197: INFORMES34047 | K197: INFORMES DE SEGUIMIENTO DE CALIDAD | L197: 230.47.28
G198: PETICIONES QUEJAS RECLAMOS SUGERENCIAS Y DENUNCIAS PQRSD | H198: PETICIONES_QUEJAS_RECLAMOS_SUGERENCIAS_Y_DENUNCIAS_PQRSD | I198: 34065 | J198: PETICIONES_QUEJAS_RECLAMOS_SUGERENCIAS_Y_DENUNCIAS_PQRSD34065 | K198: PLANES DE MEJORAMIENTO | L198: 230.66.10
G199: INFORMES | H199: INFORMES | I199: 34147 | J199: INFORMES34147 | K199: INFORMES DE GESTIÓN | L199: 231.47.16
G200: PETICIONES QUEJAS RECLAMOS SUGERENCIAS Y DENUNCIAS PQRSD | H200: PETICIONES_QUEJAS_RECLAMOS_SUGERENCIAS_Y_DENUNCIAS_PQRSD | I200: 34165 | J200: PETICIONES_QUEJAS_RECLAMOS_SUGERENCIAS_Y_DENUNCIAS_PQRSD34165 | K200: INFORMES DE GESTIÓN | L200: 232.47.16
... 280 more rows
